Workbook

Sheet Main
B10: 2019-03-05
B12: Sheet No. | C12: Template Name | D12: Summary
B13: 1 | C13: Future Intra | D13: For Intraday trading in F&O segment
B14: 2 | C14: Cash Intra | D14: For Intraday trading in cash market segment
B15: 3 | C15: Mid-cap Intra | D15: For Intraday trading in Mid-cap stocks
B16: 4 | C16: Bulk Deals | D16: Reveals Bulk Deals carried on NSE & BSE
B17: 5 | C17: Call Tracker

Sheet Future Intra
M5: Back to Main Page
A6: FOR INTRA DAY TRADING | L6: =Main!B10 -> 2019-03-05
A9: Sr.no | B9: Sector | C9: Scrip | D9: CLOSE RATE | E9: Pivot Point | F9: Supports | I9: Resistances
B10: Sector | D10: Point | E10: Point | F10: S1 | G10: S2 | H10: S3 | I10: R1 | J10: R2 | K10: R3 | L10: HIGH | M10: LOW | N10: OI | O10: % Change in OI
A11: 1 | B11: Index | C11: BANKNIFTY | D11: 27201.30 | E11: 27167.07 | F11: 27085.23 | G11: 26969.17 | H11: 26887.33 | I11: 27283.13 | J11: 27364.97 | K11: 27481.03 | L11: 27248.9 | M11: 27051 | N11: 1459680 | O11: 23.01%
A12: 2 | B12: Index | C12: NIFTY | D12: 10917.05 | E12: 10905.70 | F12: 10881.95 | G12: 10846.85 | H12: 10823.10 | I12: 10940.80 | J12: 10964.55 | K12: 10999.65 | L12: 10929.45 | M12: 10870.6 | N12: 14973525 | O12: 0.30%
A13: 3 | B13: Index | C13: NIFTYIT | D13: 15886.00 | E13: 15865.33 | F13: 15829.67 | G13: 15773.33 | H13: 15737.67 | I13: 15921.67 | J13: 15957.33 | K13: 16013.67 | L13: 15901 | M13: 15809 | N13: 15500 | O13: 20.16%
A14: 4 | B14: Cement | C14: ACC | D14: 1473.45 | E14: 1460.13 | F14: 1431.47 | G14: 1389.48 | H14: 1360.82 | I14: 1502.12 | J14: 1530.78 | K14: 1572.77 | L14: 1488.8 | M14: 1418.15 | N14: 2825600 | O14: 3.26%
A15: 5 | B15: Others | C15: ADANIENT | D15: 134.05 | E15: 133.13 | F15: 130.77 | G15: 127.48 | H15: 125.12 | I15: 136.42 | J15: 138.78 | K15: 142.07 | L15: 135.5 | M15: 129.85 | N15: 37908000 | O15: 5.59%
A16: 6 | B16: Others | C16: ADANIPORTS | D16: 335.55 | E16: 334.28 | F16: 331.17 | G16: 326.78 | H16: 323.67 | I16: 338.67 | J16: 341.78 | K16: 346.17 | L16: 337.4 | M16: 329.9 | N16: 22570000 | O16: 0.28%
A17: 7 | B17: Power | C17: ADANIPOWER | D17: 48.70 | E17: 48.63 | F17: 48.07 | G17: 47.43 | H17: 46.87 | I17: 49.27 | J17: 49.83 | K17: 50.47 | L17: 49.2 | M17: 48 | N17: 156860000 | O17: 3.55%
A18: 8 | B18: Pharma | C18: AJANTPHARM | D18: 983.15 | E18: 980.63 | F18: 973.22 | G18: 963.28 | H18: 955.87 | I18: 990.57 | J18: 997.98 | K18: 1007.92 | L18: 988.05 | M18: 970.7 | N18: 801500 | O18: 1.33%
A19: 9 | B19: Banking | C19: ALBK | D19: 49.10 | E19: 47.88 | F19: 46.12 | G19: 43.13 | H19: 41.37 | I19: 50.87 | J19: 52.63 | K19: 55.62 | L19: 49.65 | M19: 44.9 | N19: 22100000 | O19: 14.94%
A20: 10 | B20: Automobile | C20: AMARAJABAT | D20: 732.40 | E20: 729.93 | F20: 725.67 | G20: 718.93 | H20: 714.67 | I20: 736.67 | J20: 740.93 | K20: 747.67 | L20: 734.2 | M20: 723.2 | N20: 620200 | O20: 5.73%
A21: 11 | B21: Cement | C21: AMBUJACEM | D21: 219.05 | E21: 217.88 | F21: 215.17 | G21: 211.28 | H21: 208.57 | I21: 221.77 | J21: 224.48 | K21: 228.37 | L21: 220.6 | M21: 214 | N21: 11655000 | O21: -0.89%
A22: 12 | B22: Others | C22: APOLLOHOSP | D22: 1160.10 | E22: 1160.30 | F22: 1146.60 | G22: 1133.10 | H22: 1119.40 | I22: 1173.80 | J22: 1187.50 | K22: 1201.00 | L22: 1174 | M22: 1146.8 | N22: 1298000 | O22: 12.38%
A23: 13 | B23: Automobile | C23: APOLLOTYRE | D23: 221.40 | E23: 220.53 | F23: 219.22 | G23: 217.03 | H23: 215.72 | I23: 222.72 | J23: 224.03 | K23: 226.22 | L23: 221.85 | M23: 218.35 | N23: 8838000 | O23: 1.94%
A24: 14 | B24: Textile | C24: ARVIND | D24: 83.65 | E24: 81.60 | F24: 78.80 | G24: 73.95 | H24: 71.15 | I24: 86.45 | J24: 89.25 | K24: 94.10 | L24: 84.4 | M24: 76.75 | N24: 6576000 | O24: 17.18%
A25: 15 | B25: Automobile | C25: ASHOKLEY | D25: 86.90 | E25: 86.65 | F25: 85.05 | G25: 83.20 | H25: 81.60 | I25: 88.50 | J25: 90.10 | K25: 91.95 | L25: 88.25 | M25: 84.8 | N25: 67776000 | O25: 0.46%
A26: 16 | B26: FMCG | C26: ASIANPAINT | D26: 1402.50 | E26: 1408.28 | F26: 1391.12 | G26: 1379.73 | H26: 1362.57 | I26: 1419.67 | J26: 1436.83 | K26: 1448.22 | L26: 1425.45 | M26: 1396.9 | N26: 5427000 | O26: 1.85%
A27: 17 | B27: Pharma | C27: AUROPHARMA | D27: 727.65 | E27: 725.45 | F27: 718.90 | G27: 710.15 | H27: 703.60 | I27: 734.20 | J27: 740.75 | K27: 749.50 | L27: 732 | M27: 716.7 | N27: 18531000 | O27: 1.11%
A28: 18 | B28: Banking | C28: AXISBANK | D28: 707.35 | E28: 710.10 | F28: 701.35 | G28: 695.35 | H28: 686.60 | I28: 716.10 | J28: 724.85 | K28: 730.85 | L28: 718.85 | M28: 704.1 | N28: 32422800 | O28: 4.72%
A29: 19 | B29: Automobile | C29: BAJAJ-AUTO | D29: 2864.95 | E29: 2887.52 | F29: 2831.13 | G29: 2797.32 | H29: 2740.93 | I29: 2921.33 | J29: 2977.72 | K29: 3011.53 | L29: 2943.9 | M29: 2853.7 | N29: 2519250 | O29: 13.62%
A30: 20 | B30: Others | C30: BAJAJFINSV | D30: 6478.85 | E30: 6503.63 | F30: 6420.27 | G30: 6361.68 | H30: 6278.32 | I30: 6562.22 | J30: 6645.58 | K30: 6704.17 | L30: 6587 | M30: 6445.05 | N30: 657125 | O30: 5.60%
A31: 21 | B31: Finance | C31: BAJFINANCE | D31: 2677.20 | E31: 2672.87 | F31: 2656.23 | G31: 2635.27 | H31: 2618.63 | I31: 2693.83 | J31: 2710.47 | K31: 2731.43 | L31: 2689.5 | M31: 2651.9 | N31: 5618500 | O31: 1.61%
A32: 22 | B32: Others | C32: BALKRISIND | D32: 901.65 | E32: 899.58 | F32: 893.17 | G32: 884.68 | H32: 878.27 | I32: 908.07 | J32: 914.48 | K32: 922.97 | L32: 906 | M32: 891.1 | N32: 1664800 | O32: 1.27%
A33: 23 | B33: Banking | C33: BANKBARODA | D33: 108.65 | E33: 106.67 | F33: 104.33 | G33: 100.02 | H33: 97.68 | I33: 110.98 | J33: 113.32 | K33: 117.63 | L33: 109 | M33: 102.35 | N33: 57252000 | O33: 4.26%
A34: 24 | B34: Banking | C34: BANKINDIA | D34: 88.05 | E34: 86.87 | F34: 84.88 | G34: 81.72 | H34: 79.73 | I34: 90.03 | J34: 92.02 | K34: 95.18 | L34: 88.85 | M34: 83.7 | N34: 22746000 | O34: 12.33%
A35: 25 | B35: FMCG | C35: BATAINDIA | D35: 1286.90 | E35: 1287.83 | F35: 1277.07 | G35: 1267.23 | H35: 1256.47 | I35: 1297.67 | J35: 1308.43 | K35: 1318.27 | L35: 1298.6 | M35: 1278 | N35: 2153250 | O35: 2.84%
A36: 26 | B36: Capital_Goods | C36: BEL | D36: 84.80 | E36: 84.47 | F36: 83.68 | G36: 82.57 | H36: 81.78 | I36: 85.58 | J36: 86.37 | K36: 87.48 | L36: 85.25 | M36: 83.35 | N36: 32664000 | O36: 4.13%
A37: 27 | B37: Infrastructure | C37: BEML | D37: 857.35 | E37: 854.68 | F37: 844.67 | G37: 831.98 | H37: 821.97 | I37: 867.37 | J37: 877.38 | K37: 890.07 | L37: 864.7 | M37: 842 | N37: 1257200 | O37: 3.76%
A38: 28 | B38: Others | C38: BERGEPAINT | D38: 303.80 | E38: 304.73 | F38: 301.62 | G38: 299.43 | H38: 296.32 | I38: 306.92 | J38: 310.03 | K38: 312.22 | L38: 307.85 | M38: 302.55 | N38: 3929200 | O38: 1.19%
A39: 29 | B39: Finance | C39: BHARATFIN | D39: 955.80 | E39: 947.93 | F39: 936.07 | G39: 916.33 | H39: 904.47 | I39: 967.67 | J39: 979.53 | K39: 999.27 | L39: 959.8 | M39: 928.2 | N39: 5011500 | O39: 1.34%
A40: 30 | B40: Automobile | C40: BHARATFORG | D40: 522.95 | E40: 520.02 | F40: 515.58 | G40: 508.22 | H40: 503.78 | I40: 527.38 | J40: 531.82 | K40: 539.18 | L40: 524.45 | M40: 512.65 | N40: 10305600 | O40: 1.38%
A41: 31 | B41: Telecom | C41: BHARTIARTL | D41: 307.25 | E41: 308.33 | F41: 301.67 | G41: 296.08 | H41: 289.42 | I41: 313.92 | J41: 320.58 | K41: 326.17 | L41: 315 | M41: 302.75 | N41: 37493500 | O41: 5.09%
A42: 32 | B42: Capital_Goods | C42: BHEL | D42: 66.60 | E42: 66.20 | F42: 65.35 | G42: 64.10 | H42: 63.25 | I42: 67.45 | J42: 68.30 | K42: 69.55 | L42: 67.05 | M42: 64.95 | N42: 26070000 | O42: 4.38%
A43: 33 | B43: Pharma | C43: BIOCON | D43: 635.30 | E43: 632.05 | F43: 627.25 | G43: 619.20 | H43: 614.40 | I43: 640.10 | J43: 644.90 | K43: 652.95 | L43: 636.85 | M43: 624 | N43: 4894200 | O43: 0.59%
A44: 34 | B44: Automobile | C44: BOSCHLTD | D44: 18889.65 | E44: 18960.02 | F44: 18760.18 | G44: 18630.72 | H44: 18430.88 | I44: 19089.48 | J44: 19289.32 | K44: 19418.78 | L44: 19159.85 | M44: 18830.55 | N44: 133860 | O44: 1.94%
A45: 35 | B45: Oil_Gas | C45: BPCL | D45: 348.20 | E45: 345.33 | F45: 341.27 | G45: 334.33 | H45: 330.27 | I45: 352.27 | J45: 356.33 | K45: 363.27 | L45: 349.4 | M45: 338.4 | N45: 6156000 | O45: 13.28%
A46: 36 | B46: FMCG | C46: BRITANNIA | D46: 3090.00 | E46: 3088.62 | F46: 3074.38 | G46: 3058.77 | H46: 3044.53 | I46: 3104.23 | J46: 3118.47 | K46: 3134.08 | L46: 3102.85 | M46: 3073 | N46: 3035000 | O46: -0.10%
A47: 37 | B47: Pharma | C47: CADILAHC | D47: 325.65 | E47: 323.85 | F47: 321.20 | G47: 316.75 | H47: 314.10 | I47: 328.30 | J47: 330.95 | K47: 335.40 | L47: 326.5 | M47: 319.4 | N47: 9915200 | O47: 3.11%
A48: 38 | B48: Banking | C48: CANBK | D48: 243.90 | E48: 240.93 | F48: 236.67 | G48: 229.43 | H48: 225.17 | I48: 248.17 | J48: 252.43 | K48: 259.67 | L48: 245.2 | M48: 233.7 | N48: 11304000 | O48: 8.71%
A49: 39 | B49: Others | C49: CANFINHOME | D49: 278.05 | E49: 275.10 | F49: 270.65 | G49: 263.25 | H49: 258.80 | I49: 282.50 | J49: 286.95 | K49: 294.35 | L49: 279.55 | M49: 267.7 | N49: 4530600 | O49: 7.15%
A50: 40 | B50: Oil_Gas | C50: CASTROLIND | D50: 161.10 | E50: 159.37 | F50: 156.83 | G50: 152.57 | H50: 150.03 | I50: 163.63 | J50: 166.17 | K50: 170.43 | L50: 161.9 | M50: 155.1 | N50: 5440000 | O50: 0.82%
A51: 41 | B51: Automobile | C51: CEATLTD | D51: 1100.80 | E51: 1095.27 | F51: 1086.93 | G51: 1073.07 | H51: 1064.73 | I51: 1109.13 | J51: 1117.47 | K51: 1131.33 | L51: 1103.6 | M51: 1081.4 | N51: 1078000 | O51: -2.78%
A52: 42 | B52: Textile | C52: CENTURYTEX | D52: 833.80 | E52: 827.40 | F52: 816.40 | G52: 799.00 | H52: 788.00 | I52: 844.80 | J52: 855.80 | K52: 873.20 | L52: 838.4 | M52: 810 | N52: 4659000 | O52: 0.18%
A53: 43 | B53: Power | C53: CESC | D53: 689.95 | E53: 686.48 | F53: 678.97 | G53: 667.98 | H53: 660.47 | I53: 697.47 | J53: 704.98 | K53: 715.97 | L53: 694 | M53: 675.5 | N53: 1235300 | O53: 4.95%
A54: 44 | B54: Power | C54: CGPOWER | D54: 36.85 | E54: 35.62 | F54: 33.98 | G54: 31.12 | H54: 29.48 | I54: 38.48 | J54: 40.12 | K54: 42.98 | L54: 37.25 | M54: 32.75 | N54: 50400000 | O54: 16.86%
A55: 45 | B55: Others | C55: CHENNPETRO | D55: 241.35 | E55: 238.28 | F55: 233.97 | G55: 226.58 | H55: 222.27 | I55: 245.67 | J55: 249.98 | K55: 257.37 | L55: 242.6 | M55: 230.9 | N55: 1409400 | O55: -5.78%
A56: 46 | B56: Others | C56: CHOLAFIN | D56: 1274.15 | E56: 1263.93 | F56: 1248.22 | G56: 1222.28 | H56: 1206.57 | I56: 1289.87 | J56: 1305.58 | K56: 1331.52 | L56: 1279.65 | M56: 1238 | N56: 707000 | O56: -7.16%
A57: 47 | B57: Pharma | C57: CIPLA | D57: 552.20 | E57: 552.73 | F57: 548.17 | G57: 544.13 | H57: 539.57 | I57: 556.77 | J57: 561.33 | K57: 565.37 | L57: 557.3 | M57: 548.7 | N57: 8575000 | O57: 4.07%
A58: 48 | B58: Others | C58: COALINDIA | D58: 229.30 | E58: 228.07 | F58: 225.53 | G58: 221.77 | H58: 219.23 | I58: 231.83 | J58: 234.37 | K58: 238.13 | L58: 230.6 | M58: 224.3 | N58: 18757200 | O58: -3.21%
A59: 49 | B59: FMCG | C59: COLPAL | D59: 1252.10 | E59: 1255.58 | F59: 1244.62 | G59: 1237.13 | H59: 1226.17 | I59: 1263.07 | J59: 1274.03 | K59: 1281.52 | L59: 1266.55 | M59: 1248.1 | N59: 1624700 | O59: 2.07%
A60: 50 | B60: Others | C60: CONCOR | D60: 481.00 | E60: 478.40 | F60: 473.75 | G60: 466.50 | H60: 461.85 | I60: 485.65 | J60: 490.30 | K60: 497.55 | L60: 483.05 | M60: 471.15 | N60: 1678662 | O60: 12.93%
A61: 51 | B61: Capital_Goods | C61: CUMMINSIND | D61: 710.15 | E61: 711.15 | F61: 705.30 | G61: 700.45 | H61: 694.60 | I61: 716.00 | J61: 721.85 | K61: 726.70 | L61: 717 | M61: 706.3 | N61: 1276100 | O61: 1.96%
A62: 52 | B62: FMCG | C62: DABUR | D62: 446.50 | E62: 444.60 | F62: 442.00 | G62: 437.50 | H62: 434.90 | I62: 449.10 | J62: 451.70 | K62: 456.20 | L62: 447.2 | M62: 440.1 | N62: 10687500 | O62: -3.81%
A63: 53 | B63: Banking | C63: DCBBANK | D63: 184.45 | E63: 184.97 | F63: 183.08 | G63: 181.72 | H63: 179.83 | I63: 186.33 | J63: 188.22 | K63: 189.58 | L63: 186.85 | M63: 183.6 | N63: 3699000 | O63: -2.38%
A64: 54 | B64: Finance | C64: DHFL | D64: 129.75 | E64: 130.38 | F64: 127.42 | G64: 125.08 | H64: 122.12 | I64: 132.72 | J64: 135.68 | K64: 138.02 | L64: 133.35 | M64: 128.05 | N64: 16315500 | O64: 15.89%
A65: 55 | B65: Media | C65: DISHTV | D65: 41.60 | E65: 40.85 | F65: 39.60 | G65: 37.60 | H65: 36.35 | I65: 42.85 | J65: 44.10 | K65: 46.10 | L65: 42.1 | M65: 38.85 | N65: 55720000 | O65: 12.70%
A66: 56 | B66: Pharma | C66: DIVISLAB | D66: 1678.30 | E66: 1668.67 | F66: 1655.63 | G66: 1632.97 | H66: 1619.93 | I66: 1691.33 | J66: 1704.37 | K66: 1727.03 | L66: 1681.7 | M66: 1646 | N66: 2955200 | O66: 3.59%
A67: 57 | B67: Realty | C67: DLF | D67: 168.30 | E67: 168.12 | F67: 165.88 | G67: 163.47 | H67: 161.23 | I67: 170.53 | J67: 172.77 | K67: 175.18 | L67: 170.35 | M67: 165.7 | N67: 21455200 | O67: 4.75%
A68: 58 | B68: Pharma | C68: DRREDDY | D68: 2654.65 | E68: 2637.22 | F68: 2609.48 | G68: 2564.32 | H68: 2536.58 | I68: 2682.38 | J68: 2710.12 | K68: 2755.28 | L68: 2664.95 | M68: 2592.05 | N68: 4138250 | O68: 2.27%
A69: 59 | B69: Automobile | C69: EICHERMOT | D69: 20052.95 | E69: 20013.30 | F69: 19876.65 | G69: 19700.35 | H69: 19563.70 | I69: 20189.60 | J69: 20326.25 | K69: 20502.55 | L69: 20149.95 | M69: 19837 | N69: 379875 | O69: 1.83%
A70: 60 | B70: Infrastructure | C70: ENGINERSIN | D70: 110.90 | E70: 110.07 | F70: 108.68 | G70: 106.47 | H70: 105.08 | I70: 112.28 | J70: 113.67 | K70: 115.88 | L70: 111.45 | M70: 107.85 | N70: 7539900 | O70: -5.35%
A71: 61 | B71: Finance | C71: EQUITAS | D71: 116.85 | E71: 116.42 | F71: 114.33 | G71: 111.82 | H71: 109.73 | I71: 118.93 | J71: 121.02 | K71: 123.53 | L71: 118.5 | M71: 113.9 | N71: 12188000 | O71: 9.92%
A72: 62 | B72: Automobile | C72: ESCORTS | D72: 678.70 | E72: 675.53 | F72: 670.17 | G72: 661.63 | H72: 656.27 | I72: 684.07 | J72: 689.43 | K72: 697.97 | L72: 680.9 | M72: 667 | N72: 3117400 | O72: 8.71%
A73: 63 | B73: Automobile | C73: EXIDEIND | D73: 219.80 | E73: 220.45 | F73: 217.40 | G73: 215.00 | H73: 211.95 | I73: 222.85 | J73: 225.90 | K73: 228.30 | L73: 223.5 | M73: 218.05 | N73: 7858000 | O73: 4.36%
A74: 64 | B74: Banking | C74: FEDERALBNK | D74: 86.30 | E74: 85.67 | F74: 84.78 | G74: 83.27 | H74: 82.38 | I74: 87.18 | J74: 88.07 | K74: 89.58 | L74: 86.55 | M74: 84.15 | N74: 46333000 | O74: 4.98%
A75: 65 | B75: Oil_Gas | C75: GAIL | D75: 344.95 | E75: 346.25 | F75: 342.70 | G75: 340.45 | H75: 336.90 | I75: 348.50 | J75: 352.05 | K75: 354.30 | L75: 349.8 | M75: 344 | N75: 9115806 | O75: -4.02%
A76: 66 | B76: Pharma | C76: GLENMARK | D76: 602.45 | E76: 600.18 | F76: 594.37 | G76: 586.28 | H76: 580.47 | I76: 608.27 | J76: 614.08 | K76: 622.17 | L76: 606 | M76: 592.1 | N76: 3807000 | O76: 0.85%
A77: 67 | B77: Infrastructure | C77: GMRINFRA | D77: 16.80 | E77: 16.72 | F77: 16.58 | G77: 16.37 | H77: 16.23 | I77: 16.93 | J77: 17.07 | K77: 17.28 | L77: 16.85 | M77: 16.5 | N77: 143235000 | O77: 0.89%
A78: 68 | B78: Others | C78: GODFRYPHLP | D78: 909.60 | E78: 905.00 | F78: 894.60 | G78: 879.60 | H78: 869.20 | I78: 920.00 | J78: 930.40 | K78: 945.40 | L78: 915.4 | M78: 890 | N78: 441000 | O78: -0.47%
A79: 69 | B79: FMCG | C79: GODREJCP | D79: 683.10 | E79: 683.72 | F79: 676.58 | G79: 670.07 | H79: 662.93 | I79: 690.23 | J79: 697.37 | K79: 703.88 | L79: 690.85 | M79: 677.2 | N79: 6703800 | O79: 3.41%
A80: 70 | B80: FMCG | C80: GODREJIND | D80: 497.75 | E80: 500.07 | F80: 493.73 | G80: 489.72 | H80: 483.38 | I80: 504.08 | J80: 510.42 | K80: 514.43 | L80: 506.4 | M80: 496.05 | N80: 1270500 | O80: -0.94%
A81: 71 | B81: Cement | C81: GRASIM | D81: 797.55 | E81: 793.68 | F81: 787.47 | G81: 777.38 | H81: 771.17 | I81: 803.77 | J81: 809.98 | K81: 820.07 | L81: 799.9 | M81: 783.6 | N81: 11589750 | O81: 3.48%
A82: 72 | B82: Others | C82: GSFC | D82: 94.95 | E82: 94.22 | F82: 92.73 | G82: 90.52 | H82: 89.03 | I82: 96.43 | J82: 97.92 | K82: 100.13 | L82: 95.7 | M82: 92 | N82: 10983900 | O82: 0.78%
A83: 73 | B83: Others | C83: HAVELLS | D83: 711.85 | E83: 716.72 | F83: 704.43 | G83: 697.02 | H83: 684.73 | I83: 724.13 | J83: 736.42 | K83: 743.83 | L83: 729 | M83: 709.3 | N83: 5091000 | O83: 5.34%
A84: 74 | B84: Technology | C84: HCLTECH | D84: 1060.55 | E84: 1059.78 | F84: 1051.97 | G84: 1043.38 | H84: 1035.57 | I84: 1068.37 | J84: 1076.18 | K84: 1084.77 | L84: 1067.6 | M84: 1051.2 | N84: 8260000 | O84: 0.94%
A85: 75 | B85: Finance | C85: HDFC | D85: 1867.65 | E85: 1861.53 | F85: 1852.37 | G85: 1837.08 | H85: 1827.92 | I85: 1876.82 | J85: 1885.98 | K85: 1901.27 | L85: 1870.7 | M85: 1846.25 | N85: 28472000 | O85: 1.17%
A86: 76 | B86: Banking | C86: HDFCBANK | D86: 2097.35 | E86: 2099.95 | F86: 2087.90 | G86: 2078.45 | H86: 2066.40 | I86: 2109.40 | J86: 2121.45 | K86: 2130.90 | L86: 2112 | M86: 2090.5 | N86: 9205250 | O86: 5.95%
A87: 77 | B87: Automobile | C87: HEROMOTOCO | D87: 2685.40 | E87: 2680.02 | F87: 2655.38 | G87: 2625.37 | H87: 2600.73 | I87: 2710.03 | J87: 2734.67 | K87: 2764.68 | L87: 2704.65 | M87: 2650 | N87: 2228000 | O87: -0.03%
A88: 78 | B88: Technology | C88: HEXAWARE | D88: 360.60 | E88: 359.65 | F88: 356.95 | G88: 353.30 | H88: 350.60 | I88: 363.30 | J88: 366.00 | K88: 369.65 | L88: 362.35 | M88: 356 | N88: 2965500 | O88: -0.20%
A89: 79 | B89: Metals | C89: HINDALCO | D89: 197.60 | E89: 198.07 | F89: 196.13 | G89: 194.67 | H89: 192.73 | I89: 199.53 | J89: 201.47 | K89: 202.93 | L89: 200 | M89: 196.6 | N89: 35339500 | O89: 4.89%
A90: 80 | B90: Oil_Gas | C90: HINDPETRO | D90: 234.20 | E90: 231.32 | F90: 227.38 | G90: 220.57 | H90: 216.63 | I90: 238.13 | J90: 242.07 | K90: 248.88 | L90: 235.25 | M90: 224.5 | N90: 13288800 | O90: 0.91%
A91: 81 | B91: FMCG | C91: HINDUNILVR | D91: 1747.00 | E91: 1749.67 | F91: 1739.33 | G91: 1731.67 | H91: 1721.33 | I91: 1757.33 | J91: 1767.67 | K91: 1775.33 | L91: 1760 | M91: 1742 | N91: 10137600 | O91: 1.42%
A92: 82 | B92: Metals | C92: HINDZINC | D92: 268.15 | E92: 268.15 | F92: 266.60 | G92: 265.05 | H92: 263.50 | I92: 269.70 | J92: 271.25 | K92: 272.80 | L92: 269.7 | M92: 266.6 | N92: 4028800 | O92: 5.71%
A93: 83 | B93: Finance | C93: IBULHSGFIN | D93: 676.20 | E93: 671.83 | F93: 663.92 | G93: 651.63 | H93: 643.72 | I93: 684.12 | J93: 692.03 | K93: 704.32 | L93: 679.75 | M93: 659.55 | N93: 15148000 | O93: 3.72%
A94: 84 | B94: Banking | C94: ICICIBANK | D94: 355.50 | E94: 354.65 | F94: 352.90 | G94: 350.30 | H94: 348.55 | I94: 357.25 | J94: 359.00 | K94: 361.60 | L94: 356.4 | M94: 352.05 | N94: 84216000 | O94: -0.56%
A95: 85 | B95: Others | C95: ICICIPRULI | D95: 323.00 | E95: 325.87 | F95: 317.28 | G95: 311.57 | H95: 302.98 | I95: 331.58 | J95: 340.17 | K95: 345.88 | L95: 334.45 | M95: 320.15 | N95: 5535000 | O95: 5.22%
A96: 86 | B96: Banking | C96: IDBI | D96: 44.70 | E96: 44.27 | F96: 43.58 | G96: 42.47 | H96: 41.78 | I96: 45.38 | J96: 46.07 | K96: 47.18 | L96: 44.95 | M96: 43.15 | N96: 27230000 | O96: 10.11%
A97: 87 | B97: Telecom | C97: IDEA | D97: 28.70 | E97: 28.83 | F97: 28.17 | G97: 27.63 | H97: 26.97 | I97: 29.37 | J97: 30.03 | K97: 30.57 | L97: 29.5 | M97: 28.3 | N97: 156876000 | O97: 9.43%
A98: 88 | B98: Finance | C98: IDFC | D98: 40.40 | E98: 39.37 | F98: 38.23 | G98: 36.07 | H98: 34.93 | I98: 41.53 | J98: 42.67 | K98: 44.83 | L98: 40.5 | M98: 37.2 | N98: 102907200 | O98: -2.82%
A99: 89 | B99: Banking | C99: IDFCFIRSTB | D99: 47.80 | E99: 47.00 | F99: 46.05 | G99: 44.30 | H99: 43.35 | I99: 48.75 | J99: 49.70 | K99: 51.45 | L99: 47.95 | M99: 45.25 | N99: 127428000 | O99: 3.37%
A100: 90 | B100: Finance | C100: IFCI | D100: 13.45 | E100: 13.18 | F100: 12.87 | G100: 12.28 | H100: 11.97 | I100: 13.77 | J100: 14.08 | K100: 14.67 | L100: 13.5 | M100: 12.6 | N100: 48195000 | O100: 3.85%
A101: 91 | B101: Oil_Gas | C101: IGL | D101: 292.95 | E101: 292.55 | F101: 290.70 | G101: 288.45 | H101: 286.60 | I101: 294.80 | J101: 296.65 | K101: 298.90 | L101: 294.4 | M101: 290.3 | N101: 3308250 | O101: -0.08%
A102: 92 | B102: Cement | C102: INDIACEM | D102: 92.95 | E102: 91.62 | F102: 89.58 | G102: 86.22 | H102: 84.18 | I102: 94.98 | J102: 97.02 | K102: 100.38 | L102: 93.65 | M102: 88.25 | N102: 21622500 | O102: 2.87%
A103: 93 | B103: Banking | C103: INDIANB | D103: 228.55 | E103: 226.13 | F103: 221.67 | G103: 214.78 | H103: 210.32 | I103: 233.02 | J103: 237.48 | K103: 244.37 | L103: 230.6 | M103: 219.25 | N103: 3410000 | O103: 0.59%
A104: 94 | B104: Others | C104: INDIGO | D104: 1127.20 | E104: 1120.75 | F104: 1107.45 | G104: 1087.70 | H104: 1074.40 | I104: 1140.50 | J104: 1153.80 | K104: 1173.55 | L104: 1134.05 | M104: 1101 | N104: 2311200 | O104: 0.26%
A105: 95 | B105: Banking | C105: INDUSINDBK | D105: 1524.40 | E105: 1511.20 | F105: 1493.35 | G105: 1462.30 | H105: 1444.45 | I105: 1542.25 | J105: 1560.10 | K105: 1591.15 | L105: 1529.05 | M105: 1480.15 | N105: 7240200 | O105: 4.59%
A106: 96 | B106: Technology | C106: INFIBEAM | D106: 36.40 | E106: 36.28 | F106: 35.82 | G106: 35.23 | H106: 34.77 | I106: 36.87 | J106: 37.33 | K106: 37.92 | L106: 36.75 | M106: 35.7 | N106: 13640000 | O106: 7.33%
A107: 97 | B107: Telecom | C107: INFRATEL | D107: 295.05 | E107: 296.23 | F107: 293.02 | G107: 290.98 | H107: 287.77 | I107: 298.27 | J107: 301.48 | K107: 303.52 | L107: 299.45 | M107: 294.2 | N107: 6178000 | O107: -6.93%
A108: 98 | B108: Technology | C108: INFY | D108: 746.60 | E108: 744.42 | F108: 741.08 | G108: 735.57 | H108: 732.23 | I108: 749.93 | J108: 753.27 | K108: 758.78 | L108: 747.75 | M108: 738.9 | N108: 43617600 | O108: 2.13%
A109: 99 | B109: Oil_Gas | C109: IOC | D109: 147.90 | E109: 146.45 | F109: 144.25 | G109: 140.60 | H109: 138.40 | I109: 150.10 | J109: 152.30 | K109: 155.95 | L109: 148.65 | M109: 142.8 | N109: 34797000 | O109: 2.77%
A110: 100 | B110: Infrastructure | C110: IRB | D110: 141.85 | E110: 140.48 | F110: 137.67 | G110: 133.48 | H110: 130.67 | I110: 144.67 | J110: 147.48 | K110: 151.67 | L110: 143.3 | M110: 136.3 | N110: 6966400 | O110: -4.64%
A111: 101 | B111: FMCG | C111: ITC | D111: 279.75 | E111: 279.42 | F111: 278.33 | G111: 276.92 | H111: 275.83 | I111: 280.83 | J111: 281.92 | K111: 283.33 | L111: 280.5 | M111: 278 | N111: 62092800 | O111: 1.97%
A112: 102 | B112: Others | C112: JETAIRWAYS | D112: 228.30 | E112: 227.15 | F112: 220.50 | G112: 212.70 | H112: 206.05 | I112: 234.95 | J112: 241.60 | K112: 249.40 | L112: 233.8 | M112: 219.35 | N112: 5414200 | O112: 6.44%
A113: 103 | B113: Metals | C113: JINDALSTEL | D113: 162.70 | E113: 161.62 | F113: 159.08 | G113: 155.47 | H113: 152.93 | I113: 165.23 | J113: 167.77 | K113: 171.38 | L113: 164.15 | M113: 158 | N113: 25265250 | O113: 6.23%
A114: 104 | B114: Others | C114: JISLJALEQS | D114: 61.20 | E114: 60.07 | F114: 58.68 | G114: 56.17 | H114: 54.78 | I114: 62.58 | J114: 63.97 | K114: 66.48 | L114: 61.45 | M114: 57.55 | N114: 36270000 | O114: 8.57%
A115: 105 | B115: Realty | C115: JPASSOCIAT | D115: 6.30 | E115: 6.25 | F115: 6.20 | G115: 6.10 | H115: 6.05 | I115: 6.35 | J115: 6.40 | K115: 6.50 | L115: 6.3 | M115: 6.15 | N115: 76065000 | O115: 1.47%
A116: 106 | B116: Metals | C116: JSWSTEEL | D116: 284.05 | E116: 284.23 | F116: 282.07 | G116: 280.08 | H116: 277.92 | I116: 286.22 | J116: 288.38 | K116: 290.37 | L116: 286.4 | M116: 282.25 | N116: 59533500 | O116: 1.48%
A117: 107 | B117: Others | C117: JUBLFOOD | D117: 1285.10 | E117: 1282.15 | F117: 1274.60 | G117: 1264.10 | H117: 1256.55 | I117: 1292.65 | J117: 1300.20 | K117: 1310.70 | L117: 1289.7 | M117: 1271.65 | N117: 2502000 | O117: -2.82%
A118: 108 | B118: Others | C118: JUSTDIAL | D118: 531.00 | E118: 524.13 | F118: 507.97 | G118: 484.93 | H118: 468.77 | I118: 547.17 | J118: 563.33 | K118: 586.37 | L118: 540.3 | M118: 501.1 | N118: 2482200 | O118: 27.28%
A119: 109 | B119: Others | C119: KAJARIACER | D119: 559.05 | E119: 557.18 | F119: 549.47 | G119: 539.88 | H119: 532.17 | I119: 566.77 | J119: 574.48 | K119: 584.07 | L119: 564.9 | M119: 547.6 | N119: 1922700 | O119: 3.79%
A120: 110 | B120: Banking | C120: KOTAKBANK | D120: 1230.75 | E120: 1229.78 | F120: 1223.97 | G120: 1217.18 | H120: 1211.37 | I120: 1236.57 | J120: 1242.38 | K120: 1249.17 | L120: 1235.6 | M120: 1223 | N120: 13425600 | O120: -0.55%
A121: 111 | B121: Technology | C121: BSOFT | D121: 108.35 | E121: 108.58 | F121: 107.42 | G121: 106.48 | H121: 105.32 | I121: 109.52 | J121: 110.68 | K121: 111.62 | L121: 109.75 | M121: 107.65 | N121: 3561750 | O121: 0.83%
A122: 112 | B122: Others | C122: KSCL | D122: 410.00 | E122: 410.75 | F122: 406.50 | G122: 403.00 | H122: 398.75 | I122: 414.25 | J122: 418.50 | K122: 422.00 | L122: 415 | M122: 407.25 | N122: 1333500 | O122: 1.37%
A123: 113 | B123: Banking | C123: KTKBANK | D123: 116.55 | E123: 115.75 | F123: 114.55 | G123: 112.55 | H123: 111.35 | I123: 117.75 | J123: 118.95 | K123: 120.95 | L123: 116.95 | M123: 113.75 | N123: 11985000 | O123: 3.53%
A124: 114 | B124: Finance | C124: L&TFH | D124: 128.90 | E124: 127.95 | F124: 126.20 | G124: 123.50 | H124: 121.75 | I124: 130.65 | J124: 132.40 | K124: 135.10 | L124: 129.7 | M124: 125.25 | N124: 24475500 | O124: 2.62%
A125: 115 | B125: Finance | C125: LICHSGFIN | D125: 478.10 | E125: 479.25 | F125: 473.00 | G125: 467.90 | H125: 461.65 | I125: 484.35 | J125: 490.60 | K125: 495.70 | L125: 485.5 | M125: 474.15 | N125: 8666900 | O125: 2.32%
A126: 116 | B126: Capital_Goods | C126: LT | D126: 1307.00 | E126: 1307.10 | F126: 1301.35 | G126: 1295.70 | H126: 1289.95 | I126: 1312.75 | J126: 1318.50 | K126: 1324.15 | L126: 1312.85 | M126: 1301.45 | N126: 7776000 | O126: -1.81%
A127: 117 | B127: Pharma | C127: LUPIN | D127: 791.35 | E127: 786.25 | F127: 778.50 | G127: 765.65 | H127: 757.90 | I127: 799.10 | J127: 806.85 | K127: 819.70 | L127: 794 | M127: 773.4 | N127: 8758400 | O127: -0.64%
A128: 118 | B128: Automobile | C128: M&M | D128: 653.15 | E128: 651.15 | F128: 646.10 | G128: 639.05 | H128: 634.00 | I128: 658.20 | J128: 663.25 | K128: 670.30 | L128: 656.2 | M128: 644.1 | N128: 22055000 | O128: 6.95%
A129: 119 | B129: Finance | C129: M&MFIN | D129: 413.80 | E129: 409.45 | F129: 403.80 | G129: 393.80 | H129: 388.15 | I129: 419.45 | J129: 425.10 | K129: 435.10 | L129: 415.1 | M129: 399.45 | N129: 11296250 | O129: 0.57%
A130: 120 | B130: Others | C130: MANAPPURAM | D130: 115.95 | E130: 115.20 | F130: 113.90 | G130: 111.85 | H130: 110.55 | I130: 117.25 | J130: 118.55 | K130: 120.60 | L130: 116.5 | M130: 113.15 | N130: 8982000 | O130: 8.01%
A131: 121 | B131: FMCG | C131: MARICO | D131: 337.30 | E131: 338.38 | F131: 332.27 | G131: 327.23 | H131: 321.12 | I131: 343.42 | J131: 349.53 | K131: 354.57 | L131: 344.5 | M131: 333.35 | N131: 6541600 | O131: 6.34%
A132: 122 | B132: Automobile | C132: MARUTI | D132: 6980.20 | E132: 6950.47 | F132: 6902.93 | G132: 6825.67 | H132: 6778.13 | I132: 7027.73 | J132: 7075.27 | K132: 7152.53 | L132: 6998 | M132: 6873.2 | N132: 2699250 | O132: 1.49%
A133: 123 | B133: FMCG | C133: MCDOWELL-N | D133: 566.45 | E133: 561.85 | F133: 555.30 | G133: 544.15 | H133: 537.60 | I133: 573.00 | J133: 579.55 | K133: 590.70 | L133: 568.4 | M133: 550.7 | N133: 11148750 | O133: -1.96%
A134: 124 | B134: Others | C134: MCX | D134: 681.00 | E134: 677.52 | F134: 667.03 | G134: 653.07 | H134: 642.58 | I134: 691.48 | J134: 701.97 | K134: 715.93 | L134: 688 | M134: 663.55 | N134: 2202900 | O134: 4.80%
A135: 125 | B135: Finance | C135: MFSL | D135: 404.55 | E135: 404.42 | F135: 400.23 | G135: 395.92 | H135: 391.73 | I135: 408.73 | J135: 412.92 | K135: 417.23 | L135: 408.6 | M135: 400.1 | N135: 1935600 | O135: 7.61%
A136: 126 | B136: Others | C136: MGL | D136: 923.90 | E136: 919.95 | F136: 914.00 | G136: 904.10 | H136: 898.15 | I136: 929.85 | J136: 935.80 | K136: 945.70 | L136: 925.9 | M136: 910.05 | N136: 792000 | O136: 0.38%
A137: 127 | B137: Technology | C137: MINDTREE | D137: 935.00 | E137: 929.03 | F137: 917.37 | G137: 899.73 | H137: 888.07 | I137: 946.67 | J137: 958.33 | K137: 975.97 | L137: 940.7 | M137: 911.4 | N137: 2676000 | O137: 1.29%
A138: 128 | B138: Automobile | C138: MOTHERSUMI | D138: 161.15 | E138: 162.38 | F138: 158.87 | G138: 156.58 | H138: 153.07 | I138: 164.67 | J138: 168.18 | K138: 170.47 | L138: 165.9 | M138: 160.1 | N138: 27796050 | O138: 5.09%
A139: 129 | B139: Automobile | C139: MRF | D139: 57574.15 | E139: 57546.35 | F139: 57334.70 | G139: 57095.25 | H139: 56883.60 | I139: 57785.80 | J139: 57997.45 | K139: 58236.90 | L139: 57758 | M139: 57306.9 | N139: 34510 | O139: 2.98%
A140: 130 | B140: Others | C140: MRPL | D140: 67.95 | E140: 67.40 | F140: 66.25 | G140: 64.55 | H140: 63.40 | I140: 69.10 | J140: 70.25 | K140: 71.95 | L140: 68.55 | M140: 65.7 | N140: 5397000 | O140: 6.34%
A141: 131 | B141: Finance | C141: MUTHOOTFIN | D141: 531.35 | E141: 531.73 | F141: 526.92 | G141: 522.48 | H141: 517.67 | I141: 536.17 | J141: 540.98 | K141: 545.42 | L141: 536.55 | M141: 527.3 | N141: 1842000 | O141: 10.53%
A142: 132 | B142: Others | C142: NATIONALUM | D142: 53.80 | E142: 52.93 | F142: 51.87 | G142: 49.93 | H142: 48.87 | I142: 54.87 | J142: 55.93 | K142: 57.87 | L142: 54 | M142: 51 | N142: 38648000 | O142: -10.57%
A143: 133 | B143: Others | C143: NBCC | D143: 55.35 | E143: 54.80 | F143: 53.85 | G143: 52.35 | H143: 51.40 | I143: 56.30 | J143: 57.25 | K143: 58.75 | L143: 55.75 | M143: 53.3 | N143: 28320000 | O143: 0.83%
A144: 134 | B144: Infrastructure | C144: NCC | D144: 89.70 | E144: 88.75 | F144: 86.80 | G144: 83.90 | H144: 81.95 | I144: 91.65 | J144: 93.60 | K144: 96.50 | L144: 90.7 | M144: 85.85 | N144: 43992000 | O144: 4.03%
A145: 135 | B145: Others | C145: NESTLEIND | D145: 10529.75 | E145: 10591.92 | F145: 10403.98 | G145: 10278.22 | H145: 10090.28 | I145: 10717.68 | J145: 10905.62 | K145: 11031.38 | L145: 10779.85 | M145: 10466.15 | N145: 283900 | O145: 7.56%
A146: 136 | B146: Power | C146: NHPC | D146: 23.25 | E146: 23.12 | F146: 22.88 | G146: 22.52 | H146: 22.28 | I146: 23.48 | J146: 23.72 | K146: 24.08 | L146: 23.35 | M146: 22.75 | N146: 21465000 | O146: 1.66%
A147: 137 | B147: Technology | C147: NIITTECH | D147: 1329.55 | E147: 1325.90 | F147: 1315.05 | G147: 1300.55 | H147: 1289.70 | I147: 1340.40 | J147: 1351.25 | K147: 1365.75 | L147: 1336.75 | M147: 1311.4 | N147: 1374750 | O147: -0.05%
A148: 138 | B148: Metals | C148: NMDC | D148: 101.65 | E148: 101.30 | F148: 100.55 | G148: 99.45 | H148: 98.70 | I148: 102.40 | J148: 103.15 | K148: 104.25 | L148: 102.05 | M148: 100.2 | N148: 17466000 | O148: 0.76%
A149: 139 | B149: Power | C149: NTPC | D149: 143.65 | E149: 142.75 | F149: 141.20 | G149: 138.75 | H149: 137.20 | I149: 145.20 | J149: 146.75 | K149: 149.20 | L149: 144.3 | M149: 140.3 | N149: 37784000 | O149: 3.89%
A150: 140 | B150: Technology | C150: OFSS | D150: 3528.50 | E150: 3534.68 | F150: 3509.42 | G150: 3490.33 | H150: 3465.07 | I150: 3553.77 | J150: 3579.03 | K150: 3598.12 | L150: 3559.95 | M150: 3515.6 | N150: 145950 | O150: -2.21%
A151: 141 | B151: Oil_Gas | C151: OIL | D151: 179.65 | E151: 178.65 | F151: 177.30 | G151: 174.95 | H151: 173.60 | I151: 181.00 | J151: 182.35 | K151: 184.70 | L151: 180 | M151: 176.3 | N151: 5013525 | O151: 2.29%
A152: 142 | B152: Oil_Gas | C152: ONGC | D152: 150.05 | E152: 149.92 | F152: 148.83 | G152: 147.62 | H152: 146.53 | I152: 151.13 | J152: 152.22 | K152: 153.43 | L152: 151 | M152: 148.7 | N152: 27153750 | O152: 0.72%
A153: 143 | B153: Banking | C153: ORIENTBANK | D153: 92.40 | E153: 89.75 | F153: 86.50 | G153: 80.60 | H153: 77.35 | I153: 95.65 | J153: 98.90 | K153: 104.80 | L153: 93 | M153: 83.85 | N153: 14007000 | O153: 27.21%
A154: 144 | B154: Textile | C154: PAGEIND | D154: 22415.40 | E154: 22493.77 | F154: 22249.58 | G154: 22083.77 | H154: 21839.58 | I154: 22659.58 | J154: 22903.77 | K154: 23069.58 | L154: 22737.95 | M154: 22327.95 | N154: 142850 | O154: 2.53%
A155: 145 | B155: Others | C155: PCJEWELLER | D155: 72.40 | E155: 72.00 | F155: 70.50 | G155: 68.60 | H155: 67.10 | I155: 73.90 | J155: 75.40 | K155: 77.30 | L155: 73.5 | M155: 70.1 | N155: 8788000 | O155: 6.46%
A156: 146 | B156: Pharma | C156: PEL | D156: 2382.50 | E156: 2369.63 | F156: 2345.27 | G156: 2308.03 | H156: 2283.67 | I156: 2406.87 | J156: 2431.23 | K156: 2468.47 | L156: 2394 | M156: 2332.4 | N156: 3454276 | O156: 0.34%
A157: 147 | B157: Oil_Gas | C157: PETRONET | D157: 224.95 | E157: 225.37 | F157: 223.28 | G157: 221.62 | H157: 219.53 | I157: 227.03 | J157: 229.12 | K157: 230.78 | L157: 227.45 | M157: 223.7 | N157: 11238000 | O157: -0.45%
A158: 148 | B158: Finance | C158: PFC | D158: 113.70 | E158: 113.55 | F158: 112.45 | G158: 111.20 | H158: 110.10 | I158: 114.80 | J158: 115.90 | K158: 117.15 | L158: 114.65 | M158: 112.3 | N158: 23057800 | O158: 4.47%
A159: 149 | B159: FMCG | C159: PIDILITIND | D159: 1151.10 | E159: 1151.03 | F159: 1137.07 | G159: 1123.03 | H159: 1109.07 | I159: 1165.07 | J159: 1179.03 | K159: 1193.07 | L159: 1165 | M159: 1137 | N159: 1981000 | O159: 2.40%
A160: 150 | B160: Banking | C160: PNB | D160: 77.15 | E160: 75.93 | F160: 74.32 | G160: 71.48 | H160: 69.87 | I160: 78.77 | J160: 80.38 | K160: 83.22 | L160: 77.55 | M160: 73.1 | N160: 102011000 | O160: 2.95%
A161: 151 | B161: Power | C161: POWERGRID | D161: 180.80 | E161: 180.73 | F161: 180.17 | G161: 179.53 | H161: 178.97 | I161: 181.37 | J161: 181.93 | K161: 182.57 | L161: 181.3 | M161: 180.1 | N161: 19700000 | O161: 6.60%
A162: 152 | B162: Others | C162: PVR | D162: 1501.00 | E162: 1506.53 | F162: 1488.12 | G162: 1475.23 | H162: 1456.82 | I162: 1519.42 | J162: 1537.83 | K162: 1550.72 | L162: 1524.95 | M162: 1493.65 | N162: 1315600 | O162: 0.52%
A163: 153 | B163: Cement | C163: RAMCOCEM | D163: 693.40 | E163: 686.25 | F163: 677.15 | G163: 660.90 | H163: 651.80 | I163: 702.50 | J163: 711.60 | K163: 727.85 | L163: 695.35 | M163: 670 | N163: 792800 | O163: 8.07%
A164: 154 | B164: Others | C164: RAYMOND | D164: 787.55 | E164: 784.77 | F164: 774.73 | G164: 761.92 | H164: 751.88 | I164: 797.58 | J164: 807.62 | K164: 820.43 | L164: 794.8 | M164: 771.95 | N164: 3612000 | O164: -0.66%
A165: 155 | B165: Banking | C165: RBLBANK | D165: 596.75 | E165: 590.55 | F165: 582.30 | G165: 567.85 | H165: 559.60 | I165: 605.00 | J165: 613.25 | K165: 627.70 | L165: 598.8 | M165: 576.1 | N165: 4298400 | O165: 9.71%
A166: 157 | B166: Power | C166: RECLTD | D166: 137.65 | E166: 137.48 | F166: 136.52 | G166: 135.38 | H166: 134.42 | I166: 138.62 | J166: 139.58 | K166: 140.72 | L166: 138.45 | M166: 136.35 | N166: 31362000 | O166: 11.00%
A167: 158 | B167: Finance | C167: RELCAPITAL | D167: 182.80 | E167: 180.60 | F167: 176.30 | G167: 169.80 | H167: 165.50 | I167: 187.10 | J167: 191.40 | K167: 197.90 | L167: 184.9 | M167: 174.1 | N167: 7011000 | O167: 5.15%
A168: 159 | B168: Oil_Gas | C168: RELIANCE | D168: 1234.95 | E168: 1238.05 | F168: 1227.10 | G168: 1219.25 | H168: 1208.30 | I168: 1245.90 | J168: 1256.85 | K168: 1264.70 | L168: 1249 | M168: 1230.2 | N168: 51865000 | O168: 2.92%
A169: 160 | B169: Power | C169: RELINFRA | D169: 126.20 | E169: 125.83 | F169: 122.87 | G169: 119.53 | H169: 116.57 | I169: 129.17 | J169: 132.13 | K169: 135.47 | L169: 128.8 | M169: 122.5 | N169: 14111500 | O169: 38.85%
A170: 161 | B170: Others | C170: REPCOHOME | D170: 356.65 | E170: 351.15 | F170: 343.50 | G170: 330.35 | H170: 322.70 | I170: 364.30 | J170: 371.95 | K170: 385.10 | L170: 358.8 | M170: 338 | N170: 763400 | O170: -9.52%
A171: 162 | B171: Power | C171: RPOWER | D171: 12.45 | E171: 11.98 | F171: 11.32 | G171: 10.18 | H171: 9.52 | I171: 13.12 | J171: 13.78 | K171: 14.92 | L171: 12.65 | M171: 10.85 | N171: 104464000 | O171: 52.69%
A172: 163 | B172: Metals | C172: SAIL | D172: 52.65 | E172: 51.65 | F172: 50.15 | G172: 47.65 | H172: 46.15 | I172: 54.15 | J172: 55.65 | K172: 58.15 | L172: 53.15 | M172: 49.15 | N172: 79656000 | O172: 1.14%
A173: 164 | B173: Banking | C173: SBIN | D173: 274.80 | E173: 274.17 | F173: 272.03 | G173: 269.27 | H173: 267.13 | I173: 276.93 | J173: 279.07 | K173: 281.83 | L173: 276.3 | M173: 271.4 | N173: 69726000 | O173: 5.96%
A174: 165 | B174: Cement | C174: SHREECEM | D174: 16814.95 | E174: 16648.27 | F174: 16342.28 | G174: 15869.62 | H174: 15563.63 | I174: 17120.93 | J174: 17426.92 | K174: 17899.58 | L174: 16954.25 | M174: 16175.6 | N174: 86950 | O174: 4.07%
A175: 166 | B175: Capital_Goods | C175: SIEMENS | D175: 1012.60 | E175: 1011.42 | F175: 998.03 | G175: 983.47 | H175: 970.08 | I175: 1025.98 | J175: 1039.37 | K175: 1053.93 | L175: 1024.8 | M175: 996.85 | N175: 1707750 | O175: -0.74%
A176: 167 | B176: Banking | C176: SOUTHBANK | D176: 13.75 | E176: 13.62 | F176: 13.43 | G176: 13.12 | H176: 12.93 | I176: 13.93 | J176: 14.12 | K176: 14.43 | L176: 13.8 | M176: 13.3 | N176: 135646113 | O176: 1.14%
A177: 169 | B177: Textile | C177: SRF | D177: 2293.60 | E177: 2306.05 | F177: 2275.15 | G177: 2256.70 | H177: 2225.80 | I177: 2324.50 | J177: 2355.40 | K177: 2373.85 | L177: 2336.95 | M177: 2287.6 | N177: 759000 | O177: -2.38%
A178: 170 | B178: Finance | C178: SRTRANSFIN | D178: 1165.85 | E178: 1162.12 | F178: 1154.48 | G178: 1143.12 | H178: 1135.48 | I178: 1173.48 | J178: 1181.12 | K178: 1192.48 | L178: 1169.75 | M178: 1150.75 | N178: 3871200 | O178: -0.95%
A179: 171 | B179: Pharma | C179: STAR | D179: 436.60 | E179: 433.23 | F179: 426.77 | G179: 416.93 | H179: 410.47 | I179: 443.07 | J179: 449.53 | K179: 459.37 | L179: 439.7 | M179: 423.4 | N179: 4148100 | O179: 3.68%
A180: 172 | B180: Pharma | C180: SUNPHARMA | D180: 450.80 | E180: 450.60 | F180: 447.00 | G180: 443.20 | H180: 439.60 | I180: 454.40 | J180: 458.00 | K180: 461.80 | L180: 454.2 | M180: 446.8 | N180: 50722100 | O180: 2.98%
A181: 173 | B181: Media | C181: SUNTV | D181: 618.15 | E181: 615.78 | F181: 609.37 | G181: 600.58 | H181: 594.17 | I181: 624.57 | J181: 630.98 | K181: 639.77 | L181: 622.2 | M181: 607 | N181: 6288000 | O181: 2.56%
A182: 174 | B182: Power | C182: SUZLON | D182: 6.05 | E182: 5.98 | F182: 5.92 | G182: 5.78 | H182: 5.72 | I182: 6.12 | J182: 6.18 | K182: 6.32 | L182: 6.05 | M182: 5.85 | N182: 227848000 | O182: 3.77%
A183: 175 | B183: Banking | C183: SYNDIBANK | D183: 36.00 | E183: 35.30 | F183: 34.50 | G183: 33.00 | H183: 32.20 | I183: 36.80 | J183: 37.60 | K183: 39.10 | L183: 36.1 | M183: 33.8 | N183: 22935000 | O183: 2.82%
A184: 176 | B184: Fertilisers | C184: TATACHEM | D184: 568.70 | E184: 567.82 | F184: 563.13 | G184: 557.57 | H184: 552.88 | I184: 573.38 | J184: 578.07 | K184: 583.63 | L184: 572.5 | M184: 562.25 | N184: 3114000 | O184: 9.70%
A185: 177 | B185: Telecom | C185: TATACOMM | D185: 596.05 | E185: 592.60 | F185: 587.25 | G185: 578.45 | H185: 573.10 | I185: 601.40 | J185: 606.75 | K185: 615.55 | L185: 597.95 | M185: 583.8 | N185: 2546000 | O185: 0.71%
A186: 178 | B186: Technology | C186: TATAELXSI | D186: 917.80 | E186: 910.95 | F186: 899.80 | G186: 881.80 | H186: 870.65 | I186: 928.95 | J186: 940.10 | K186: 958.10 | L186: 922.1 | M186: 892.95 | N186: 1303200 | O186: -1.06%
A187: 179 | B187: FMCG | C187: TATAGLOBAL | D187: 198.70 | E187: 197.28 | F187: 195.37 | G187: 192.03 | H187: 190.12 | I187: 200.62 | J187: 202.53 | K187: 205.87 | L187: 199.2 | M187: 193.95 | N187: 8982000 | O187: 5.78%
A188: 180 | B188: Automobile | C188: TATAMOTORS | D188: 181.20 | E188: 181.40 | F188: 177.55 | G188: 173.90 | H188: 170.05 | I188: 185.05 | J188: 188.90 | K188: 192.55 | L188: 185.25 | M188: 177.75 | N188: 52698000 | O188: 4.01%
A189: 181 | B189: Automobile | C189: TATAMTRDVR | D189: 90.70 | E189: 89.98 | F189: 88.82 | G189: 86.93 | H189: 85.77 | I189: 91.87 | J189: 93.03 | K189: 94.92 | L189: 91.15 | M189: 88.1 | N189: 29377800 | O189: 0.70%
A190: 182 | B190: Power | C190: TATAPOWER | D190: 67.60 | E190: 67.27 | F190: 66.38 | G190: 65.17 | H190: 64.28 | I190: 68.48 | J190: 69.37 | K190: 70.58 | L190: 68.15 | M190: 66.05 | N190: 46062000 | O190: 3.81%
A191: 183 | B191: Metals | C191: TATASTEEL | D191: 509.30 | E191: 508.03 | F191: 504.77 | G191: 500.23 | H191: 496.97 | I191: 512.57 | J191: 515.83 | K191: 520.37 | L191: 511.3 | M191: 503.5 | N191: 31474565 | O191: -0.91%
A192: 184 | B192: Technology | C192: TCS | D192: 2004.35 | E192: 2005.75 | F192: 1991.60 | G192: 1978.85 | H192: 1964.70 | I192: 2018.50 | J192: 2032.65 | K192: 2045.40 | L192: 2019.9 | M192: 1993 | N192: 14556500 | O192: -0.98%
A193: 185 | B193: Technology | C193: TECHM | D193: 827.65 | E193: 829.20 | F193: 823.60 | G193: 819.55 | H193: 813.95 | I193: 833.25 | J193: 838.85 | K193: 842.90 | L193: 834.8 | M193: 825.15 | N193: 11864400 | O193: 5.51%
A194: 186 | B194: FMCG | C194: TITAN | D194: 1028.30 | E194: 1031.88 | F194: 1020.97 | G194: 1013.63 | H194: 1002.72 | I194: 1039.22 | J194: 1050.13 | K194: 1057.47 | L194: 1042.8 | M194: 1024.55 | N194: 11975250 | O194: -0.07%
A195: 187 | B195: Pharma | C195: TORNTPHARM | D195: 1797.95 | E195: 1789.33 | F195: 1761.72 | G195: 1725.48 | H195: 1697.87 | I195: 1825.57 | J195: 1853.18 | K195: 1889.42 | L195: 1816.95 | M195: 1753.1 | N195: 423000 | O195: 2.05%
A196: 188 | B196: Power | C196: TORNTPOWER | D196: 247.20 | E196: 246.88 | F196: 245.12 | G196: 243.03 | H196: 241.27 | I196: 248.97 | J196: 250.73 | K196: 252.82 | L196: 248.65 | M196: 244.8 | N196: 1668000 | O196: 6.31%
A197: 189 | B197: Media | C197: TV18BRDCST | D197: 35.75 | E197: 35.17 | F197: 34.23 | G197: 32.72 | H197: 31.78 | I197: 36.68 | J197: 37.62 | K197: 39.13 | L197: 36.1 | M197: 33.65 | N197: 54054000 | O197: 0.29%
A198: 190 | B198: Automobile | C198: TVSMOTOR | D198: 469.55 | E198: 465.92 | F198: 460.83 | G198: 452.12 | H198: 447.03 | I198: 474.63 | J198: 479.72 | K198: 488.43 | L198: 471 | M198: 457.2 | N198: 5535000 | O198: 2.80%
A199: 191 | B199: FMCG | C199: UBL | D199: 1381.80 | E199: 1374.30 | F199: 1361.20 | G199: 1340.60 | H199: 1327.50 | I199: 1394.90 | J199: 1408.00 | K199: 1428.60 | L199: 1387.4 | M199: 1353.7 | N199: 2625700 | O199: 1.00%
A200: 192 | B200: Finance | C200: UJJIVAN | D200: 287.10 | E200: 285.33 | F200: 280.82 | G200: 274.53 | H200: 270.02 | I200: 291.62 | J200: 296.13 | K200: 302.42 | L200: 289.85 | M200: 279.05 | N200: 2806400 | O200: 2.75%
A201: 193 | B201: Cement | C201: ULTRACEMCO | D201: 3894.45 | E201: 3882.75 | F201: 3852.90 | G201: 3811.35 | H201: 3781.50 | I201: 3924.30 | J201: 3954.15 | K201: 3995.70 | L201: 3912.6 | M201: 3841.2 | N201: 2019000 | O201: 0.86%
A202: 194 | B202: Banking | C202: UNIONBANK | D202: 77.55 | E202: 76.28 | F202: 73.62 | G202: 69.68 | H202: 67.02 | I202: 80.22 | J202: 82.88 | K202: 86.82 | L202: 78.95 | M202: 72.35 | N202: 32088000 | O202: 11.45%
A203: 195 | B203: Fertilisers | C203: UPL | D203: 875.45 | E203: 878.17 | F203: 871.53 | G203: 867.62 | H203: 860.98 | I203: 882.08 | J203: 888.72 | K203: 892.63 | L203: 884.8 | M203: 874.25 | N203: 15528000 | O203: 0.68%
A204: 196 | B204: Metals | C204: VEDL | D204: 172.35 | E204: 171.97 | F204: 170.73 | G204: 169.12 | H204: 167.88 | I204: 173.58 | J204: 174.82 | K204: 176.43 | L204: 173.2 | M204: 170.35 | N204: 30817700 | O204: -0.07%
A205: 197 | B205: Others | C205: VGUARD | D205: 206.95 | E205: 204.35 | F205: 200.70 | G205: 194.45 | H205: 190.80 | I205: 210.60 | J205: 214.25 | K205: 220.50 | L205: 208 | M205: 198.1 | N205: 3000000 | O205: 10.74%
A206: 198 | B206: Capital_Goods | C206: VOLTAS | D206: 574.70 | E206: 571.32 | F206: 566.03 | G206: 557.37 | H206: 552.08 | I206: 579.98 | J206: 585.27 | K206: 593.93 | L206: 576.6 | M206: 562.65 | N206: 5510000 | O206: 2.91%
... 19 more rows

Sheet Cash Intra
M5: Back to Main Page
A6: FOR INTRA DAY TRADING | K6: =Main!B10 -> 2019-03-05
A8: Sr.no | B8: Scrip | C8: CLOSE RATE | D8: Pivot Point | E8: Supports | H8: Resistances
C9: Point | E9: S1 | F9: S2 | G9: S3 | H9: R1 | I9: R2 | J9: R3 | K9: HIGH | L9: LOW | M9: Total Trade Quanity in Lakhs
A10: 1 | B10: Nifty 50 | C10: 10863.5 | D10: 10854.83 | E10: 10831.77 | F10: 10800.03 | G10: 10776.97 | H10: 10886.57 | I10: 10909.63 | J10: 10941.37 | K10: 10877.9 | L10: 10823.1
A11: 2 | B11: Nifty Bank | C11: 27043.9 | D11: 27016.45 | E11: 26956.35 | F11: 26868.80 | G11: 26808.70 | H11: 27104.00 | I11: 27164.10 | J11: 27251.65 | K11: 27076.55 | L11: 26928.9
A12: 3 | B12: Nifty CPSE | C12: 2080.2 | D12: 2070.88 | E12: 2058.72 | F12: 2037.23 | G12: 2025.07 | H12: 2092.37 | I12: 2104.53 | J12: 2126.02 | K12: 2083.05 | L12: 2049.4
A13: 4 | B13: Nifty Infra | C13: 2942.65 | D13: 2937.45 | E13: 2925.20 | F13: 2907.75 | G13: 2895.50 | H13: 2954.90 | I13: 2967.15 | J13: 2984.60 | K13: 2949.7 | L13: 2920
A14: 5 | B14: Nifty IT | C14: 15848.3 | D14: 15823.87 | E14: 15776.63 | F14: 15704.97 | G14: 15657.73 | H14: 15895.53 | I14: 15942.77 | J14: 16014.43 | K14: 15871.1 | L14: 15752.2
A15: 6 | B15: Nifty PSE | C15: 3285.2 | D15: 3272.05 | E15: 3255.10 | F15: 3225.00 | G15: 3208.05 | H15: 3302.15 | I15: 3319.10 | J15: 3349.20 | K15: 3289 | L15: 3241.95
A16: 7 | B16: Nifty Midcap 50 | C16: 4697.25 | D16: 4673.35 | E16: 4646.50 | F16: 4595.75 | G16: 4568.90 | H16: 4724.10 | I16: 4750.95 | J16: 4801.70 | K16: 4700.2 | L16: 4622.6
A17: 8 | B17: ABB | C17: 1244.5 | D17: 1247.23 | E17: 1232.47 | F17: 1220.43 | G17: 1205.67 | H17: 1259.27 | I17: 1274.03 | J17: 1286.07 | K17: 1262 | L17: 1235.2 | M17: 1.9691
A18: 9 | B18: ACC | C18: 1481.7 | D18: 1467.37 | E18: 1434.63 | F18: 1387.57 | G18: 1354.83 | H18: 1514.43 | I18: 1547.17 | J18: 1594.23 | K18: 1500.1 | L18: 1420.3 | M18: 12.00767
A19: 10 | B19: AIAENG | C19: 1776.4 | D19: 1765.02 | E19: 1715.53 | F19: 1654.67 | G19: 1605.18 | H19: 1825.88 | I19: 1875.37 | J19: 1936.23 | K19: 1814.5 | L19: 1704.15 | M19: 0.4679
A20: 11 | B20: AUBANK | C20: 569.6 | D20: 570.45 | E20: 561.15 | F20: 552.70 | G20: 543.40 | H20: 578.90 | I20: 588.20 | J20: 596.65 | K20: 579.75 | L20: 562 | M20: 5.02483
A21: 12 | B21: ADANIENT | C21: 133.85 | D21: 132.63 | E21: 130.07 | F21: 126.28 | G21: 123.72 | H21: 136.42 | I21: 138.98 | J21: 142.77 | K21: 135.2 | L21: 128.85 | M21: 77.38116
A22: 13 | B22: ADANIPORTS | C22: 333.2 | D22: 331.67 | E22: 328.53 | F22: 323.87 | G22: 320.73 | H22: 336.33 | I22: 339.47 | J22: 344.13 | K22: 334.8 | L22: 327 | M22: 47.56894
A23: 14 | B23: ADANIPOWER | C23: 48.4 | D23: 48.38 | E23: 47.77 | F23: 47.13 | G23: 46.52 | H23: 49.02 | I23: 49.63 | J23: 50.27 | K23: 49 | L23: 47.75 | M23: 164.89834
A24: 15 | B24: ABFRL | C24: 223.45 | D24: 223.87 | E24: 220.88 | F24: 218.32 | G24: 215.33 | H24: 226.43 | I24: 229.42 | J24: 231.98 | K24: 226.85 | L24: 221.3 | M24: 4.92543
A25: 16 | B25: AJANTPHARM | C25: 987.05 | D25: 988.10 | E25: 980.20 | F25: 973.35 | G25: 965.45 | H25: 994.95 | I25: 1002.85 | J25: 1009.70 | K25: 996 | L25: 981.25 | M25: 4.72765
A26: 17 | B26: ALKEM | C26: 1780.05 | D26: 1773.03 | E26: 1758.17 | F26: 1736.28 | G26: 1721.42 | H26: 1794.92 | I26: 1809.78 | J26: 1831.67 | K26: 1787.9 | L26: 1751.15 | M26: 0.16378
A27: 18 | B27: AMARAJABAT | C27: 726.9 | D27: 724.78 | E27: 720.57 | F27: 714.23 | G27: 710.02 | H27: 731.12 | I27: 735.33 | J27: 741.67 | K27: 729 | L27: 718.45 | M27: 2.7754
A28: 19 | B28: AMBUJACEM | C28: 217.45 | D28: 216.50 | E28: 213.70 | F28: 209.95 | G28: 207.15 | H28: 220.25 | I28: 223.05 | J28: 226.80 | K28: 219.3 | L28: 212.75 | M28: 13.89426
A29: 20 | B29: APOLLOHOSP | C29: 1151.85 | D29: 1152.57 | E29: 1139.28 | F29: 1126.72 | G29: 1113.43 | H29: 1165.13 | I29: 1178.42 | J29: 1190.98 | K29: 1165.85 | L29: 1140 | M29: 9.04319
A30: 21 | B30: APOLLOTYRE | C30: 219.9 | D30: 219.18 | E30: 218.02 | F30: 216.13 | G30: 214.97 | H30: 221.07 | I30: 222.23 | J30: 224.12 | K30: 220.35 | L30: 217.3 | M30: 17.63953
A31: 22 | B31: ARVIND | C31: 83.1 | D31: 81.07 | E31: 78.38 | F31: 73.67 | G31: 70.98 | H31: 85.78 | I31: 88.47 | J31: 93.18 | K31: 83.75 | L31: 76.35 | M31: 102.32121
A32: 23 | B32: ASHOKLEY | C32: 86.6 | D32: 86.30 | E32: 84.70 | F32: 82.80 | G32: 81.20 | H32: 88.20 | I32: 89.80 | J32: 91.70 | K32: 87.9 | L32: 84.4 | M32: 345.21039
A33: 24 | B33: ASIANPAINT | C33: 1392.35 | D33: 1399.47 | E33: 1380.98 | F33: 1369.62 | G33: 1351.13 | H33: 1410.83 | I33: 1429.32 | J33: 1440.68 | K33: 1417.95 | L33: 1388.1 | M33: 7.83876
A34: 25 | B34: AUROPHARMA | C34: 724.95 | D34: 722.12 | E34: 716.53 | F34: 708.12 | G34: 702.53 | H34: 730.53 | I34: 736.12 | J34: 744.53 | K34: 727.7 | L34: 713.7 | M34: 17.75302
A35: 26 | B35: DMART | C35: 1456.55 | D35: 1459.18 | E35: 1439.37 | F35: 1422.18 | G35: 1402.37 | H35: 1476.37 | I35: 1496.18 | J35: 1513.37 | K35: 1479 | L35: 1442 | M35: 2.28945
A36: 27 | B36: AXISBANK | C36: 702.4 | D36: 705.63 | E36: 696.32 | F36: 690.23 | G36: 680.92 | H36: 711.72 | I36: 721.03 | J36: 727.12 | K36: 714.95 | L36: 699.55 | M36: 77.13824
A37: 28 | B37: BAJAJ-AUTO | C37: 2863.5 | D37: 2887.57 | E37: 2832.13 | F37: 2800.77 | G37: 2745.33 | H37: 2918.93 | I37: 2974.37 | J37: 3005.73 | K37: 2943 | L37: 2856.2 | M37: 10.08494
A38: 29 | B38: BAJFINANCE | C38: 2660.75 | D38: 2658.35 | E38: 2642.40 | F38: 2624.05 | G38: 2608.10 | H38: 2676.70 | I38: 2692.65 | J38: 2711.00 | K38: 2674.3 | L38: 2640 | M38: 7.07094
A39: 30 | B39: BAJAJFINSV | C39: 6440.6 | D39: 6469.55 | E39: 6399.10 | F39: 6357.60 | G39: 6287.15 | H39: 6511.05 | I39: 6581.50 | J39: 6623.00 | K39: 6540 | L39: 6428.05 | M39: 2.22076
A40: 31 | B40: BALKRISIND | C40: 894.7 | D40: 893.73 | E40: 887.17 | F40: 879.63 | G40: 873.07 | H40: 901.27 | I40: 907.83 | J40: 915.37 | K40: 900.3 | L40: 886.2 | M40: 5.38236
A41: 32 | B41: BANKBARODA | C41: 108.1 | D41: 106.17 | E41: 103.53 | F41: 98.97 | G41: 96.33 | H41: 110.73 | I41: 113.37 | J41: 117.93 | K41: 108.8 | L41: 101.6 | M41: 295.05475
A42: 33 | B42: BANKINDIA | C42: 87.5 | D42: 86.30 | E42: 84.35 | F42: 81.20 | G42: 79.25 | H42: 89.45 | I42: 91.40 | J42: 94.55 | K42: 88.25 | L42: 83.15 | M42: 139.52084
A43: 34 | B43: BATAINDIA | C43: 1280.05 | D43: 1282.85 | E43: 1268.45 | F43: 1256.85 | G43: 1242.45 | H43: 1294.45 | I43: 1308.85 | J43: 1320.45 | K43: 1297.25 | L43: 1271.25 | M43: 7.61639
A44: 35 | B44: BERGEPAINT | C44: 302.2 | D44: 303.60 | E44: 299.80 | F44: 297.40 | G44: 293.60 | H44: 306.00 | I44: 309.80 | J44: 312.20 | K44: 307.4 | L44: 301.2 | M44: 4.72234
A45: 36 | B45: BEL | C45: 85 | D45: 84.43 | E45: 83.57 | F45: 82.13 | G45: 81.27 | H45: 85.87 | I45: 86.73 | J45: 88.17 | K45: 85.3 | L45: 83 | M45: 113.38932
A46: 37 | B46: BHARATFIN | C46: 949.9 | D46: 943.27 | E46: 931.63 | F46: 913.37 | G46: 901.73 | H46: 961.53 | I46: 973.17 | J46: 991.43 | K46: 954.9 | L46: 925 | M46: 5.39921
A47: 38 | B47: BHARATFORG | C47: 519.75 | D47: 517.10 | E47: 512.65 | F47: 505.55 | G47: 501.10 | H47: 524.20 | I47: 528.65 | J47: 535.75 | K47: 521.55 | L47: 510 | M47: 11.54025
A48: 39 | B48: BHEL | C48: 66.15 | D48: 65.80 | E48: 65.00 | F48: 63.85 | G48: 63.05 | H48: 66.95 | I48: 67.75 | J48: 68.90 | K48: 66.6 | L48: 64.65 | M48: 93.09674
A49: 40 | B49: BPCL | C49: 346.05 | D49: 343.58 | E49: 339.62 | F49: 333.18 | G49: 329.22 | H49: 350.02 | I49: 353.98 | J49: 360.42 | K49: 347.55 | L49: 337.15 | M49: 28.72248
A50: 41 | B50: BHARTIARTL | C50: 307.65 | D50: 309.18 | E50: 300.57 | F50: 293.48 | G50: 284.87 | H50: 316.27 | I50: 324.88 | J50: 331.97 | K50: 317.8 | L50: 302.1 | M50: 266.57232
A51: 42 | B51: INFRATEL | C51: 293.25 | D51: 294.30 | E51: 290.95 | F51: 288.65 | G51: 285.30 | H51: 296.60 | I51: 299.95 | J51: 302.25 | K51: 297.65 | L51: 292 | M51: 21.2145
A52: 43 | B52: BIOCON | C52: 632.9 | D52: 630.10 | E52: 625.80 | F52: 618.70 | G52: 614.40 | H52: 637.20 | I52: 641.50 | J52: 648.60 | K52: 634.4 | L52: 623 | M52: 8.4857
A53: 44 | B53: BOSCHLTD | C53: 18749.75 | D53: 18816.92 | E53: 18633.83 | F53: 18517.92 | G53: 18334.83 | H53: 18932.83 | I53: 19115.92 | J53: 19231.83 | K53: 19000 | L53: 18701 | M53: 0.11992
A54: 45 | B54: BRITANNIA | C54: 3077.25 | D54: 3076.63 | E54: 3062.92 | F54: 3048.58 | G54: 3034.87 | H54: 3090.97 | I54: 3104.68 | J54: 3119.02 | K54: 3090.35 | L54: 3062.3 | M54: 2.1742
A55: 46 | B55: CRISIL | C55: 1471.75 | D55: 1469.25 | E55: 1461.50 | F55: 1451.25 | G55: 1443.50 | H55: 1479.50 | I55: 1487.25 | J55: 1497.50 | K55: 1477 | L55: 1459 | M55: 0.14232
A56: 47 | B56: CADILAHC | C56: 323.2 | D56: 321.62 | E56: 319.03 | F56: 314.87 | G56: 312.28 | H56: 325.78 | I56: 328.37 | J56: 332.53 | K56: 324.2 | L56: 317.45 | M56: 9.70103
A57: 48 | B57: CANBK | C57: 242.4 | D57: 239.75 | E57: 235.15 | F57: 227.90 | G57: 223.30 | H57: 247.00 | I57: 251.60 | J57: 258.85 | K57: 244.35 | L57: 232.5 | M57: 68.44534
A58: 49 | B58: CASTROLIND | C58: 160.55 | D58: 158.75 | E58: 156.05 | F58: 151.55 | G58: 148.85 | H58: 163.25 | I58: 165.95 | J58: 170.45 | K58: 161.45 | L58: 154.25 | M58: 18.06531
A59: 50 | B59: CENTRALBK | C59: 31.05 | D59: 30.95 | E59: 30.55 | F59: 30.05 | G59: 29.65 | H59: 31.45 | I59: 31.85 | J59: 32.35 | K59: 31.35 | L59: 30.45 | M59: 5.09242
A60: 51 | B60: CENTURYTEX | C60: 830.75 | D60: 824.25 | E60: 812.50 | F60: 794.25 | G60: 782.50 | H60: 842.50 | I60: 854.25 | J60: 872.50 | K60: 836 | L60: 806 | M60: 5.33531
A61: 52 | B61: CHOLAFIN | C61: 1269.15 | D61: 1256.57 | E61: 1238.13 | F61: 1207.12 | G61: 1188.68 | H61: 1287.58 | I61: 1306.02 | J61: 1337.03 | K61: 1275 | L61: 1225.55 | M61: 5.12706
A62: 53 | B62: CIPLA | C62: 551.55 | D62: 551.42 | E62: 547.53 | F62: 543.52 | G62: 539.63 | H62: 555.43 | I62: 559.32 | J62: 563.33 | K62: 555.3 | L62: 547.4 | M62: 24.30914
A63: 54 | B63: COALINDIA | C63: 232.65 | D63: 230.75 | E63: 228.50 | F63: 224.35 | G63: 222.10 | H63: 234.90 | I63: 237.15 | J63: 241.30 | K63: 233 | L63: 226.6 | M63: 95.26492
A64: 55 | B64: COLPAL | C64: 1245.95 | D64: 1251.32 | E64: 1237.73 | F64: 1229.52 | G64: 1215.93 | H64: 1259.53 | I64: 1273.12 | J64: 1281.33 | K64: 1264.9 | L64: 1243.1 | M64: 3.30433
A65: 56 | B65: CONCOR | C65: 478.15 | D65: 475.72 | E65: 471.53 | F65: 464.92 | G65: 460.73 | H65: 482.33 | I65: 486.52 | J65: 493.13 | K65: 479.9 | L65: 469.1 | M65: 11.63832
A66: 57 | B66: COROMANDEL | C66: 440.45 | D66: 441.60 | E66: 435.50 | F66: 430.55 | G66: 424.45 | H66: 446.55 | I66: 452.65 | J66: 457.60 | K66: 447.7 | L66: 436.65 | M66: 0.90559
A67: 58 | B67: CROMPTON | C67: 209.75 | D67: 210.58 | E67: 207.42 | F67: 205.08 | G67: 201.92 | H67: 212.92 | I67: 216.08 | J67: 218.42 | K67: 213.75 | L67: 208.25 | M67: 5.97227
A68: 59 | B68: CUMMINSIND | C68: 704.75 | D68: 705.55 | E68: 699.10 | F68: 693.45 | G68: 687.00 | H68: 711.20 | I68: 717.65 | J68: 723.30 | K68: 712 | L68: 699.9 | M68: 4.35318
A69: 60 | B69: DLF | C69: 167.25 | D69: 167.22 | E69: 165.23 | F69: 163.22 | G69: 161.23 | H69: 169.23 | I69: 171.22 | J69: 173.23 | K69: 169.2 | L69: 165.2 | M69: 38.45718
A70: 61 | B70: DABUR | C70: 445.3 | D70: 443.68 | E70: 441.32 | F70: 437.33 | G70: 434.97 | H70: 447.67 | I70: 450.03 | J70: 454.02 | K70: 446.05 | L70: 439.7 | M70: 27.04142
A71: 62 | B71: DHFL | C71: 128.8 | D71: 129.57 | E71: 126.63 | F71: 124.47 | G71: 121.53 | H71: 131.73 | I71: 134.67 | J71: 136.83 | K71: 132.5 | L71: 127.4 | M71: 133.12683
A72: 63 | B72: DISHTV | C72: 41.35 | D72: 40.65 | E72: 39.40 | F72: 37.45 | G72: 36.20 | H72: 42.60 | I72: 43.85 | J72: 45.80 | K72: 41.9 | L72: 38.7 | M72: 233.55079
A73: 64 | B73: DIVISLAB | C73: 1669.8 | D73: 1664.95 | E73: 1654.90 | F73: 1640.00 | G73: 1629.95 | H73: 1679.85 | I73: 1689.90 | J73: 1704.80 | K73: 1675 | L73: 1650.05 | M73: 4.8028
A74: 65 | B74: LALPATHLAB | C74: 1018.4 | D74: 1018.00 | E74: 1011.70 | F74: 1005.00 | G74: 998.70 | H74: 1024.70 | I74: 1031.00 | J74: 1037.70 | K74: 1024.3 | L74: 1011.3 | M74: 0.36829
A75: 66 | B75: DRREDDY | C75: 2646 | D75: 2627.72 | E75: 2598.33 | F75: 2550.67 | G75: 2521.28 | H75: 2675.38 | I75: 2704.77 | J75: 2752.43 | K75: 2657.1 | L75: 2580.05 | M75: 8.85795
A76: 67 | B76: EDELWEISS | C76: 139.55 | D76: 139.70 | E76: 137.40 | F76: 135.25 | G76: 132.95 | H76: 141.85 | I76: 144.15 | J76: 146.30 | K76: 142 | L76: 137.55 | M76: 22.24289
A77: 68 | B77: EICHERMOT | C77: 19948.65 | D77: 19900.20 | E77: 19768.45 | F77: 19588.25 | G77: 19456.50 | H77: 20080.40 | I77: 20212.15 | J77: 20392.35 | K77: 20031.95 | L77: 19720 | M77: 0.98433
A78: 69 | B78: EMAMILTD | C78: 395.6 | D78: 396.92 | E78: 391.83 | F78: 388.07 | G78: 382.98 | H78: 400.68 | I78: 405.77 | J78: 409.53 | K78: 402 | L78: 393.15 | M78: 2.97298
A79: 70 | B79: ENDURANCE | C79: 1271.45 | D79: 1282.53 | E79: 1254.32 | F79: 1237.18 | G79: 1208.97 | H79: 1299.67 | I79: 1327.88 | J79: 1345.02 | K79: 1310.75 | L79: 1265.4 | M79: 0.17336
A80: 71 | B80: ENGINERSIN | C80: 110.2 | D80: 109.33 | E80: 107.92 | F80: 105.63 | G80: 104.22 | H80: 111.62 | I80: 113.03 | J80: 115.32 | K80: 110.75 | L80: 107.05 | M80: 28.7829
A81: 72 | B81: EXIDEIND | C81: 218.35 | D81: 219.17 | E81: 215.78 | F81: 213.22 | G81: 209.83 | H81: 221.73 | I81: 225.12 | J81: 227.68 | K81: 222.55 | L81: 216.6 | M81: 18.23393
A82: 73 | B82: FEDERALBNK | C82: 85.7 | D82: 85.07 | E82: 84.23 | F82: 82.77 | G82: 81.93 | H82: 86.53 | I82: 87.37 | J82: 88.83 | K82: 85.9 | L82: 83.6 | M82: 80.06642
A83: 74 | B83: GAIL | C83: 343.85 | D83: 345.22 | E83: 341.13 | F83: 338.42 | G83: 334.33 | H83: 347.93 | I83: 352.02 | J83: 354.73 | K83: 349.3 | L83: 342.5 | M83: 60.20443
A84: 75 | B84: GMRINFRA | C84: 16.65 | D84: 16.53 | E84: 16.37 | F84: 16.08 | G84: 15.92 | H84: 16.82 | I84: 16.98 | J84: 17.27 | K84: 16.7 | L84: 16.25 | M84: 165.40787
A85: 76 | B85: GSKCONS | C85: 7205.85 | D85: 7224.27 | E85: 7181.58 | F85: 7157.32 | G85: 7114.63 | H85: 7248.53 | I85: 7291.22 | J85: 7315.48 | K85: 7266.95 | L85: 7200 | M85: 0.0441
A86: 77 | B86: GLAXO | C86: 1329.3 | D86: 1332.57 | E86: 1322.73 | F86: 1316.17 | G86: 1306.33 | H86: 1339.13 | I86: 1348.97 | J86: 1355.53 | K86: 1342.4 | L86: 1326 | M86: 0.12975
A87: 78 | B87: GLENMARK | C87: 599.05 | D87: 596.23 | E87: 590.47 | F87: 581.88 | G87: 576.12 | H87: 604.82 | I87: 610.58 | J87: 619.17 | K87: 602 | L87: 587.65 | M87: 5.19603
A88: 79 | B88: GODREJCP | C88: 679.15 | D88: 679.58 | E88: 672.87 | F88: 666.58 | G88: 659.87 | H88: 685.87 | I88: 692.58 | J88: 698.87 | K88: 686.3 | L88: 673.3 | M88: 23.09283
A89: 80 | B89: GODREJIND | C89: 494.55 | D89: 496.47 | E89: 489.43 | F89: 484.32 | G89: 477.28 | H89: 501.58 | I89: 508.62 | J89: 513.73 | K89: 503.5 | L89: 491.35 | M89: 7.70071
A90: 81 | B90: GRUH | C90: 251.8 | D90: 251.00 | E90: 248.80 | F90: 245.80 | G90: 243.60 | H90: 254.00 | I90: 256.20 | J90: 259.20 | K90: 253.2 | L90: 248 | M90: 3.95725
A91: 82 | B91: GPPL | C91: 85 | D91: 84.32 | E91: 81.73 | F91: 78.47 | G91: 75.88 | H91: 87.58 | I91: 90.17 | J91: 93.43 | K91: 86.9 | L91: 81.05 | M91: 9.68357
A92: 83 | B92: GSPL | C92: 159.15 | D92: 159.22 | E92: 157.53 | F92: 155.92 | G92: 154.23 | H92: 160.83 | I92: 162.52 | J92: 164.13 | K92: 160.9 | L92: 157.6 | M92: 2.64674
A93: 84 | B93: HCLTECH | C93: 1052.6 | D93: 1052.58 | E93: 1043.77 | F93: 1034.93 | G93: 1026.12 | H93: 1061.42 | I93: 1070.23 | J93: 1079.07 | K93: 1061.4 | L93: 1043.75 | M93: 11.47955
A94: 85 | B94: HDFCBANK | C94: 2083.35 | D94: 2087.08 | E94: 2073.27 | F94: 2063.18 | G94: 2049.37 | H94: 2097.17 | I94: 2110.98 | J94: 2121.07 | K94: 2100.9 | L94: 2077 | M94: 23.38232
A95: 86 | B95: HAVELLS | C95: 707.55 | D95: 713.22 | E95: 699.43 | F95: 691.32 | G95: 677.53 | H95: 721.33 | I95: 735.12 | J95: 743.23 | K95: 727 | L95: 705.1 | M95: 13.71695
A96: 87 | B96: HEROMOTOCO | C96: 2675.6 | D96: 2668.75 | E96: 2646.90 | F96: 2618.20 | G96: 2596.35 | H96: 2697.45 | I96: 2719.30 | J96: 2748.00 | K96: 2690.6 | L96: 2640.05 | M96: 9.18224
A97: 88 | B97: HEXAWARE | C97: 358.55 | D97: 357.88 | E97: 355.37 | F97: 352.18 | G97: 349.67 | H97: 361.07 | I97: 363.58 | J97: 366.77 | K97: 360.4 | L97: 354.7 | M97: 5.22224
A98: 89 | B98: HINDALCO | C98: 196.15 | D98: 196.78 | E98: 194.67 | F98: 193.18 | G98: 191.07 | H98: 198.27 | I98: 200.38 | J98: 201.87 | K98: 198.9 | L98: 195.3 | M98: 65.12004
A99: 90 | B99: HINDPETRO | C99: 232.7 | D99: 230.02 | E99: 226.03 | F99: 219.37 | G99: 215.38 | H99: 236.68 | I99: 240.67 | J99: 247.33 | K99: 234 | L99: 223.35 | M99: 38.82378
A100: 91 | B100: HINDUNILVR | C100: 1734.65 | D100: 1738.23 | E100: 1727.47 | F100: 1720.28 | G100: 1709.52 | H100: 1745.42 | I100: 1756.18 | J100: 1763.37 | K100: 1749 | L100: 1731.05 | M100: 7.61115
A101: 92 | B101: HINDZINC | C101: 270.85 | D101: 270.47 | E101: 268.98 | F101: 267.12 | G101: 265.63 | H101: 272.33 | I101: 273.82 | J101: 275.68 | K101: 271.95 | L101: 268.6 | M101: 3.33569
A102: 93 | B102: HUDCO | C102: 41.8 | D102: 41.57 | E102: 40.83 | F102: 39.87 | G102: 39.13 | H102: 42.53 | I102: 43.27 | J102: 44.23 | K102: 42.3 | L102: 40.6 | M102: 10.45685
A103: 94 | B103: HDFC | C103: 1859.45 | D103: 1853.72 | E103: 1844.03 | F103: 1828.62 | G103: 1818.93 | H103: 1869.13 | I103: 1878.82 | J103: 1894.23 | K103: 1863.4 | L103: 1838.3 | M103: 26.79223
A104: 95 | B104: ITC | C104: 278.2 | D104: 277.82 | E104: 276.63 | F104: 275.07 | G104: 273.88 | H104: 279.38 | I104: 280.57 | J104: 282.13 | K104: 279 | L104: 276.25 | M104: 88.30848
A105: 96 | B105: ICICIBANK | C105: 354.25 | D105: 353.30 | E105: 351.60 | F105: 348.95 | G105: 347.25 | H105: 355.95 | I105: 357.65 | J105: 360.30 | K105: 355 | L105: 350.65 | M105: 141.90221
A106: 97 | B106: ICICIPRULI | C106: 325.1 | D106: 325.88 | E106: 319.47 | F106: 313.83 | G106: 307.42 | H106: 331.52 | I106: 337.93 | J106: 343.57 | K106: 332.3 | L106: 320.25 | M106: 16.0356
A107: 98 | B107: IDBI | C107: 44.35 | D107: 44.02 | E107: 43.33 | F107: 42.32 | G107: 41.63 | H107: 45.03 | I107: 45.72 | J107: 46.73 | K107: 44.7 | L107: 43 | M107: 122.86495
A108: 99 | B108: IDFCFIRSTB | C108: 47.5 | D108: 46.78 | E108: 45.87 | F108: 44.23 | G108: 43.32 | H108: 48.42 | I108: 49.33 | J108: 50.97 | K108: 47.7 | L108: 45.15 | M108: 220.45972
A109: 100 | B109: IDFC | C109: 40.15 | D109: 39.13 | E109: 37.87 | F109: 35.58 | G109: 34.32 | H109: 41.42 | I109: 42.68 | J109: 44.97 | K109: 40.4 | L109: 36.85 | M109: 89.20229
A110: 101 | B110: IRB | C110: 141.05 | D110: 139.72 | E110: 136.73 | F110: 132.42 | G110: 129.43 | H110: 144.03 | I110: 147.02 | J110: 151.33 | K110: 142.7 | L110: 135.4 | M110: 26.58029
A111: 102 | B111: IDEA | C111: 29.9 | D111: 29.98 | E111: 29.52 | F111: 29.13 | G111: 28.67 | H111: 30.37 | I111: 30.83 | J111: 31.22 | K111: 30.45 | L111: 29.6 | M111: 269.98236
A112: 103 | B112: IBULHSGFIN | C112: 671.9 | D112: 668.12 | E112: 661.23 | F112: 650.57 | G112: 643.68 | H112: 678.78 | I112: 685.67 | J112: 696.33 | K112: 675 | L112: 657.45 | M112: 59.1789
A113: 104 | B113: INDIANB | C113: 229.5 | D113: 228.43 | E113: 223.07 | F113: 216.63 | G113: 211.27 | H113: 234.87 | I113: 240.23 | J113: 246.67 | K113: 233.8 | L113: 222 | M113: 23.06295
A114: 105 | B114: INDHOTEL | C114: 138.25 | D114: 138.38 | E114: 136.87 | F114: 135.48 | G114: 133.97 | H114: 139.77 | I114: 141.28 | J114: 142.67 | K114: 139.9 | L114: 137 | M114: 6.10643
A115: 106 | B115: IOC | C115: 148.05 | D115: 146.75 | E115: 144.55 | F115: 141.05 | G115: 138.85 | H115: 150.25 | I115: 152.45 | J115: 155.95 | K115: 148.95 | L115: 143.25 | M115: 86.71002
A116: 107 | B116: IGL | C116: 292.1 | D116: 292.97 | E116: 289.88 | F116: 287.67 | G116: 284.58 | H116: 295.18 | I116: 298.27 | J116: 300.48 | K116: 296.05 | L116: 290.75 | M116: 13.86778
A117: 108 | B117: INDUSINDBK | C117: 1514.1 | D117: 1502.85 | E117: 1486.20 | F117: 1458.30 | G117: 1441.65 | H117: 1530.75 | I117: 1547.40 | J117: 1575.30 | K117: 1519.5 | L117: 1474.95 | M117: 22.43654
A118: 109 | B118: NAUKRI | C118: 1796.4 | D118: 1794.48 | E118: 1778.97 | F118: 1761.53 | G118: 1746.02 | H118: 1811.92 | I118: 1827.43 | J118: 1844.87 | K118: 1810 | L118: 1777.05 | M118: 1.39277
A119: 110 | B119: INFY | C119: 741.9 | D119: 740.27 | E119: 737.13 | F119: 732.37 | G119: 729.23 | H119: 745.03 | I119: 748.17 | J119: 752.93 | K119: 743.4 | L119: 735.5 | M119: 39.98826
A120: 111 | B120: INDIGO | C120: 1122.15 | D120: 1114.05 | E120: 1101.25 | F120: 1080.35 | G120: 1067.55 | H120: 1134.95 | I120: 1147.75 | J120: 1168.65 | K120: 1126.85 | L120: 1093.15 | M120: 7.34583
A121: 112 | B121: IPCALAB | C121: 851.55 | D121: 841.18 | E121: 819.47 | F121: 787.38 | G121: 765.67 | H121: 873.27 | I121: 894.98 | J121: 927.07 | K121: 862.9 | L121: 809.1 | M121: 6.79847
A122: 113 | B122: JSWENERGY | C122: 65.5 | D122: 65.53 | E122: 64.72 | F122: 63.93 | G122: 63.12 | H122: 66.32 | I122: 67.13 | J122: 67.92 | K122: 66.35 | L122: 64.75 | M122: 6.20534
A123: 114 | B123: JSWSTEEL | C123: 282.1 | D123: 282.63 | E123: 280.17 | F123: 278.23 | G123: 275.77 | H123: 284.57 | I123: 287.03 | J123: 288.97 | K123: 285.1 | L123: 280.7 | M123: 73.62711
A124: 115 | B124: JINDALSTEL | C124: 161.6 | D124: 160.65 | E124: 158.30 | F124: 155.00 | G124: 152.65 | H124: 163.95 | I124: 166.30 | J124: 169.60 | K124: 163 | L124: 157.35 | M124: 100.64386
A125: 116 | B125: JUBLFOOD | C125: 1276.75 | D125: 1275.47 | E125: 1268.78 | F125: 1260.82 | G125: 1254.13 | H125: 1283.43 | I125: 1290.12 | J125: 1298.08 | K125: 1282.15 | L125: 1267.5 | M125: 10.894
A126: 117 | B126: JUBILANT | C126: 779.2 | D126: 781.07 | E126: 772.23 | F126: 765.27 | G126: 756.43 | H126: 788.03 | I126: 796.87 | J126: 803.83 | K126: 789.9 | L126: 774.1 | M126: 1.86913
A127: 118 | B127: KARURVYSYA | C127: 68.95 | D127: 69.08 | E127: 68.27 | F127: 67.58 | G127: 66.77 | H127: 69.77 | I127: 70.58 | J127: 71.27 | K127: 69.9 | L127: 68.4 | M127: 7.26635
A128: 119 | B128: KOTAKBANK | C128: 1225.95 | D128: 1224.60 | E128: 1218.70 | F128: 1211.45 | G128: 1205.55 | H128: 1231.85 | I128: 1237.75 | J128: 1245.00 | K128: 1230.5 | L128: 1217.35 | M128: 21.62834
A129: 120 | B129: L&TFH | C129: 128 | D129: 127.07 | E129: 125.43 | F129: 122.87 | G129: 121.23 | H129: 129.63 | I129: 131.27 | J129: 133.83 | K129: 128.7 | L129: 124.5 | M129: 52.4812
A130: 121 | B130: LICHSGFIN | C130: 474.6 | D130: 476.37 | E130: 469.53 | F130: 464.47 | G130: 457.63 | H130: 481.43 | I130: 488.27 | J130: 493.33 | K130: 483.2 | L130: 471.3 | M130: 19.46654
A131: 122 | B131: LT | C131: 1308.55 | D131: 1305.92 | E131: 1299.88 | F131: 1291.22 | G131: 1285.18 | H131: 1314.58 | I131: 1320.62 | J131: 1329.28 | K131: 1311.95 | L131: 1297.25 | M131: 28.31577
A132: 123 | B132: LUPIN | C132: 786.6 | D132: 781.87 | E132: 773.18 | F132: 759.77 | G132: 751.08 | H132: 795.28 | I132: 803.97 | J132: 817.38 | K132: 790.55 | L132: 768.45 | M132: 23.49879
A133: 124 | B133: MRF | C133: 57129.1 | D133: 57145.37 | E133: 56890.73 | F133: 56652.37 | G133: 56397.73 | H133: 57383.73 | I133: 57638.37 | J133: 57876.73 | K133: 57400 | L133: 56907 | M133: 0.04094
A134: 125 | B134: MGL | C134: 920.25 | D134: 916.07 | E134: 909.13 | F134: 898.02 | G134: 891.08 | H134: 927.18 | I134: 934.12 | J134: 945.23 | K134: 923 | L134: 904.95 | M134: 4.27619
A135: 126 | B135: M&MFIN | C135: 411.45 | D135: 407.45 | E135: 401.95 | F135: 392.45 | G135: 386.95 | H135: 416.95 | I135: 422.45 | J135: 431.95 | K135: 412.95 | L135: 397.95 | M135: 24.90189
A136: 127 | B136: M&M | C136: 649.7 | D136: 647.57 | E136: 643.13 | F136: 636.57 | G136: 632.13 | H136: 654.13 | I136: 658.57 | J136: 665.13 | K136: 652 | L136: 641 | M136: 39.57539
A137: 128 | B137: MANAPPURAM | C137: 115.15 | D137: 114.15 | E137: 112.55 | F137: 109.95 | G137: 108.35 | H137: 116.75 | I137: 118.35 | J137: 120.95 | K137: 115.75 | L137: 111.55 | M137: 23.6695
A138: 129 | B138: MRPL | C138: 67.4 | D138: 66.83 | E138: 65.67 | F138: 63.93 | G138: 62.77 | H138: 68.57 | I138: 69.73 | J138: 71.47 | K138: 68 | L138: 65.1 | M138: 12.4244
A139: 130 | B139: MARICO | C139: 334.85 | D139: 336.18 | E139: 329.57 | F139: 324.28 | G139: 317.67 | H139: 341.47 | I139: 348.08 | J139: 353.37 | K139: 342.8 | L139: 330.9 | M139: 18.2247
A140: 131 | B140: MARUTI | C140: 6935.15 | D140: 6904.13 | E140: 6858.27 | F140: 6781.38 | G140: 6735.52 | H140: 6981.02 | I140: 7026.88 | J140: 7103.77 | K140: 6950 | L140: 6827.25 | M140: 7.68822
A141: 132 | B141: MFSL | C141: 401.65 | D141: 401.48 | E141: 397.22 | F141: 392.78 | G141: 388.52 | H141: 405.92 | I141: 410.18 | J141: 414.62 | K141: 405.75 | L141: 397.05 | M141: 4.12459
A142: 133 | B142: MINDTREE | C142: 932.85 | D142: 925.77 | E142: 914.13 | F142: 895.42 | G142: 883.78 | H142: 944.48 | I142: 956.12 | J142: 974.83 | K142: 937.4 | L142: 907.05 | M142: 16.30708
A143: 134 | B143: MOTHERSUMI | C143: 160.5 | D143: 162.20 | E143: 158.00 | F143: 155.50 | G143: 151.30 | H143: 164.70 | I143: 168.90 | J143: 171.40 | K143: 166.4 | L143: 159.7 | M143: 166.43371
A144: 135 | B144: MPHASIS | C144: 1033.25 | D144: 1036.25 | E144: 1023.00 | F144: 1012.75 | G144: 999.50 | H144: 1046.50 | I144: 1059.75 | J144: 1070.00 | K144: 1049.5 | L144: 1026 | M144: 0.78111
A145: 136 | B145: MUTHOOTFIN | C145: 530.7 | D145: 531.77 | E145: 527.23 | F145: 523.77 | G145: 519.23 | H145: 535.23 | I145: 539.77 | J145: 543.23 | K145: 536.3 | L145: 528.3 | M145: 6.77044
A146: 137 | B146: NATCOPHARM | C146: 569.95 | D146: 572.93 | E146: 565.37 | F146: 560.78 | G146: 553.22 | H146: 577.52 | I146: 585.08 | J146: 589.67 | K146: 580.5 | L146: 568.35 | M146: 2.06053
A147: 138 | B147: NBCC | C147: 55.05 | D147: 54.50 | E147: 53.60 | F147: 52.15 | G147: 51.25 | H147: 55.95 | I147: 56.85 | J147: 58.30 | K147: 55.4 | L147: 53.05 | M147: 72.7043
A148: 139 | B148: NHPC | C148: 23.1 | D148: 23.10 | E148: 22.95 | F148: 22.80 | G148: 22.65 | H148: 23.25 | I148: 23.40 | J148: 23.55 | K148: 23.25 | L148: 22.95 | M148: 56.86625
A149: 140 | B149: NMDC | C149: 102.75 | D149: 102.37 | E149: 101.58 | F149: 100.42 | G149: 99.63 | H149: 103.53 | I149: 104.32 | J149: 105.48 | K149: 103.15 | L149: 101.2 | M149: 47.48926
A150: 141 | B150: NTPC | C150: 143 | D150: 142.80 | E150: 141.85 | F150: 140.70 | G150: 139.75 | H150: 143.95 | I150: 144.90 | J150: 146.05 | K150: 143.75 | L150: 141.65 | M150: 56.57562
A151: 142 | B151: NATIONALUM | C151: 53.65 | D151: 52.92 | E151: 51.93 | F151: 50.22 | G151: 49.23 | H151: 54.63 | I151: 55.62 | J151: 57.33 | K151: 53.9 | L151: 51.2 | M151: 332.58174
A152: 143 | B152: OBEROIRLTY | C152: 486.35 | D152: 490.53 | E152: 479.82 | F152: 473.28 | G152: 462.57 | H152: 497.07 | I152: 507.78 | J152: 514.32 | K152: 501.25 | L152: 484 | M152: 3.54204
A153: 144 | B153: ONGC | C153: 149.1 | D153: 149.05 | E153: 147.90 | F153: 146.70 | G153: 145.55 | H153: 150.25 | I153: 151.40 | J153: 152.60 | K153: 150.2 | L153: 147.85 | M153: 97.64801
A154: 145 | B154: OIL | C154: 178.4 | D154: 177.42 | E154: 175.53 | F154: 172.67 | G154: 170.78 | H154: 180.28 | I154: 182.17 | J154: 185.03 | K154: 179.3 | L154: 174.55 | M154: 14.7838
A155: 146 | B155: OFSS | C155: 3504.8 | D155: 3515.42 | E155: 3480.53 | F155: 3456.27 | G155: 3421.38 | H155: 3539.68 | I155: 3574.57 | J155: 3598.83 | K155: 3550.3 | L155: 3491.15 | M155: 0.08558
A156: 147 | B156: PCJEWELLER | C156: 72.3 | D156: 72.17 | E156: 70.83 | F156: 69.37 | G156: 68.03 | H156: 73.63 | I156: 74.97 | J156: 76.43 | K156: 73.5 | L156: 70.7 | M156: 83.38836
A157: 148 | B157: PIIND | C157: 930.15 | D157: 932.13 | E157: 919.27 | F157: 908.38 | G157: 895.52 | H157: 943.02 | I157: 955.88 | J157: 966.77 | K157: 945 | L157: 921.25 | M157: 3.15797
A158: 149 | B158: PNBHOUSING | C158: 910.3 | D158: 909.45 | E158: 900.90 | F158: 891.50 | G158: 882.95 | H158: 918.85 | I158: 927.40 | J158: 936.80 | K158: 918 | L158: 900.05 | M158: 0.87849
A159: 150 | B159: PAGEIND | C159: 22246.5 | D159: 22330.57 | E159: 22085.93 | F159: 21925.37 | G159: 21680.73 | H159: 22491.13 | I159: 22735.77 | J159: 22896.33 | K159: 22575.2 | L159: 22170 | M159: 0.32964
A160: 151 | B160: PETRONET | C160: 223.4 | D160: 223.95 | E160: 221.95 | F160: 220.50 | G160: 218.50 | H160: 225.40 | I160: 227.40 | J160: 228.85 | K160: 225.95 | L160: 222.5 | M160: 20.2778
A161: 152 | B161: PIDILITIND | C161: 1144.15 | D161: 1145.00 | E161: 1131.25 | F161: 1118.35 | G161: 1104.60 | H161: 1157.90 | I161: 1171.65 | J161: 1184.55 | K161: 1158.75 | L161: 1132.1 | M161: 3.59987
A162: 153 | B162: PEL | C162: 2372 | D162: 2359.97 | E162: 2331.03 | F162: 2290.07 | G162: 2261.13 | H162: 2400.93 | I162: 2429.87 | J162: 2470.83 | K162: 2388.9 | L162: 2319 | M162: 3.5254
A163: 154 | B163: PFC | C163: 113.45 | D163: 113.25 | E163: 112.30 | F163: 111.15 | G163: 110.20 | H163: 114.40 | I163: 115.35 | J163: 116.50 | K163: 114.2 | L163: 112.1 | M163: 59.56969
A164: 155 | B164: POWERGRID | C164: 183.2 | D164: 183.02 | E164: 182.28 | F164: 181.37 | G164: 180.63 | H164: 183.93 | I164: 184.67 | J164: 185.58 | K164: 183.75 | L164: 182.1 | M164: 40.65623
A165: 156 | B165: PRESTIGE | C165: 204.4 | D165: 205.15 | E165: 202.35 | F165: 200.30 | G165: 197.50 | H165: 207.20 | I165: 210.00 | J165: 212.05 | K165: 207.95 | L165: 203.1 | M165: 0.7673
A166: 157 | B166: PGHH | C166: 10950.85 | D166: 10825.37 | E166: 10650.73 | F166: 10350.62 | G166: 10175.98 | H166: 11125.48 | I166: 11300.12 | J166: 11600.23 | K166: 11000 | L166: 10525.25 | M166: 0.02458
A167: 158 | B167: PNB | C167: 76.65 | D167: 75.45 | E167: 73.90 | F167: 71.15 | G167: 69.60 | H167: 78.20 | I167: 79.75 | J167: 82.50 | K167: 77 | L167: 72.7 | M167: 376.60508
A168: 159 | B168: RBLBANK | C168: 595.8 | D168: 590.53 | E168: 583.37 | F168: 570.93 | G168: 563.77 | H168: 602.97 | I168: 610.13 | J168: 622.57 | K168: 597.7 | L168: 578.1 | M168: 15.27384
A169: 160 | B169: RAJESHEXPO | C169: 568.5 | D169: 569.50 | E169: 565.00 | F169: 561.50 | G169: 557.00 | H169: 573.00 | I169: 577.50 | J169: 581.00 | K169: 574 | L169: 566 | M169: 1.43814
A170: 161 | B170: RELCAPITAL | C170: 181.8 | D170: 179.57 | E170: 175.43 | F170: 169.07 | G170: 164.93 | H170: 185.93 | I170: 190.07 | J170: 196.43 | K170: 183.7 | L170: 173.2 | M170: 105.0594
A171: 162 | B171: RCOM | C171: 6.6 | D171: 6.62 | E171: 6.48 | F171: 6.37 | G171: 6.23 | H171: 6.73 | I171: 6.87 | J171: 6.98 | K171: 6.75 | L171: 6.5 | M171: 378.10434
A172: 163 | B172: RELIANCE | C172: 1226.05 | D172: 1230.22 | E172: 1218.08 | F172: 1210.12 | G172: 1197.98 | H172: 1238.18 | I172: 1250.32 | J172: 1258.28 | K172: 1242.35 | L172: 1222.25 | M172: 79.22513
A173: 164 | B173: RELINFRA | C173: 125.25 | D173: 124.90 | E173: 122.00 | F173: 118.75 | G173: 115.85 | H173: 128.15 | I173: 131.05 | J173: 134.30 | K173: 127.8 | L173: 121.65 | M173: 215.88299
A174: 165 | B174: RPOWER | C174: 12.35 | D174: 11.90 | E174: 11.25 | F174: 10.15 | G174: 9.50 | H174: 13.00 | I174: 13.65 | J174: 14.75 | K174: 12.55 | L174: 10.8 | M174: 1815.01193
A175: 166 | B175: RECLTD | C175: 137.3 | D175: 137.33 | E175: 136.27 | F175: 135.23 | G175: 134.17 | H175: 138.37 | I175: 139.43 | J175: 140.47 | K175: 138.4 | L175: 136.3 | M175: 76.21163
A176: 167 | B176: SRF | C176: 2285.8 | D176: 2298.40 | E176: 2257.90 | F176: 2230.00 | G176: 2189.50 | H176: 2326.30 | I176: 2366.80 | J176: 2394.70 | K176: 2338.9 | L176: 2270.5 | M176: 4.34985
A177: 168 | B177: SHREECEM | C177: 16687.35 | D177: 16695.02 | E177: 16554.38 | F177: 16421.42 | G177: 16280.78 | H177: 16827.98 | I177: 16968.62 | J177: 17101.58 | K177: 16835.65 | L177: 16562.05 | M177: 0.27102
A178: 169 | B178: SRTRANSFIN | C178: 1159.9 | D178: 1156.43 | E178: 1147.87 | F178: 1135.83 | G178: 1127.27 | H178: 1168.47 | I178: 1177.03 | J178: 1189.07 | K178: 1165 | L178: 1144.4 | M178: 8.35837
A179: 170 | B179: SIEMENS | C179: 1009.35 | D179: 1007.17 | E179: 994.43 | F179: 979.52 | G179: 966.78 | H179: 1022.08 | I179: 1034.82 | J179: 1049.73 | K179: 1019.9 | L179: 992.25 | M179: 5.29219
A180: 171 | B180: SBIN | C180: 272.95 | D180: 272.55 | E180: 270.50 | F180: 268.05 | G180: 266.00 | H180: 275.00 | I180: 277.05 | J180: 279.50 | K180: 274.6 | L180: 270.1 | M180: 200.24726
A181: 172 | B181: SAIL | C181: 52.35 | D181: 51.37 | E181: 49.88 | F181: 47.42 | G181: 45.93 | H181: 53.83 | I181: 55.32 | J181: 57.78 | K181: 52.85 | L181: 48.9 | M181: 540.34849
A182: 173 | B182: SPARC | C182: 185.45 | D182: 183.15 | E182: 179.80 | F182: 174.15 | G182: 170.80 | H182: 188.80 | I182: 192.15 | J182: 197.80 | K182: 186.5 | L182: 177.5 | M182: 7.35839
A183: 174 | B183: SUNPHARMA | C183: 447.35 | D183: 447.80 | E183: 444.60 | F183: 441.85 | G183: 438.65 | H183: 450.55 | I183: 453.75 | J183: 456.50 | K183: 451 | L183: 445.05 | M183: 56.08805
A184: 175 | B184: SUNTV | C184: 615.9 | D184: 612.97 | E184: 607.93 | F184: 599.97 | G184: 594.93 | H184: 620.93 | I184: 625.97 | J184: 633.93 | K184: 618 | L184: 605 | M184: 25.41891
A185: 176 | B185: SUZLON | C185: 5.95 | D185: 5.90 | E185: 5.80 | F185: 5.65 | G185: 5.55 | H185: 6.05 | I185: 6.15 | J185: 6.30 | K185: 6 | L185: 5.75 | M185: 473.08179
A186: 177 | B186: SYNDIBANK | C186: 35.7 | D186: 35.07 | E186: 34.23 | F186: 32.77 | G186: 31.93 | H186: 36.53 | I186: 37.37 | J186: 38.83 | K186: 35.9 | L186: 33.6 | M186: 72.48087
A187: 178 | B187: SYNGENE | C187: 584.1 | D187: 587.38 | E187: 579.77 | F187: 575.43 | G187: 567.82 | H187: 591.72 | I187: 599.33 | J187: 603.67 | K187: 595 | L187: 583.05 | M187: 0.21175
A188: 179 | B188: TV18BRDCST | C188: 35.55 | D188: 35.02 | E188: 34.18 | F188: 32.82 | G188: 31.98 | H188: 36.38 | I188: 37.22 | J188: 38.58 | K188: 35.85 | L188: 33.65 | M188: 62.74439
A189: 180 | B189: TVSMOTOR | C189: 467.65 | D189: 464.05 | E189: 459.30 | F189: 450.95 | G189: 446.20 | H189: 472.40 | I189: 477.15 | J189: 485.50 | K189: 468.8 | L189: 455.7 | M189: 14.16873
A190: 181 | B190: TATACHEM | C190: 564.55 | D190: 563.98 | E190: 559.57 | F190: 554.58 | G190: 550.17 | H190: 568.97 | I190: 573.38 | J190: 578.37 | K190: 568.4 | L190: 559 | M190: 10.5604
A191: 182 | B191: TATACOMM | C191: 593.45 | D191: 588.28 | E191: 579.57 | F191: 565.68 | G191: 556.97 | H191: 602.17 | I191: 610.88 | J191: 624.77 | K191: 597 | L191: 574.4 | M191: 3.8625
A192: 183 | B192: TCS | C192: 1995.4 | D192: 1993.58 | E192: 1982.17 | F192: 1968.93 | G192: 1957.52 | H192: 2006.82 | I192: 2018.23 | J192: 2031.47 | K192: 2005 | L192: 1980.35 | M192: 41.48548
A193: 184 | B193: TATAGLOBAL | C193: 197.3 | D193: 196.12 | E193: 194.38 | F193: 191.47 | G193: 189.73 | H193: 199.03 | I193: 200.77 | J193: 203.68 | K193: 197.85 | L193: 193.2 | M193: 12.92085
A194: 185 | B194: TATAMTRDVR | C194: 90.25 | D194: 89.58 | E194: 88.47 | F194: 86.68 | G194: 85.57 | H194: 91.37 | I194: 92.48 | J194: 94.27 | K194: 90.7 | L194: 87.8 | M194: 85.98966
A195: 186 | B195: TATAMOTORS | C195: 180.3 | D195: 180.55 | E195: 177.10 | F195: 173.90 | G195: 170.45 | H195: 183.75 | I195: 187.20 | J195: 190.40 | K195: 184 | L195: 177.35 | M195: 205.39919
A196: 187 | B196: TATAPOWER | C196: 67.05 | D196: 66.80 | E196: 65.85 | F196: 64.65 | G196: 63.70 | H196: 68.00 | I196: 68.95 | J196: 70.15 | K196: 67.75 | L196: 65.6 | M196: 110.01198
A197: 188 | B197: TATASTEEL | C197: 507.6 | D197: 506.43 | E197: 503.17 | F197: 498.73 | G197: 495.47 | H197: 510.87 | I197: 514.13 | J197: 518.57 | K197: 509.7 | L197: 502 | M197: 66.72569
A198: 189 | B198: TECHM | C198: 831.8 | D198: 832.47 | E198: 828.43 | F198: 825.07 | G198: 821.03 | H198: 835.83 | I198: 839.87 | J198: 843.23 | K198: 836.5 | L198: 829.1 | M198: 38.20707
A199: 190 | B199: RAMCOCEM | C199: 687.8 | D199: 681.43 | E199: 671.77 | F199: 655.73 | G199: 646.07 | H199: 697.47 | I199: 707.13 | J199: 723.17 | K199: 691.1 | L199: 665.4 | M199: 7.01843
A200: 191 | B200: TITAN | C200: 1021.35 | D200: 1024.82 | E200: 1013.63 | F200: 1005.92 | G200: 994.73 | H200: 1032.53 | I200: 1043.72 | J200: 1051.43 | K200: 1036 | L200: 1017.1 | M200: 19.67656
A201: 192 | B201: TORNTPHARM | C201: 1785.8 | D201: 1790.10 | E201: 1770.70 | F201: 1755.60 | G201: 1736.20 | H201: 1805.20 | I201: 1824.60 | J201: 1839.70 | K201: 1809.5 | L201: 1775 | M201: 2.69906
A202: 193 | B202: TORNTPOWER | C202: 245.45 | D202: 245.42 | E202: 242.98 | F202: 240.52 | G202: 238.08 | H202: 247.88 | I202: 250.32 | J202: 252.78 | K202: 247.85 | L202: 242.95 | M202: 6.81309
A203: 194 | B203: UPL | C203: 869.75 | D203: 873.27 | E203: 864.63 | F203: 859.52 | G203: 850.88 | H203: 878.38 | I203: 887.02 | J203: 892.13 | K203: 881.9 | L203: 868.15 | M203: 16.59613
A204: 195 | B204: ULTRACEMCO | C204: 3878.35 | D204: 3868.13 | E204: 3836.77 | F204: 3795.18 | G204: 3763.82 | H204: 3909.72 | I204: 3941.08 | J204: 3982.67 | K204: 3899.5 | L204: 3826.55 | M204: 2.70365
A205: 196 | B205: UNIONBANK | C205: 77.15 | D205: 75.80 | E205: 73.15 | F205: 69.15 | G205: 66.50 | H205: 79.80 | I205: 82.45 | J205: 86.45 | K205: 78.45 | L205: 71.8 | M205: 193.95161
... 29 more rows

Sheet MidCap Intra
L5: Back To Main Page
A6: FOR INTRA DAY TRADING | K6: =Main!B10 -> 2019-03-05
A9: Sr.no | B9: Scrip | C9: CLOSE RATE | D9: Pivot Point | E9: Supports | H9: Resistances
C10: Point | E10: S1 | F10: S2 | G10: S3 | H10: R1 | I10: R2 | J10: R3 | K10: HIGH | L10: LOW | M10: Total Trade Quanity in Lakhs
A11: 1 | B11: 3MINDIA | C11: 23011.5 | D11: 23175.48 | E11: 22763.02 | F11: 22514.53 | G11: 22102.07 | H11: 23423.97 | I11: 23836.43 | J11: 24084.92 | K11: 23587.95 | L11: 22927 | M11: 0.03951
A12: 2 | B12: 8KMILES | C12: 106.6 | D12: 106.23 | E12: 104.57 | F12: 102.53 | G12: 100.87 | H12: 108.27 | I12: 109.93 | J12: 111.97 | K12: 107.9 | L12: 104.2 | M12: 2.30708
A13: 3 | B13: AARTIIND | C13: 1405.25 | D13: 1405.97 | E13: 1397.53 | F13: 1389.82 | G13: 1381.38 | H13: 1413.68 | I13: 1422.12 | J13: 1429.83 | K13: 1414.4 | L13: 1398.25 | M13: 0.51573
A14: 4 | B14: ABAN | C14: 57.6 | D14: 56.25 | E14: 53.50 | F14: 49.40 | G14: 46.65 | H14: 60.35 | I14: 63.10 | J14: 67.20 | K14: 59 | L14: 52.15 | M14: 14.00089
A15: 5 | B15: ABB | C15: 1244.5 | D15: 1247.23 | E15: 1232.47 | F15: 1220.43 | G15: 1205.67 | H15: 1259.27 | I15: 1274.03 | J15: 1286.07 | K15: 1262 | L15: 1235.2 | M15: 1.9691
A16: 6 | B16: ABCAPITAL | C16: 95.95 | D16: 94.93 | E16: 93.37 | F16: 90.78 | G16: 89.22 | H16: 97.52 | I16: 99.08 | J16: 101.67 | K16: 96.5 | L16: 92.35 | M16: 31.11358
A17: 7 | B17: ABFRL | C17: 223.45 | D17: 223.87 | E17: 220.88 | F17: 218.32 | G17: 215.33 | H17: 226.43 | I17: 229.42 | J17: 231.98 | K17: 226.85 | L17: 221.3 | M17: 4.92543
A18: 8 | B18: ACC | C18: 1481.7 | D18: 1467.37 | E18: 1434.63 | F18: 1387.57 | G18: 1354.83 | H18: 1514.43 | I18: 1547.17 | J18: 1594.23 | K18: 1500.1 | L18: 1420.3 | M18: 12.00767
A19: 9 | B19: ADANIPORTS | C19: 333.2 | D19: 331.67 | E19: 328.53 | F19: 323.87 | G19: 320.73 | H19: 336.33 | I19: 339.47 | J19: 344.13 | K19: 334.8 | L19: 327 | M19: 47.56894
A20: 10 | B20: ADANIPOWER | C20: 48.4 | D20: 48.38 | E20: 47.77 | F20: 47.13 | G20: 46.52 | H20: 49.02 | I20: 49.63 | J20: 50.27 | K20: 49 | L20: 47.75 | M20: 164.89834
A21: 11 | B21: ADANITRANS | C21: 204.75 | D21: 206.03 | E21: 201.67 | F21: 198.58 | G21: 194.22 | H21: 209.12 | I21: 213.48 | J21: 216.57 | K21: 210.4 | L21: 202.95 | M21: 1.11237
A22: 12 | B22: ADVENZYMES | C22: 150.1 | D22: 150.43 | E22: 148.67 | F22: 147.23 | G22: 145.47 | H22: 151.87 | I22: 153.63 | J22: 155.07 | K22: 152.2 | L22: 149 | M22: 0.91324
A23: 13 | B23: AEGISCHEM | C23: 207.1 | D23: 207.53 | E23: 198.67 | F23: 190.23 | G23: 181.37 | H23: 215.97 | I23: 224.83 | J23: 233.27 | K23: 216.4 | L23: 199.1 | M23: 2.28779
A24: 14 | B24: AIAENG | C24: 1776.4 | D24: 1765.02 | E24: 1715.53 | F24: 1654.67 | G24: 1605.18 | H24: 1825.88 | I24: 1875.37 | J24: 1936.23 | K24: 1814.5 | L24: 1704.15 | M24: 0.4679
A25: 15 | B25: AJANTPHARM | C25: 987.05 | D25: 988.10 | E25: 980.20 | F25: 973.35 | G25: 965.45 | H25: 994.95 | I25: 1002.85 | J25: 1009.70 | K25: 996 | L25: 981.25 | M25: 4.72765
A26: 16 | B26: AKZOINDIA | C26: 1763.65 | D26: 1771.52 | E26: 1733.23 | F26: 1702.82 | G26: 1664.53 | H26: 1801.93 | I26: 1840.22 | J26: 1870.63 | K26: 1809.8 | L26: 1741.1 | M26: 0.06631
A27: 17 | B27: ALBK | C27: 50.3 | D27: 49.60 | E27: 48.25 | F27: 46.20 | G27: 44.85 | H27: 51.65 | I27: 53.00 | J27: 55.05 | K27: 50.95 | L27: 47.55 | M27: 137.1153
A28: 18 | B28: ALKEM | C28: 1780.05 | D28: 1773.03 | E28: 1758.17 | F28: 1736.28 | G28: 1721.42 | H28: 1794.92 | I28: 1809.78 | J28: 1831.67 | K28: 1787.9 | L28: 1751.15 | M28: 0.16378
A29: 19 | B29: ALLCARGO | C29: 101.1 | D29: 101.77 | E29: 98.88 | F29: 96.67 | G29: 93.78 | H29: 103.98 | I29: 106.87 | J29: 109.08 | K29: 104.65 | L29: 99.55 | M29: 3.84172
A30: 20 | B30: AMARAJABAT | C30: 726.9 | D30: 724.78 | E30: 720.57 | F30: 714.23 | G30: 710.02 | H30: 731.12 | I30: 735.33 | J30: 741.67 | K30: 729 | L30: 718.45 | M30: 2.7754
A31: 21 | B31: AMBUJACEM | C31: 217.45 | D31: 216.50 | E31: 213.70 | F31: 209.95 | G31: 207.15 | H31: 220.25 | I31: 223.05 | J31: 226.80 | K31: 219.3 | L31: 212.75 | M31: 13.89426
A32: 22 | B32: ANDHRABANK | C32: 25.45 | D32: 25.17 | E32: 24.73 | F32: 24.02 | G32: 23.58 | H32: 25.88 | I32: 26.32 | J32: 27.03 | K32: 25.6 | L32: 24.45 | M32: 12.15606
A33: 23 | B33: APLAPOLLO | C33: 1320.9 | D33: 1303.55 | E33: 1232.35 | F33: 1143.80 | G33: 1072.60 | H33: 1392.10 | I33: 1463.30 | J33: 1551.85 | K33: 1374.75 | L33: 1215 | M33: 0.47919
A34: 24 | B34: APLLTD | C34: 553.65 | D34: 552.57 | E34: 543.08 | F34: 532.52 | G34: 523.03 | H34: 563.13 | I34: 572.62 | J34: 583.18 | K34: 562.05 | L34: 542 | M34: 0.39418
A35: 25 | B35: APOLLOHOSP | C35: 1151.85 | D35: 1152.57 | E35: 1139.28 | F35: 1126.72 | G35: 1113.43 | H35: 1165.13 | I35: 1178.42 | J35: 1190.98 | K35: 1165.85 | L35: 1140 | M35: 9.04319
A36: 26 | B36: APOLLOTYRE | C36: 219.9 | D36: 219.18 | E36: 218.02 | F36: 216.13 | G36: 214.97 | H36: 221.07 | I36: 222.23 | J36: 224.12 | K36: 220.35 | L36: 217.3 | M36: 17.63953
A37: 27 | B37: ARVIND | C37: 83.1 | D37: 81.07 | E37: 78.38 | F37: 73.67 | G37: 70.98 | H37: 85.78 | I37: 88.47 | J37: 93.18 | K37: 83.75 | L37: 76.35 | M37: 102.32121
A38: 28 | B38: ASAHIINDIA | C38: 263.5 | D38: 262.13 | E38: 259.32 | F38: 255.13 | G38: 252.32 | H38: 266.32 | I38: 269.13 | J38: 273.32 | K38: 264.95 | L38: 257.95 | M38: 0.14069
A39: 29 | B39: ASHOKA | C39: 121.2 | D39: 120.73 | E39: 119.07 | F39: 116.93 | G39: 115.27 | H39: 122.87 | I39: 124.53 | J39: 126.67 | K39: 122.4 | L39: 118.6 | M39: 12.62787
A40: 30 | B40: ASHOKLEY | C40: 86.6 | D40: 86.30 | E40: 84.70 | F40: 82.80 | G40: 81.20 | H40: 88.20 | I40: 89.80 | J40: 91.70 | K40: 87.9 | L40: 84.4 | M40: 345.21039
A41: 31 | B41: ASIANPAINT | C41: 1392.35 | D41: 1399.47 | E41: 1380.98 | F41: 1369.62 | G41: 1351.13 | H41: 1410.83 | I41: 1429.32 | J41: 1440.68 | K41: 1417.95 | L41: 1388.1 | M41: 7.83876
A42: 32 | B42: ASTRAL | C42: 1084.5 | D42: 1087.50 | E42: 1077.00 | F42: 1069.50 | G42: 1059.00 | H42: 1095.00 | I42: 1105.50 | J42: 1113.00 | K42: 1098 | L42: 1080 | M42: 0.34036
A43: 33 | B43: ATUL | C43: 3381.9 | D43: 3380.98 | E43: 3343.92 | F43: 3305.93 | G43: 3268.87 | H43: 3418.97 | I43: 3456.03 | J43: 3494.02 | K43: 3418.05 | L43: 3343 | M43: 0.11359
A44: 34 | B44: AUBANK | C44: 569.6 | D44: 570.45 | E44: 561.15 | F44: 552.70 | G44: 543.40 | H44: 578.90 | I44: 588.20 | J44: 596.65 | K44: 579.75 | L44: 562 | M44: 5.02483
A45: 35 | B45: AUROPHARMA | C45: 724.95 | D45: 722.12 | E45: 716.53 | F45: 708.12 | G45: 702.53 | H45: 730.53 | I45: 736.12 | J45: 744.53 | K45: 727.7 | L45: 713.7 | M45: 17.75302
A46: 36 | B46: AVANTIFEED | C46: 345.55 | D46: 343.52 | E46: 337.13 | F46: 328.72 | G46: 322.33 | H46: 351.93 | I46: 358.32 | J46: 366.73 | K46: 349.9 | L46: 335.1 | M46: 4.47932
A47: 37 | B47: AXISBANK | C47: 702.4 | D47: 705.63 | E47: 696.32 | F47: 690.23 | G47: 680.92 | H47: 711.72 | I47: 721.03 | J47: 727.12 | K47: 714.95 | L47: 699.55 | M47: 77.13824
A48: 38 | B48: BAJAJ-AUTO | C48: 2863.5 | D48: 2887.57 | E48: 2832.13 | F48: 2800.77 | G48: 2745.33 | H48: 2918.93 | I48: 2974.37 | J48: 3005.73 | K48: 2943 | L48: 2856.2 | M48: 10.08494
A49: 39 | B49: BAJAJCON | C49: 349.4 | D49: 349.33 | E49: 348.17 | F49: 346.93 | G49: 345.77 | H49: 350.57 | I49: 351.73 | J49: 352.97 | K49: 350.5 | L49: 348.1 | M49: 0.10233
A50: 40 | B50: BAJAJELEC | C50: 453.6 | D50: 453.92 | E50: 448.83 | F50: 444.07 | G50: 438.98 | H50: 458.68 | I50: 463.77 | J50: 468.53 | K50: 459 | L50: 449.15 | M50: 2.11484
A51: 41 | B51: BAJAJFINSV | C51: 6440.6 | D51: 6469.55 | E51: 6399.10 | F51: 6357.60 | G51: 6287.15 | H51: 6511.05 | I51: 6581.50 | J51: 6623.00 | K51: 6540 | L51: 6428.05 | M51: 2.22076
A52: 42 | B52: BAJAJHIND | C52: 8.55 | D52: 8.55 | E52: 8.45 | F52: 8.35 | G52: 8.25 | H52: 8.65 | I52: 8.75 | J52: 8.85 | K52: 8.65 | L52: 8.45 | M52: 29.19731
A53: 43 | B53: BAJAJHLDNG | C53: 3170.3 | D53: 3175.77 | E53: 3146.53 | F53: 3122.77 | G53: 3093.53 | H53: 3199.53 | I53: 3228.77 | J53: 3252.53 | K53: 3205 | L53: 3152 | M53: 0.1282
A54: 44 | B54: BAJFINANCE | C54: 2660.75 | D54: 2658.35 | E54: 2642.40 | F54: 2624.05 | G54: 2608.10 | H54: 2676.70 | I54: 2692.65 | J54: 2711.00 | K54: 2674.3 | L54: 2640 | M54: 7.07094
A55: 45 | B55: BALKRISIND | C55: 894.7 | D55: 893.73 | E55: 887.17 | F55: 879.63 | G55: 873.07 | H55: 901.27 | I55: 907.83 | J55: 915.37 | K55: 900.3 | L55: 886.2 | M55: 5.38236
A56: 46 | B56: BALLARPUR | C56: 3.8 | D56: 3.77 | E56: 3.68 | F56: 3.57 | G56: 3.48 | H56: 3.88 | I56: 3.97 | J56: 4.08 | K56: 3.85 | L56: 3.65 | M56: 7.35734
A57: 47 | B57: BALMLAWRIE | C57: 180.4 | D57: 178.85 | E57: 176.55 | F57: 172.70 | G57: 170.40 | H57: 182.70 | I57: 185.00 | J57: 188.85 | K57: 181.15 | L57: 175 | M57: 0.31654
A58: 48 | B58: BALRAMCHIN | C58: 134.95 | D58: 135.08 | E58: 133.42 | F58: 131.88 | G58: 130.22 | H58: 136.62 | I58: 138.28 | J58: 139.82 | K58: 136.75 | L58: 133.55 | M58: 44.31652
A59: 49 | B59: BANKBARODA | C59: 108.1 | D59: 106.17 | E59: 103.53 | F59: 98.97 | G59: 96.33 | H59: 110.73 | I59: 113.37 | J59: 117.93 | K59: 108.8 | L59: 101.6 | M59: 295.05475
A60: 50 | B60: BANKINDIA | C60: 87.5 | D60: 86.30 | E60: 84.35 | F60: 81.20 | G60: 79.25 | H60: 89.45 | I60: 91.40 | J60: 94.55 | K60: 88.25 | L60: 83.15 | M60: 139.52084
A61: 51 | B61: BASF | C61: 1331.25 | D61: 1330.67 | E61: 1306.33 | F61: 1281.42 | G61: 1257.08 | H61: 1355.58 | I61: 1379.92 | J61: 1404.83 | K61: 1355 | L61: 1305.75 | M61: 0.17486
A62: 52 | B62: BATAINDIA | C62: 1280.05 | D62: 1282.85 | E62: 1268.45 | F62: 1256.85 | G62: 1242.45 | H62: 1294.45 | I62: 1308.85 | J62: 1320.45 | K62: 1297.25 | L62: 1271.25 | M62: 7.61639
A63: 53 | B63: BBTC | C63: 1219.55 | D63: 1215.18 | E63: 1197.37 | F63: 1175.18 | G63: 1157.37 | H63: 1237.37 | I63: 1255.18 | J63: 1277.37 | K63: 1233 | L63: 1193 | M63: 0.85912
A64: 54 | B64: BEL | C64: 85 | D64: 84.43 | E64: 83.57 | F64: 82.13 | G64: 81.27 | H64: 85.87 | I64: 86.73 | J64: 88.17 | K64: 85.3 | L64: 83 | M64: 113.38932
A65: 55 | B65: BEML | C65: 851 | D65: 849.53 | E65: 840.12 | F65: 829.23 | G65: 819.82 | H65: 860.42 | I65: 869.83 | J65: 880.72 | K65: 858.95 | L65: 838.65 | M65: 16.80749
A66: 56 | B66: BERGEPAINT | C66: 302.2 | D66: 303.60 | E66: 299.80 | F66: 297.40 | G66: 293.60 | H66: 306.00 | I66: 309.80 | J66: 312.20 | K66: 307.4 | L66: 301.2 | M66: 4.72234
A67: 57 | B67: BFUTILITIE | C67: 181.65 | D67: 182.28 | E67: 179.17 | F67: 176.68 | G67: 173.57 | H67: 184.77 | I67: 187.88 | J67: 190.37 | K67: 185.4 | L67: 179.8 | M67: 6.09352
A68: 58 | B68: BGRENERGY | C68: 50.8 | D68: 50.43 | E68: 49.37 | F68: 47.93 | G68: 46.87 | H68: 51.87 | I68: 52.93 | J68: 54.37 | K68: 51.5 | L68: 49 | M68: 0.84138
A69: 59 | B69: BHARATFIN | C69: 949.9 | D69: 943.27 | E69: 931.63 | F69: 913.37 | G69: 901.73 | H69: 961.53 | I69: 973.17 | J69: 991.43 | K69: 954.9 | L69: 925 | M69: 5.39921
A70: 60 | B70: BHARATFORG | C70: 519.75 | D70: 517.10 | E70: 512.65 | F70: 505.55 | G70: 501.10 | H70: 524.20 | I70: 528.65 | J70: 535.75 | K70: 521.55 | L70: 510 | M70: 11.54025
A71: 61 | B71: BHARTIARTL | C71: 307.65 | D71: 309.18 | E71: 300.57 | F71: 293.48 | G71: 284.87 | H71: 316.27 | I71: 324.88 | J71: 331.97 | K71: 317.8 | L71: 302.1 | M71: 266.57232
A72: 62 | B72: BHEL | C72: 66.15 | D72: 65.80 | E72: 65.00 | F72: 63.85 | G72: 63.05 | H72: 66.95 | I72: 67.75 | J72: 68.90 | K72: 66.6 | L72: 64.65 | M72: 93.09674
A73: 63 | B73: BIOCON | C73: 632.9 | D73: 630.10 | E73: 625.80 | F73: 618.70 | G73: 614.40 | H73: 637.20 | I73: 641.50 | J73: 648.60 | K73: 634.4 | L73: 623 | M73: 8.4857
A74: 64 | B74: BIRLACORPN | C74: 505 | D74: 493.53 | E74: 477.57 | F74: 450.13 | G74: 434.17 | H74: 520.97 | I74: 536.93 | J74: 564.37 | K74: 509.5 | L74: 466.1 | M74: 2.53621
A75: 65 | B75: BLISSGVS | C75: 179.25 | D75: 180.00 | E75: 177.25 | F75: 175.25 | G75: 172.50 | H75: 182.00 | I75: 184.75 | J75: 186.75 | K75: 182.75 | L75: 178 | M75: 4.9633
A76: 66 | B76: BLUEDART | C76: 3143.65 | D76: 3145.53 | E76: 3121.07 | F76: 3098.48 | G76: 3074.02 | H76: 3168.12 | I76: 3192.58 | J76: 3215.17 | K76: 3170 | L76: 3122.95 | M76: 0.01112
A77: 67 | B77: BLUESTARCO | C77: 624.95 | D77: 624.57 | E77: 619.18 | F77: 613.42 | G77: 608.03 | H77: 630.33 | I77: 635.72 | J77: 641.48 | K77: 629.95 | L77: 618.8 | M77: 0.16749
A78: 68 | B78: BOMDYEING | C78: 114 | D78: 113.83 | E78: 111.17 | F78: 108.33 | G78: 105.67 | H78: 116.67 | I78: 119.33 | J78: 122.17 | K78: 116.5 | L78: 111 | M78: 11.55524
A79: 69 | B79: BOSCHLTD | C79: 18749.75 | D79: 18816.92 | E79: 18633.83 | F79: 18517.92 | G79: 18334.83 | H79: 18932.83 | I79: 19115.92 | J79: 19231.83 | K79: 19000 | L79: 18701 | M79: 0.11992
A80: 70 | B80: BPCL | C80: 346.05 | D80: 343.58 | E80: 339.62 | F80: 333.18 | G80: 329.22 | H80: 350.02 | I80: 353.98 | J80: 360.42 | K80: 347.55 | L80: 337.15 | M80: 28.72248
A81: 71 | B81: BRFL | C81: 8.65 | D81: 8.75 | E81: 8.45 | F81: 8.25 | G81: 7.95 | H81: 8.95 | I81: 9.25 | J81: 9.45 | K81: 9.05 | L81: 8.55 | M81: 0.54625
A82: 72 | B82: BRIGADE | C82: 201.8 | D82: 200.97 | E82: 198.08 | F82: 194.37 | G82: 191.48 | H82: 204.68 | I82: 207.57 | J82: 211.28 | K82: 203.85 | L82: 197.25 | M82: 0.61605
A83: 73 | B83: BRITANNIA | C83: 3077.25 | D83: 3076.63 | E83: 3062.92 | F83: 3048.58 | G83: 3034.87 | H83: 3090.97 | I83: 3104.68 | J83: 3119.02 | K83: 3090.35 | L83: 3062.3 | M83: 2.1742
A84: 74 | B84: BSE | C84: 570.7 | D84: 570.27 | E84: 568.03 | F84: 565.37 | G84: 563.13 | H84: 572.93 | I84: 575.17 | J84: 577.83 | K84: 572.5 | L84: 567.6 | M84: 1.14506
A85: 75 | B85: BSOFT | C85: 107.45 | D85: 107.83 | E85: 106.77 | F85: 106.08 | G85: 105.02 | H85: 108.52 | I85: 109.58 | J85: 110.27 | K85: 108.9 | L85: 107.15 | M85: 4.89876
A86: 77 | B86: CADILAHC | C86: 323.2 | D86: 321.62 | E86: 319.03 | F86: 314.87 | G86: 312.28 | H86: 325.78 | I86: 328.37 | J86: 332.53 | K86: 324.2 | L86: 317.45 | M86: 9.70103
A87: 78 | B87: CANBK | C87: 242.4 | D87: 239.75 | E87: 235.15 | F87: 227.90 | G87: 223.30 | H87: 247.00 | I87: 251.60 | J87: 258.85 | K87: 244.35 | L87: 232.5 | M87: 68.44534
A88: 79 | B88: CANFINHOME | C88: 275.8 | D88: 273.68 | E88: 269.32 | F88: 262.83 | G88: 258.47 | H88: 280.17 | I88: 284.53 | J88: 291.02 | K88: 278.05 | L88: 267.2 | M88: 12.67073
A89: 80 | B89: CAPLIPOINT | C89: 390.4 | D89: 391.30 | E89: 384.65 | F89: 378.90 | G89: 372.25 | H89: 397.05 | I89: 403.70 | J89: 409.45 | K89: 397.95 | L89: 385.55 | M89: 0.25479
A90: 81 | B90: CARBORUNIV | C90: 380.85 | D90: 379.70 | E90: 368.40 | F90: 355.95 | G90: 344.65 | H90: 392.15 | I90: 403.45 | J90: 415.90 | K90: 391 | L90: 367.25 | M90: 1.0606
A91: 82 | B91: CARERATING | C91: 962.75 | D91: 965.35 | E91: 952.45 | F91: 942.15 | G91: 929.25 | H91: 975.65 | I91: 988.55 | J91: 998.85 | K91: 978.25 | L91: 955.05 | M91: 0.24209
A92: 83 | B92: CASTROLIND | C92: 160.55 | D92: 158.75 | E92: 156.05 | F92: 151.55 | G92: 148.85 | H92: 163.25 | I92: 165.95 | J92: 170.45 | K92: 161.45 | L92: 154.25 | M92: 18.06531
A93: 84 | B93: CCL | C93: 279.4 | D93: 279.87 | E93: 276.33 | F93: 273.27 | G93: 269.73 | H93: 282.93 | I93: 286.47 | J93: 289.53 | K93: 283.4 | L93: 276.8 | M93: 0.96796
A94: 85 | B94: CDSL | C94: 220.5 | D94: 221.22 | E94: 217.43 | F94: 214.37 | G94: 210.58 | H94: 224.28 | I94: 228.07 | J94: 231.13 | K94: 225 | L94: 218.15 | M94: 2.0975
A95: 86 | B95: CEATLTD | C95: 1110.55 | D95: 1108.48 | E95: 1102.07 | F95: 1093.58 | G95: 1087.17 | H95: 1116.97 | I95: 1123.38 | J95: 1131.87 | K95: 1114.9 | L95: 1100 | M95: 3.89188
A96: 87 | B96: CENTRALBK | C96: 31.05 | D96: 30.95 | E96: 30.55 | F96: 30.05 | G96: 29.65 | H96: 31.45 | I96: 31.85 | J96: 32.35 | K96: 31.35 | L96: 30.45 | M96: 5.09242
A97: 88 | B97: CENTURYPLY | C97: 181.55 | D97: 177.18 | E97: 171.37 | F97: 161.18 | G97: 155.37 | H97: 187.37 | I97: 193.18 | J97: 203.37 | K97: 183 | L97: 167 | M97: 9.16459
A98: 89 | B98: CENTURYTEX | C98: 830.75 | D98: 824.25 | E98: 812.50 | F98: 794.25 | G98: 782.50 | H98: 842.50 | I98: 854.25 | J98: 872.50 | K98: 836 | L98: 806 | M98: 5.33531
A99: 90 | B99: CERA | C99: 2470.05 | D99: 2450.88 | E99: 2406.72 | F99: 2343.38 | G99: 2299.22 | H99: 2514.22 | I99: 2558.38 | J99: 2621.72 | K99: 2495.05 | L99: 2387.55 | M99: 0.03373
A100: 91 | B100: CGPOWER | C100: 36.6 | D100: 35.38 | E100: 33.67 | F100: 30.73 | G100: 29.02 | H100: 38.32 | I100: 40.03 | J100: 42.97 | K100: 37.1 | L100: 32.45 | M100: 485.21743
A101: 92 | B101: CHAMBLFERT | C101: 160.6 | D101: 160.65 | E101: 157.95 | F101: 155.30 | G101: 152.60 | H101: 163.30 | I101: 166.00 | J101: 168.65 | K101: 163.35 | L101: 158 | M101: 1.45842
A102: 93 | B102: CHENNPETRO | C102: 240.85 | D102: 237.78 | E102: 233.17 | F102: 225.48 | G102: 220.87 | H102: 245.47 | I102: 250.08 | J102: 257.77 | K102: 242.4 | L102: 230.1 | M102: 11.06743
A103: 94 | B103: CHOLAFIN | C103: 1269.15 | D103: 1256.57 | E103: 1238.13 | F103: 1207.12 | G103: 1188.68 | H103: 1287.58 | I103: 1306.02 | J103: 1337.03 | K103: 1275 | L103: 1225.55 | M103: 5.12706
A104: 95 | B104: CIPLA | C104: 551.55 | D104: 551.42 | E104: 547.53 | F104: 543.52 | G104: 539.63 | H104: 555.43 | I104: 559.32 | J104: 563.33 | K104: 555.3 | L104: 547.4 | M104: 24.30914
A105: 96 | B105: COALINDIA | C105: 232.65 | D105: 230.75 | E105: 228.50 | F105: 224.35 | G105: 222.10 | H105: 234.90 | I105: 237.15 | J105: 241.30 | K105: 233 | L105: 226.6 | M105: 95.26492
A106: 97 | B106: COCHINSHIP | C106: 363.8 | D106: 360.22 | E106: 353.43 | F106: 343.07 | G106: 336.28 | H106: 370.58 | I106: 377.37 | J106: 387.73 | K106: 367 | L106: 349.85 | M106: 1.09931
A107: 98 | B107: COFFEEDAY | C107: 275.25 | D107: 275.03 | E107: 272.32 | F107: 269.38 | G107: 266.67 | H107: 277.97 | I107: 280.68 | J107: 283.62 | K107: 277.75 | L107: 272.1 | M107: 1.19436
A108: 99 | B108: COLPAL | C108: 1245.95 | D108: 1251.32 | E108: 1237.73 | F108: 1229.52 | G108: 1215.93 | H108: 1259.53 | I108: 1273.12 | J108: 1281.33 | K108: 1264.9 | L108: 1243.1 | M108: 3.30433
A109: 100 | B109: CONCOR | C109: 478.15 | D109: 475.72 | E109: 471.53 | F109: 464.92 | G109: 460.73 | H109: 482.33 | I109: 486.52 | J109: 493.13 | K109: 479.9 | L109: 469.1 | M109: 11.63832
A110: 101 | B110: COROMANDEL | C110: 440.45 | D110: 441.60 | E110: 435.50 | F110: 430.55 | G110: 424.45 | H110: 446.55 | I110: 452.65 | J110: 457.60 | K110: 447.7 | L110: 436.65 | M110: 0.90559
A111: 102 | B111: COX&KINGS | C111: 150.95 | D111: 149.83 | E111: 146.37 | F111: 141.78 | G111: 138.32 | H111: 154.42 | I111: 157.88 | J111: 162.47 | K111: 153.3 | L111: 145.25 | M111: 0.41275
A112: 103 | B112: CRISIL | C112: 1471.75 | D112: 1469.25 | E112: 1461.50 | F112: 1451.25 | G112: 1443.50 | H112: 1479.50 | I112: 1487.25 | J112: 1497.50 | K112: 1477 | L112: 1459 | M112: 0.14232
A113: 104 | B113: CROMPTON | C113: 209.75 | D113: 210.58 | E113: 207.42 | F113: 205.08 | G113: 201.92 | H113: 212.92 | I113: 216.08 | J113: 218.42 | K113: 213.75 | L113: 208.25 | M113: 5.97227
A114: 105 | B114: CUB | C114: 187.95 | D114: 185.83 | E114: 183.17 | F114: 178.38 | G114: 175.72 | H114: 190.62 | I114: 193.28 | J114: 198.07 | K114: 188.5 | L114: 181.05 | M114: 3.60429
A115: 106 | B115: CUMMINSIND | C115: 704.75 | D115: 705.55 | E115: 699.10 | F115: 693.45 | G115: 687.00 | H115: 711.20 | I115: 717.65 | J115: 723.30 | K115: 712 | L115: 699.9 | M115: 4.35318
A116: 107 | B116: CYIENT | C116: 650 | D116: 648.98 | E116: 643.97 | F116: 637.93 | G116: 632.92 | H116: 655.02 | I116: 660.03 | J116: 666.07 | K116: 654 | L116: 642.95 | M116: 2.15636
A117: 108 | B117: DABUR | C117: 445.3 | D117: 443.68 | E117: 441.32 | F117: 437.33 | G117: 434.97 | H117: 447.67 | I117: 450.03 | J117: 454.02 | K117: 446.05 | L117: 439.7 | M117: 27.04142
A118: 109 | B118: DBCORP | C118: 179.2 | D118: 178.75 | E118: 177.60 | F118: 176.00 | G118: 174.85 | H118: 180.35 | I118: 181.50 | J118: 183.10 | K118: 179.9 | L118: 177.15 | M118: 0.15503
A119: 110 | B119: DBL | C119: 446.85 | D119: 443.70 | E119: 433.45 | F119: 420.05 | G119: 409.80 | H119: 457.10 | I119: 467.35 | J119: 480.75 | K119: 453.95 | L119: 430.3 | M119: 4.54268
A120: 111 | B120: DBREALTY | C120: 20.5 | D120: 20.53 | E120: 19.87 | F120: 19.23 | G120: 18.57 | H120: 21.17 | I120: 21.83 | J120: 22.47 | K120: 21.2 | L120: 19.9 | M120: 1.7105
A121: 112 | B121: DCAL | C121: 188.7 | D121: 188.68 | E121: 187.02 | F121: 185.33 | G121: 183.67 | H121: 190.37 | I121: 192.03 | J121: 193.72 | K121: 190.35 | L121: 187 | M121: 2.97255
A122: 113 | B122: DCBBANK | C122: 183.1 | D122: 183.93 | E122: 181.62 | F122: 180.13 | G122: 177.82 | H122: 185.42 | I122: 187.73 | J122: 189.22 | K122: 186.25 | L122: 182.45 | M122: 17.68059
A123: 114 | B123: DCMSHRIRAM | C123: 412.65 | D123: 409.22 | E123: 403.43 | F123: 394.22 | G123: 388.43 | H123: 418.43 | I123: 424.22 | J123: 433.43 | K123: 415 | L123: 400 | M123: 2.42165
A124: 115 | B124: DEEPAKFERT | C124: 128.85 | D124: 128.72 | E124: 126.68 | F124: 124.52 | G124: 122.48 | H124: 130.88 | I124: 132.92 | J124: 135.08 | K124: 130.75 | L124: 126.55 | M124: 1.22221
A125: 116 | B125: DELTACORP | C125: 249.2 | D125: 250.00 | E125: 246.10 | F125: 243.00 | G125: 239.10 | H125: 253.10 | I125: 257.00 | J125: 260.10 | K125: 253.9 | L125: 246.9 | M125: 11.80189
A126: 117 | B126: DEN | C126: 73.55 | D126: 73.02 | E126: 71.18 | F126: 68.82 | G126: 66.98 | H126: 75.38 | I126: 77.22 | J126: 79.58 | K126: 74.85 | L126: 70.65 | M126: 0.86129
A127: 118 | B127: DENABANK | C127: 11.9 | D127: 11.68 | E127: 11.42 | F127: 10.93 | G127: 10.67 | H127: 12.17 | I127: 12.43 | J127: 12.92 | K127: 11.95 | L127: 11.2 | M127: 20.49808
A128: 119 | B128: DHFL | C128: 128.8 | D128: 129.57 | E128: 126.63 | F128: 124.47 | G128: 121.53 | H128: 131.73 | I128: 134.67 | J128: 136.83 | K128: 132.5 | L128: 127.4 | M128: 133.12683
A129: 120 | B129: DISHTV | C129: 41.35 | D129: 40.65 | E129: 39.40 | F129: 37.45 | G129: 36.20 | H129: 42.60 | I129: 43.85 | J129: 45.80 | K129: 41.9 | L129: 38.7 | M129: 233.55079
A130: 121 | B130: DIVISLAB | C130: 1669.8 | D130: 1664.95 | E130: 1654.90 | F130: 1640.00 | G130: 1629.95 | H130: 1679.85 | I130: 1689.90 | J130: 1704.80 | K130: 1675 | L130: 1650.05 | M130: 4.8028
A131: 122 | B131: DIXON | C131: 2252.05 | D131: 2248.70 | E131: 2208.40 | F131: 2164.75 | G131: 2124.45 | H131: 2292.35 | I131: 2332.65 | J131: 2376.30 | K131: 2289 | L131: 2205.05 | M131: 0.06397
A132: 123 | B132: DLF | C132: 167.25 | D132: 167.22 | E132: 165.23 | F132: 163.22 | G132: 161.23 | H132: 169.23 | I132: 171.22 | J132: 173.23 | K132: 169.2 | L132: 165.2 | M132: 38.45718
A133: 124 | B133: DMART | C133: 1456.55 | D133: 1459.18 | E133: 1439.37 | F133: 1422.18 | G133: 1402.37 | H133: 1476.37 | I133: 1496.18 | J133: 1513.37 | K133: 1479 | L133: 1442 | M133: 2.28945
A134: 125 | B134: DREDGECORP | C134: 358.85 | D134: 356.83 | E134: 345.32 | F134: 331.78 | G134: 320.27 | H134: 370.37 | I134: 381.88 | J134: 395.42 | K134: 368.35 | L134: 343.3 | M134: 8.6106
A135: 126 | B135: DRREDDY | C135: 2646 | D135: 2627.72 | E135: 2598.33 | F135: 2550.67 | G135: 2521.28 | H135: 2675.38 | I135: 2704.77 | J135: 2752.43 | K135: 2657.1 | L135: 2580.05 | M135: 8.85795
A136: 127 | B136: ECLERX | C136: 1053.75 | D136: 1049.62 | E136: 1024.23 | F136: 994.72 | G136: 969.33 | H136: 1079.13 | I136: 1104.52 | J136: 1134.03 | K136: 1075 | L136: 1020.1 | M136: 0.06406
A137: 128 | B137: EDELWEISS | C137: 139.55 | D137: 139.70 | E137: 137.40 | F137: 135.25 | G137: 132.95 | H137: 141.85 | I137: 144.15 | J137: 146.30 | K137: 142 | L137: 137.55 | M137: 22.24289
A138: 129 | B138: EICHERMOT | C138: 19948.65 | D138: 19900.20 | E138: 19768.45 | F138: 19588.25 | G138: 19456.50 | H138: 20080.40 | I138: 20212.15 | J138: 20392.35 | K138: 20031.95 | L138: 19720 | M138: 0.98433
A139: 130 | B139: EIDPARRY | C139: 186.6 | D139: 188.72 | E139: 182.98 | F139: 179.37 | G139: 173.63 | H139: 192.33 | I139: 198.07 | J139: 201.68 | K139: 194.45 | L139: 185.1 | M139: 6.00339
A140: 131 | B140: EIHOTEL | C140: 185.7 | D140: 186.92 | E140: 183.33 | F140: 180.97 | G140: 177.38 | H140: 189.28 | I140: 192.87 | J140: 195.23 | K140: 190.5 | L140: 184.55 | M140: 3.25984
A141: 132 | B141: EMAMILTD | C141: 395.6 | D141: 396.92 | E141: 391.83 | F141: 388.07 | G141: 382.98 | H141: 400.68 | I141: 405.77 | J141: 409.53 | K141: 402 | L141: 393.15 | M141: 2.97298
A142: 133 | B142: ENDURANCE | C142: 1271.45 | D142: 1282.53 | E142: 1254.32 | F142: 1237.18 | G142: 1208.97 | H142: 1299.67 | I142: 1327.88 | J142: 1345.02 | K142: 1310.75 | L142: 1265.4 | M142: 0.17336
A143: 134 | B143: ENGINERSIN | C143: 110.2 | D143: 109.33 | E143: 107.92 | F143: 105.63 | G143: 104.22 | H143: 111.62 | I143: 113.03 | J143: 115.32 | K143: 110.75 | L143: 107.05 | M143: 28.7829
A144: 135 | B144: EQUITAS | C144: 116.15 | D144: 115.70 | E144: 113.70 | F144: 111.25 | G144: 109.25 | H144: 118.15 | I144: 120.15 | J144: 122.60 | K144: 117.7 | L144: 113.25 | M144: 60.11875
A145: 136 | B145: ERIS | C145: 609.85 | D145: 611.63 | E145: 603.27 | F145: 596.68 | G145: 588.32 | H145: 618.22 | I145: 626.58 | J145: 633.17 | K145: 620 | L145: 605.05 | M145: 0.05553
A146: 137 | B146: EROSMEDIA | C146: 78.6 | D146: 78.37 | E146: 77.03 | F146: 75.47 | G146: 74.13 | H146: 79.93 | I146: 81.27 | J146: 82.83 | K146: 79.7 | L146: 76.8 | M146: 2.16885
A147: 138 | B147: ESCORTS | C147: 674.05 | D147: 671.22 | E147: 666.23 | F147: 658.42 | G147: 653.43 | H147: 679.03 | I147: 684.02 | J147: 691.83 | K147: 676.2 | L147: 663.4 | M147: 16.99144
A148: 139 | B148: EVEREADY | C148: 196.8 | D148: 197.63 | E148: 195.27 | F148: 193.73 | G148: 191.37 | H148: 199.17 | I148: 201.53 | J148: 203.07 | K148: 200 | L148: 196.1 | M148: 1.35349
A149: 140 | B149: EXIDEIND | C149: 218.35 | D149: 219.17 | E149: 215.78 | F149: 213.22 | G149: 209.83 | H149: 221.73 | I149: 225.12 | J149: 227.68 | K149: 222.55 | L149: 216.6 | M149: 18.23393
A150: 141 | B150: FCONSUMER | C150: 47.45 | D150: 47.28 | E150: 46.57 | F150: 45.68 | G150: 44.97 | H150: 48.17 | I150: 48.88 | J150: 49.77 | K150: 48 | L150: 46.4 | M150: 19.75859
A151: 142 | B151: FEDERALBNK | C151: 85.7 | D151: 85.07 | E151: 84.23 | F151: 82.77 | G151: 81.93 | H151: 86.53 | I151: 87.37 | J151: 88.83 | K151: 85.9 | L151: 83.6 | M151: 80.06642
A152: 143 | B152: FINCABLES | C152: 416.65 | D152: 414.58 | E152: 407.17 | F152: 397.68 | G152: 390.27 | H152: 424.07 | I152: 431.48 | J152: 440.97 | K152: 422 | L152: 405.1 | M152: 0.83012
A153: 144 | B153: FINPIPE | C153: 491.25 | D153: 486.75 | E153: 474.50 | F153: 457.75 | G153: 445.50 | H153: 503.50 | I153: 515.75 | J153: 532.50 | K153: 499 | L153: 470 | M153: 0.27335
A154: 145 | B154: FLFL | C154: 428.05 | D154: 428.67 | E154: 423.73 | F154: 419.42 | G154: 414.48 | H154: 432.98 | I154: 437.92 | J154: 442.23 | K154: 433.6 | L154: 424.35 | M154: 0.20884
A155: 146 | B155: FSL | C155: 44.7 | D155: 44.40 | E155: 43.80 | F155: 42.90 | G155: 42.30 | H155: 45.30 | I155: 45.90 | J155: 46.80 | K155: 45 | L155: 43.5 | M155: 16.38609
A156: 147 | B156: GAIL | C156: 343.85 | D156: 345.22 | E156: 341.13 | F156: 338.42 | G156: 334.33 | H156: 347.93 | I156: 352.02 | J156: 354.73 | K156: 349.3 | L156: 342.5 | M156: 60.20443
A157: 148 | B157: GATI | C157: 78.55 | D157: 78.62 | E157: 77.13 | F157: 75.72 | G157: 74.23 | H157: 80.03 | I157: 81.52 | J157: 82.93 | K157: 80.1 | L157: 77.2 | M157: 8.23498
A158: 149 | B158: GDL | C158: 107.75 | D158: 107.47 | E158: 106.28 | F158: 104.82 | G158: 103.63 | H158: 108.93 | I158: 110.12 | J158: 111.58 | K158: 108.65 | L158: 106 | M158: 0.73016
A159: 150 | B159: GEPIL | C159: 815.65 | D159: 812.95 | E159: 806.45 | F159: 797.25 | G159: 790.75 | H159: 822.15 | I159: 828.65 | J159: 837.85 | K159: 819.45 | L159: 803.75 | M159: 0.04378
A160: 151 | B160: GESHIP | C160: 278.3 | D160: 276.27 | E160: 272.03 | F160: 265.77 | G160: 261.53 | H160: 282.53 | I160: 286.77 | J160: 293.03 | K160: 280.5 | L160: 270 | M160: 0.26944
A161: 152 | B161: GET&D | C161: 291.05 | D161: 291.35 | E161: 287.80 | F161: 284.55 | G161: 281.00 | H161: 294.60 | I161: 298.15 | J161: 301.40 | K161: 294.9 | L161: 288.1 | M161: 0.1378
A162: 153 | B162: GHCL | C162: 228.45 | D162: 226.73 | E162: 224.52 | F162: 220.58 | G162: 218.37 | H162: 230.67 | I162: 232.88 | J162: 236.82 | K162: 228.95 | L162: 222.8 | M162: 0.85383
A163: 154 | B163: GICRE | C163: 225.3 | D163: 223.18 | E163: 219.47 | F163: 213.63 | G163: 209.92 | H163: 229.02 | I163: 232.73 | J163: 238.57 | K163: 226.9 | L163: 217.35 | M163: 0.72852
A164: 155 | B164: GILLETTE | C164: 6510 | D164: 6523.45 | E164: 6478.75 | F164: 6447.50 | G164: 6402.80 | H164: 6554.70 | I164: 6599.40 | J164: 6630.65 | K164: 6568.15 | L164: 6492.2 | M164: 0.02751
A165: 156 | B165: GLAXO | C165: 1329.3 | D165: 1332.57 | E165: 1322.73 | F165: 1316.17 | G165: 1306.33 | H165: 1339.13 | I165: 1348.97 | J165: 1355.53 | K165: 1342.4 | L165: 1326 | M165: 0.12975
A166: 157 | B166: GLENMARK | C166: 599.05 | D166: 596.23 | E166: 590.47 | F166: 581.88 | G166: 576.12 | H166: 604.82 | I166: 610.58 | J166: 619.17 | K166: 602 | L166: 587.65 | M166: 5.19603
A167: 158 | B167: GMDCLTD | C167: 78.15 | D167: 78.47 | E167: 76.93 | F167: 75.72 | G167: 74.18 | H167: 79.68 | I167: 81.22 | J167: 82.43 | K167: 80 | L167: 77.25 | M167: 2.41461
A168: 159 | B168: GMRINFRA | C168: 16.65 | D168: 16.53 | E168: 16.37 | F168: 16.08 | G168: 15.92 | H168: 16.82 | I168: 16.98 | J168: 17.27 | K168: 16.7 | L168: 16.25 | M168: 165.40787
A169: 160 | B169: GNFC | C169: 274.15 | D169: 270.53 | E169: 264.62 | F169: 255.08 | G169: 249.17 | H169: 280.07 | I169: 285.98 | J169: 295.52 | K169: 276.45 | L169: 261 | M169: 7.02976
A170: 161 | B170: GODFRYPHLP | C170: 906.5 | D170: 900.17 | E170: 890.18 | F170: 873.87 | G170: 863.88 | H170: 916.48 | I170: 926.47 | J170: 942.78 | K170: 910.15 | L170: 883.85 | M170: 1.6027
A171: 162 | B171: GODREJAGRO | C171: 482.4 | D171: 482.47 | E171: 478.13 | F171: 473.87 | G171: 469.53 | H171: 486.73 | I171: 491.07 | J171: 495.33 | K171: 486.8 | L171: 478.2 | M171: 1.21072
A172: 163 | B172: GODREJCP | C172: 679.15 | D172: 679.58 | E172: 672.87 | F172: 666.58 | G172: 659.87 | H172: 685.87 | I172: 692.58 | J172: 698.87 | K172: 686.3 | L172: 673.3 | M172: 23.09283
A173: 164 | B173: GODREJIND | C173: 494.55 | D173: 496.47 | E173: 489.43 | F173: 484.32 | G173: 477.28 | H173: 501.58 | I173: 508.62 | J173: 513.73 | K173: 503.5 | L173: 491.35 | M173: 7.70071
A174: 165 | B174: GODREJPROP | C174: 713.1 | D174: 712.73 | E174: 710.37 | F174: 707.63 | G174: 705.27 | H174: 715.47 | I174: 717.83 | J174: 720.57 | K174: 715.1 | L174: 710 | M174: 1.02829
A175: 166 | B175: GPPL | C175: 85 | D175: 84.32 | E175: 81.73 | F175: 78.47 | G175: 75.88 | H175: 87.58 | I175: 90.17 | J175: 93.43 | K175: 86.9 | L175: 81.05 | M175: 9.68357
A176: 167 | B176: GRANULES | C176: 103.95 | D176: 102.23 | E176: 100.17 | F176: 96.38 | G176: 94.32 | H176: 106.02 | I176: 108.08 | J176: 111.87 | K176: 104.3 | L176: 98.45 | M176: 26.99352
A177: 168 | B177: GRAPHITE | C177: 422.95 | D177: 420.32 | E177: 412.73 | F177: 402.52 | G177: 394.93 | H177: 430.53 | I177: 438.12 | J177: 448.33 | K177: 427.9 | L177: 410.1 | M177: 18.08609
A178: 169 | B178: GRASIM | C178: 791.75 | D178: 788.13 | E178: 781.67 | F178: 771.58 | G178: 765.12 | H178: 798.22 | I178: 804.68 | J178: 814.77 | K178: 794.6 | L178: 778.05 | M178: 11.5805
A179: 170 | B179: GREAVESCOT | C179: 129.25 | D179: 129.08 | E179: 127.47 | F179: 125.68 | G179: 124.07 | H179: 130.87 | I179: 132.48 | J179: 134.27 | K179: 130.7 | L179: 127.3 | M179: 6.76367
A180: 171 | B180: GREENPLY | C180: 143.15 | D180: 143.73 | E180: 138.47 | F180: 133.78 | G180: 128.52 | H180: 148.42 | I180: 153.68 | J180: 158.37 | K180: 149 | L180: 139.05 | M180: 1.98444
A181: 172 | B181: GRUH | C181: 251.8 | D181: 251.00 | E181: 248.80 | F181: 245.80 | G181: 243.60 | H181: 254.00 | I181: 256.20 | J181: 259.20 | K181: 253.2 | L181: 248 | M181: 3.95725
A182: 173 | B182: GSFC | C182: 94.45 | D182: 93.48 | E182: 91.97 | F182: 89.48 | G182: 87.97 | H182: 95.97 | I182: 97.48 | J182: 99.97 | K182: 95 | L182: 91 | M182: 11.81857
A183: 174 | B183: GSKCONS | C183: 7205.85 | D183: 7224.27 | E183: 7181.58 | F183: 7157.32 | G183: 7114.63 | H183: 7248.53 | I183: 7291.22 | J183: 7315.48 | K183: 7266.95 | L183: 7200 | M183: 0.0441
A184: 175 | B184: GSPL | C184: 159.15 | D184: 159.22 | E184: 157.53 | F184: 155.92 | G184: 154.23 | H184: 160.83 | I184: 162.52 | J184: 164.13 | K184: 160.9 | L184: 157.6 | M184: 2.64674
A185: 176 | B185: GUJALKALI | C185: 494.5 | D185: 482.35 | E185: 459.90 | F185: 425.30 | G185: 402.85 | H185: 516.95 | I185: 539.40 | J185: 574.00 | K185: 504.8 | L185: 447.75 | M185: 1.52725
A186: 177 | B186: GUJFLUORO | C186: 921.75 | D186: 918.53 | E186: 912.17 | F186: 902.58 | G186: 896.22 | H186: 928.12 | I186: 934.48 | J186: 944.07 | K186: 924.9 | L186: 908.95 | M186: 0.5816
A187: 178 | B187: GUJGASLTD | C187: 120.9 | D187: 121.10 | E187: 119.80 | F187: 118.70 | G187: 117.40 | H187: 122.20 | I187: 123.50 | J187: 124.60 | K187: 122.4 | L187: 120 | M187: 5.70948
A188: 179 | B188: GULFOILLUB | C188: 866.95 | D188: 873.00 | E188: 849.00 | F188: 831.05 | G188: 807.05 | H188: 890.95 | I188: 914.95 | J188: 932.90 | K188: 897 | L188: 855.05 | M188: 0.17233
A189: 180 | B189: GVKPIL | C189: 7.4 | D189: 7.40 | E189: 7.25 | F189: 7.10 | G189: 6.95 | H189: 7.55 | I189: 7.70 | J189: 7.85 | K189: 7.55 | L189: 7.25 | M189: 12.60294
A190: 181 | B190: HATHWAY | C190: 25.9 | D190: 25.90 | E190: 24.95 | F190: 24.00 | G190: 23.05 | H190: 26.85 | I190: 27.80 | J190: 28.75 | K190: 26.85 | L190: 24.95 | M190: 4.00716
A191: 182 | B191: HATSUN | C191: 662.15 | D191: 662.15 | E191: 658.30 | F191: 654.45 | G191: 650.60 | H191: 666.00 | I191: 669.85 | J191: 673.70 | K191: 666 | L191: 658.3 | M191: 0.03158
A192: 183 | B192: HAVELLS | C192: 707.55 | D192: 713.22 | E192: 699.43 | F192: 691.32 | G192: 677.53 | H192: 721.33 | I192: 735.12 | J192: 743.23 | K192: 727 | L192: 705.1 | M192: 13.71695
A193: 184 | B193: HCC | C193: 12.35 | D193: 12.30 | E193: 12.15 | F193: 11.95 | G193: 11.80 | H193: 12.50 | I193: 12.65 | J193: 12.85 | K193: 12.45 | L193: 12.1 | M193: 18.5563
A194: 185 | B194: HCL-INSYS | C194: 19.8 | D194: 19.88 | E194: 19.37 | F194: 18.93 | G194: 18.42 | H194: 20.32 | I194: 20.83 | J194: 21.27 | K194: 20.4 | L194: 19.45 | M194: 7.24453
A195: 186 | B195: HCLTECH | C195: 1052.6 | D195: 1052.58 | E195: 1043.77 | F195: 1034.93 | G195: 1026.12 | H195: 1061.42 | I195: 1070.23 | J195: 1079.07 | K195: 1061.4 | L195: 1043.75 | M195: 11.47955
A196: 187 | B196: HDFC | C196: 1859.45 | D196: 1853.72 | E196: 1844.03 | F196: 1828.62 | G196: 1818.93 | H196: 1869.13 | I196: 1878.82 | J196: 1894.23 | K196: 1863.4 | L196: 1838.3 | M196: 26.79223
A197: 188 | B197: HDFCBANK | C197: 2083.35 | D197: 2087.08 | E197: 2073.27 | F197: 2063.18 | G197: 2049.37 | H197: 2097.17 | I197: 2110.98 | J197: 2121.07 | K197: 2100.9 | L197: 2077 | M197: 23.38232
A198: 189 | B198: HDIL | C198: 23.35 | D198: 23.25 | E198: 22.95 | F198: 22.55 | G198: 22.25 | H198: 23.65 | I198: 23.95 | J198: 24.35 | K198: 23.55 | L198: 22.85 | M198: 19.26353
A199: 190 | B199: HEG | C199: 2093.9 | D199: 2082.98 | E199: 2050.97 | F199: 2008.03 | G199: 1976.02 | H199: 2125.92 | I199: 2157.93 | J199: 2200.87 | K199: 2115 | L199: 2040.05 | M199: 3.05286
A200: 191 | B200: HEIDELBERG | C200: 157.8 | D200: 156.23 | E200: 154.47 | F200: 151.13 | G200: 149.37 | H200: 159.57 | I200: 161.33 | J200: 164.67 | K200: 158 | L200: 152.9 | M200: 1.56072
A201: 192 | B201: HERITGFOOD | C201: 454.35 | D201: 457.10 | E201: 450.25 | F201: 446.15 | G201: 439.30 | H201: 461.20 | I201: 468.05 | J201: 472.15 | K201: 463.95 | L201: 453 | M201: 0.20517
A202: 193 | B202: HEROMOTOCO | C202: 2675.6 | D202: 2668.75 | E202: 2646.90 | F202: 2618.20 | G202: 2596.35 | H202: 2697.45 | I202: 2719.30 | J202: 2748.00 | K202: 2690.6 | L202: 2640.05 | M202: 9.18224
A203: 194 | B203: HEXAWARE | C203: 358.55 | D203: 357.88 | E203: 355.37 | F203: 352.18 | G203: 349.67 | H203: 361.07 | I203: 363.58 | J203: 366.77 | K203: 360.4 | L203: 354.7 | M203: 5.22224
A204: 195 | B204: HFCL | C204: 21.75 | D204: 21.63 | E204: 21.37 | F204: 20.98 | G204: 20.72 | H204: 22.02 | I204: 22.28 | J204: 22.67 | K204: 21.9 | L204: 21.25 | M204: 12.28357
A205: 196 | B205: HIMATSEIDE | C205: 172.95 | D205: 173.75 | E205: 166.15 | F205: 159.35 | G205: 151.75 | H205: 180.55 | I205: 188.15 | J205: 194.95 | K205: 181.35 | L205: 166.95 | M205: 4.12344
A206: 197 | B206: HINDALCO | C206: 196.15 | D206: 196.78 | E206: 194.67 | F206: 193.18 | G206: 191.07 | H206: 198.27 | I206: 200.38 | J206: 201.87 | K206: 198.9 | L206: 195.3 | M206: 65.12004
... 304 more rows

Sheet Bulk Deals
E6: Back To Main Page
A7: Subject : | B7: BULK DEAL | D7: =Main!B10 -> 2019-03-05
A9: Date | B9: Scrip code | C9: Scrip Name | D9: Client Name | E9: Buy / Sell | F9: Quantity Traded | G9: Trade Price / Wt.Avg.trade price | H9: Exchange
A10: 2019-03-01 | B10: 541988 | C10: AAVAS | D10: MATTHEWS INTERNATIONAL FUNDS A/C MATTHEWS INDIA FUND | E10: BUY | F10: 404,915 | G10: 1070.1 | H10: BSE
A11: 2019-03-01 | B11: 541988 | C11: AAVAS | D11: AMUNDI FUNDS SBI FM EQUITY INDIA | E11: SELL | F11: 447,963 | G11: 1070.1 | H11: BSE
A12: 2019-03-01 | B12: 513349 | C12: AJMERA | D12: ARIIL TRUST . | E12: BUY | F12: 985053 | G12: 165.8 | H12: BSE
A13: 2019-03-01 | B13: 513349 | C13: AJMERA | D13: HITA ASHWIN AJMERA | E13: SELL | F13: 438459 | G13: 165.8 | H13: BSE
A14: 2019-03-01 | B14: 513349 | C14: AJMERA | D14: SHAILESH BHOGILAL AJMERA | E14: SELL | F14: 541429 | G14: 165.8 | H14: BSE
A15: 2019-03-01 | B15: 511463 | C15: ALEXANDER | D15: KAHAR NIKLESH KANAIYABHAI | E15: BUY | F15: 43797 | G15: 18.71 | H15: BSE
A16: 2019-03-01 | B16: 511463 | C16: ALEXANDER | D16: KAHAR NIKLESH KANAIYABHAI | E16: SELL | F16: 32047 | G16: 18.86 | H16: BSE
A17: 2019-03-01 | B17: 540024 | C17: ASHARI | D17: PRABHULAL LALLUBHAI PAREKH | E17: BUY | F17: 43010 | G17: 6.19 | H17: BSE
A18: 2019-03-01 | B18: 540024 | C18: ASHARI | D18: PRABHULAL LALLUBHAI PAREKH | E18: SELL | F18: 2949 | G18: 6.19 | H18: BSE
A19: 2019-03-01 | B19: 540024 | C19: ASHARI | D19: VIJAY KUMAR AGGARWAL | E19: SELL | F19: 100000 | G19: 6.19 | H19: BSE
A20: 2019-03-01 | B20: 530187 | C20: ATHARVENT | D20: NIKHILDINESHKUMARSHAH | E20: BUY | F20: 275000 | G20: 1.62 | H20: BSE
A21: 2019-03-01 | B21: 530187 | C21: ATHARVENT | D21: TRUSHA PRANAY MEHTA | E21: BUY | F21: 7316 | G21: 1.73 | H21: BSE
A22: 2019-03-01 | B22: 530187 | C22: ATHARVENT | D22: TRUSHA PRANAY MEHTA | E22: SELL | F22: 193895 | G22: 1.67 | H22: BSE
A23: 2019-03-01 | B23: 537766 | C23: BCP | D23: ACHINTYA COMMODITIES PRIVATE LIMITED | E23: BUY | F23: 338,214 | G23: 40.62 | H23: BSE
A24: 2019-03-01 | B24: 537766 | C24: BCP | D24: ACHINTYA COMMODITIES PRIVATE LIMITED | E24: SELL | F24: 338,214 | G24: 40.57 | H24: BSE
A25: 2019-03-01 | B25: 539770 | C25: DARJEELING | D25: BHARATI ARVIND SHAH | E25: BUY | F25: 24,670 | G25: 87.92 | H25: BSE
A26: 2019-03-01 | B26: 531502 | C26: ESARIND | D26: SUNGAR TEXTILES PRIVATE LIMITED | E26: SELL | F26: 129,276 | G26: 1 | H26: BSE
A27: 2019-03-01 | B27: 519126 | C27: HNDFDS | D27: WESTBRIDGE AIF I | E27: BUY | F27: 217,263 | G27: 360 | H27: BSE
A28: 2019-03-01 | B28: 519126 | C28: HNDFDS | D28: JWALAMUKHI INVESTMENT HOLDINGS | E28: BUY | F28: 1,340,000 | G28: 360 | H28: BSE
A29: 2019-03-01 | B29: 519126 | C29: HNDFDS | D29: SIXTH SENSE INDIA OPPORTUNITIES-I | E29: SELL | F29: 1,500,000 | G29: 360 | H29: BSE
A30: 2019-03-01 | B30: 506134 | C30: INTELLCAP | D30: SACHIN PURSHOTTAM BAPAT | E30: BUY | F30: 300,000 | G30: 6.14 | H30: BSE
A31: 2019-03-01 | B31: 506134 | C31: INTELLCAP | D31: K A INVESTMENTS CONSULTANCY LLP | E31: SELL | F31: 300,015 | G31: 6.14 | H31: BSE
A32: 2019-03-01 | B32: 506079 | C32: LAKPRE | D32: SHYAMA GOYAL | E32: BUY | F32: 110,000 | G32: 9.68 | H32: BSE
A33: 2019-03-01 | B33: 506079 | C33: LAKPRE | D33: AANCHAL TRADELINK LIMITED | E33: SELL | F33: 107,500 | G33: 9.68 | H33: BSE
A34: 2019-03-01 | B34: 538668 | C34: NAYSAA | D34: KHUSHBU ARJUNBHAI PADHIYAR | E34: BUY | F34: 28,000 | G34: 23.09 | H34: BSE
A35: 2019-03-01 | B35: 538668 | C35: NAYSAA | D35: KHUSHBU ARJUNBHAI PADHIYAR | E35: SELL | F35: 8,000 | G35: 24.38 | H35: BSE
A36: 2019-03-01 | B36: 504335 | C36: PAZEL | D36: SHRENI CONSTRUCTION PRIVATE LIMITED . | E36: BUY | F36: 1,022,635 | G36: 1.21 | H36: BSE
A37: 2019-03-01 | B37: 511557 | C37: PROFINC | D37: NISHIL SURENDRABHAI MARFATIA | E37: BUY | F37: 46152 | G37: 279.42 | H37: BSE
A38: 2019-03-01 | B38: 511557 | C38: PROFINC | D38: NISHIL SURENDRABHAI MARFATIA | E38: SELL | F38: 42707 | G38: 279.05 | H38: BSE
A39: 2019-03-01 | B39: 539760 | C39: RELICAB | D39: SAJANKUMAR RAMESHWARLAL BAJAJ | E39: BUY | F39: 30000 | G39: 44.8 | H39: BSE
A40: 2019-03-01 | B40: 540719 | C40: SBILIFE | D40: CA EMERALD INVESTMENTS | E40: BUY | F40: 90000000 | G40: 515 | H40: BSE
A41: 2019-03-01 | B41: 540719 | C41: SBILIFE | D41: BNP PARIBAS CARDIF | E41: SELL | F41: 92252908 | G41: 515.01 | H41: BSE
A42: 2019-03-01 | B42: 539520 | C42: SHAILJA | D42: SANGITA AGARWAL | E42: BUY | F42: 1000 | G42: 17.25 | H42: BSE
A43: 2019-03-01 | B43: 539520 | C43: SHAILJA | D43: SANGITA AGARWAL | E43: SELL | F43: 20000 | G43: 17.25 | H43: BSE
A44: 2019-03-01 | B44: 539520 | C44: SHAILJA | D44: SATISH KUMAR DALMIYA | E44: SELL | F44: 30000 | G44: 17.4 | H44: BSE
A45: 2019-03-01 | B45: 539520 | C45: SHAILJA | D45: ARVIND SHANTILAL SHAH | E45: BUY | F45: 49501 | G45: 17.5 | H45: BSE
A46: 2019-03-01 | B46: 539520 | C46: SHAILJA | D46: YASH MANISH MEHTA | E46: BUY | F46: 50853 | G46: 17.09 | H46: BSE
A47: 2019-03-01 | B47: 539520 | C47: SHAILJA | D47: PURAN CHAND CHOUDHARY | E47: BUY | F47: 21000 | G47: 17.35 | H47: BSE
A48: 2019-03-01 | B48: 539520 | C48: SHAILJA | D48: PURAN CHAND CHOUDHARY | E48: SELL | F48: 22700 | G48: 17.19 | H48: BSE
A49: 2019-03-01 | B49: 542034 | C49: SMGOLD | D49: KETANKUMAR RAGHURAM THAKKAR - HUF | E49: BUY | F49: 64000 | G49: 27 | H49: BSE
A50: 2019-03-01 | B50: 542034 | C50: SMGOLD | D50: RAGHURAM SHIVRAM THAKKAR - HUF | E50: BUY | F50: 100000 | G50: 27 | H50: BSE
A51: 2019-03-01 | B51: 539123 | C51: VBIND | D51: KAUSHIK SHAH SHARES & SEC. LTD | E51: SELL | F51: 75000 | G51: 9.39 | H51: BSE
A52: 2019-03-01 | B52: CGPOWER | C52: CG Power & Ind. Sol. Ltd. | D52: TOWER RESEARCH CAPITAL MARKETS INDIA PRIVATE LIMITED | E52: BUY | F52: 4106491 | G52: 35.66 | H52: NSE
A53: 2019-03-01 | B53: GSS | C53: GSS Infotech Limited | D53: AGARWAL RITESH | E53: BUY | F53: 85040 | G53: 118.23 | H53: NSE
A54: 2019-03-01 | B54: JETAIRWAYS | C54: Jet Airways (India) Ltd. | D54: TOWER RESEARCH CAPITAL MARKETS INDIA PRIVATE LIMITED | E54: BUY | F54: 1311917 | G54: 234.31 | H54: NSE
A55: 2019-03-01 | B55: JUSTDIAL | C55: Justdial Ltd. | D55: ALPHAGREP SECURITIES PRIVATE LIMITED | E55: BUY | F55: 370207 | G55: 526.8 | H55: NSE
A56: 2019-03-01 | B56: JUSTDIAL | C56: Justdial Ltd. | D56: TOWER RESEARCH CAPITAL MARKETS INDIA PRIVATE LIMITED | E56: BUY | F56: 364467 | G56: 526 | H56: NSE
A57: 2019-03-01 | B57: PGEL | C57: PG Electroplast Ltd | D57: VICKY RAJESH JHAVERI | E57: BUY | F57: 5915 | G57: 88.99 | H57: NSE
A58: 2019-03-01 | B58: PGEL | C58: PG Electroplast Ltd | D58: VIKRAMKUMAR KARANRAJ SAKARIA HUF DAKSH CORPORATION | E58: BUY | F58: 85029 | G58: 80.95 | H58: NSE
A59: 2019-03-01 | B59: RELINFRA | C59: Reliance Infrastructu Ltd | D59: ALPHAGREP SECURITIES PRIVATE LIMITED | E59: BUY | F59: 1495607 | G59: 124.76 | H59: NSE
A60: 2019-03-01 | B60: RMDRIP | C60: R M Drip & Sprink Sys Ltd | D60: BRAJA GOPAL PAL | E60: BUY | F60: 52000 | G60: 55.15 | H60: NSE
A61: 2019-03-01 | B61: RPOWER | C61: Reliance Power Limited | D61: TOWER RESEARCH CAPITAL MARKETS INDIA PRIVATE LIMITED | E61: BUY | F61: 18249676 | G61: 11.75 | H61: NSE
A62: 2019-03-01 | B62: SPENCERS | C62: Spencer's Retail Limited | D62: RAINBOW INVESTMENTS LIMITED | E62: BUY | F62: 1000000 | G62: 143 | H62: NSE
A63: 2019-03-01 | B63: TECHNOE | C63: Techno Elec & Eng Co. Ltd | D63: SBI MUTUAL FUND | E63: BUY | F63: 4000000 | G63: 232.78 | H63: NSE
A64: 2019-03-01 | B64: VISESHINFO | C64: Visesh Infotecnics Limite | D64: ALPHA LEON ENTERPRISES LLP | E64: BUY | F64: 31862035 | G64: 0.1 | H64: NSE
A65: 2019-03-01 | B65: ANUP | C65: The Anup Engineering Ltd | D65: ENAM ASSET MANAGEMENT COMPANY PRIVATE LIMITED | E65: SELL | F65: 54787 | G65: 472.5 | H65: NSE
A66: 2019-03-01 | B66: BLKASHYAP | C66: B. L. Kashyap and Sons Li | D66: VIRWANI JITENDRA MOHANDAS | E66: SELL | F66: 1164292 | G66: 21.42 | H66: NSE
A67: 2019-03-01 | B67: CGPOWER | C67: CG Power & Ind. Sol. Ltd. | D67: TOWER RESEARCH CAPITAL MARKETS INDIA PRIVATE LIMITED | E67: SELL | F67: 4106491 | G67: 35.69 | H67: NSE
A68: 2019-03-01 | B68: GSS | C68: GSS Infotech Limited | D68: AGARWAL RITESH | E68: SELL | F68: 85040 | G68: 122.82 | H68: NSE
A69: 2019-03-01 | B69: JETAIRWAYS | C69: Jet Airways (India) Ltd. | D69: TOWER RESEARCH CAPITAL MARKETS INDIA PRIVATE LIMITED | E69: SELL | F69: 1311917 | G69: 234.38 | H69: NSE
A70: 2019-03-01 | B70: JUSTDIAL | C70: Justdial Ltd. | D70: ALPHAGREP SECURITIES PRIVATE LIMITED | E70: SELL | F70: 368963 | G70: 527.27 | H70: NSE
A71: 2019-03-01 | B71: JUSTDIAL | C71: Justdial Ltd. | D71: TOWER RESEARCH CAPITAL MARKETS INDIA PRIVATE LIMITED | E71: SELL | F71: 364467 | G71: 525.84 | H71: NSE
A72: 2019-03-01 | B72: NAGAROIL | C72: Nagarjuna Oil Refinery | D72: LIMITED ZUARI INVESTMENTS | E72: SELL | F72: 3269026 | G72: 0.3 | H72: NSE
A73: 2019-03-01 | B73: PGEL | C73: PG Electroplast Ltd | D73: VICKY RAJESH JHAVERI | E73: SELL | F73: 85000 | G73: 85.99 | H73: NSE
A74: 2019-03-01 | B74: PGEL | C74: PG Electroplast Ltd | D74: VIKRAMKUMAR KARANRAJ SAKARIA HUF DAKSH CORPORATION | E74: SELL | F74: 85029 | G74: 84.25 | H74: NSE
A75: 2019-03-01 | B75: PROSEED | C75: Proseed India Limited | D75: KRISHNAM RAJU.M | E75: SELL | F75: 500000 | G75: 0.42 | H75: NSE
A76: 2019-03-01 | B76: RELINFRA | C76: Reliance Infrastructu Ltd | D76: ALPHAGREP SECURITIES PRIVATE LIMITED | E76: SELL | F76: 1493249 | G76: 124.77 | H76: NSE
A77: 2019-03-01 | B77: RMDRIP | C77: R M Drip & Sprink Sys Ltd | D77: BRAJA GOPAL PAL | E77: SELL | F77: 8000 | G77: 54.05 | H77: NSE
A78: 2019-03-01 | B78: RPOWER | C78: Reliance Power Limited | D78: TOWER RESEARCH CAPITAL MARKETS INDIA PRIVATE LIMITED | E78: SELL | F78: 18249676 | G78: 11.76 | H78: NSE
A79: 2019-03-01 | B79: SPENCERS | C79: Spencer's Retail Limited | D79: HDFC MUTUAL FUND | E79: SELL | F79: 1451000 | G79: 144.32 | H79: NSE
A80: 2019-03-01 | B80: TECHNOE | C80: Techno Elec & Eng Co. Ltd | D80: SBI MUTUAL FUND | E80: SELL | F80: 4000000 | G80: 232.78 | H80: NSE
A81: 2019-03-01 | B81: TFCILTD | C81: Tourism Finance Corp | D81: RAJASTHAN GLOBAL SECURITIES PVT LTD | E81: SELL | F81: 544634 | G81: 118.62 | H81: NSE
A82: 2019-03-01 | B82: VIJIFIN | C82: Viji Finance Limited | D82: VIJAY KOTHARI | E82: SELL | F82: 561417 | G82: 0.7 | H82: NSE
A83: 2019-03-01 | B83: VISESHINFO | C83: Visesh Infotecnics Limite | D83: ALPHA LEON ENTERPRISES LLP | E83: SELL | F83: 1125106 | G83: 0.1 | H83: NSE

Sheet Call Tracker (Equity & F&O)
M5: Back To Main Page
A6: Retail Research Technical Calls & Fundamental Performance Report for the month of March -2019
M7: =Main!B10 -> 2019-03-05
B8: Positional Call
A9: Sr.no | B9: Date | D9: Company | E9: Rec | F9: Rec Price | G9: Stop Loss*** | H9: Call Closed At | I9: Target | J9: Remark | K9: Profit / Loss per Share | L9: Gain / Loss % | M9: Status | N9: Closed Date | O9: NSE Closed Price
A10: 1 | B10: 2019-01-24 | D10: ITC | E10: Buy | F10: 279-281 | G10: 268 | I10: 305 | J10: Open | O10: =VLOOKUP(D10,Sheet2!A10:M1505,6,0) -> 278.2 | R10: R
A11: 2 | B11: 2019-03-01 | D11: UPL | E11: Sell | F11: 879-884 | G11: 922.2 | I11: 800 | J11: Open | O11: =VLOOKUP(D11,Sheet2!A11:M1806,6,0) -> 869.75 | R11: R
A12: 3 | B12: 2019-03-01 | D12: BEL | E12: Buy | F12: 82.50-83.50 | G12: 78.5 | I12: 92 | J12: Open | O12: =VLOOKUP(D12,Sheet2!A12:M1507,6,0) -> 85 | R12: H
A13: 4 | B13: 2019-03-01 | D13: ZEEL | E13: Sell | F13: 477-480 | G13: 507.3 | I13: 435-425 | J13: Open | O13: =VLOOKUP(D13,Sheet2!A13:M1808,6,0) -> 486.35 | R13: R
A18: CLBS = Closing Basis *** | F18: Reinitiated $
A19: Dividend adjusted <> | F19: Revised stoploss #
A20: Part book {}
A21: Master Trade High Risk
A22: Sr.no | B22: Date | D22: Company | E22: Rec | F22: Rec Price | G22: Stop Loss | H22: Call Closed At | I22: Target | J22: Remark | K22: Profit / Loss per share | L22: Gain / Loss per Lot | M22: Lot | N22: Status | O22: Closed Date
A23: 1 | B23: 2019-03-01 | D23: BATAINDIA MAR FUT | E23: Sell | F23: 1286-1290 | G23: 1335 | I23: 1240 | J23: Open | R23: H
D24: BATAINDIA MAR 1240 PE | E24: Sell | F24: 23-24 | R24: H
A27: Master Trade Medium Risk
A28: Sr.no | B28: Date | D28: Company | E28: Rec | F28: Rec Price | G28: Stop Loss | H28: Call Closed At | I28: Target | J28: Remark | K28: Profit/ Loss per lot | L28: Gain / Loss per Lot | M28: Lot | N28: Status | O28: Closed Date
A29: 1 | B29: 2019-03-01 | D29: LT Mar 1320 CE | E29: Buy | F29: 24-26 | J29: Open | R29: H
D30: LT Mar 1360 CE | E30: Sell | F30: 11.5-12.5 | R30: H
B33: Smart Delivery Trade
A34: Sr.no | B34: Date | D34: Company | E34: Rec | F34: Rec Price | G34: Stop Loss*** | H34: Call Closed At | I34: Target | J34: Remark | K34: Profit / Loss per Share | L34: Gain / Loss % | M34: Status | N34: Closed Date | O34: NSE Closed Price
A35: 1 | B35: 2019-02-21 | D35: ICICIBANK | E35: Buy | F35: 350-353 | G35: 339 | I35: 370-375 | J35: Open | O35: =VLOOKUP(D35,Sheet2!A75:M1570,6,0) -> 354.25 | R35: H
A36: 2 | B36: 2019-02-22 | D36: HDFC | E36: Buy | F36: 1877-1883 | G36: 1819 | I36: 2000 | J36: Open | O36: =VLOOKUP(D36,Sheet2!A77:M1572,6,0) -> 1859.45 | R36: H
A37: 3 | B37: 2019-02-27 | D37: CONCOR | E37: Buy | F37: 473-476 | G37: 458.7 | I37: 500-510 | J37: Open | O37: =VLOOKUP(D37,Sheet2!A78:M1573,6,0) -> 478.15 | R37: R
A38: 4 | B38: 2019-03-01 | D38: MINDTREE | E38: Buy | F38: 916 | G38: 888.8 | H38: 933.5 | I38: 970 | J38: Profit of Rs.17.5/- | K38: =H38-F38 -> 17.5 | L38: =K38/F38 -> 1.91% | M38: Successful | N38: 2019-03-01 | R38: R
A42: CLBS = Closing Basis *** | F42: Reinitiated $
A43: Dividend adjusted <> | F43: Revised stoploss #
B46: Momentum Call
A47: Sr.no | B47: Date | D47: Company | E47: Rec | F47: Rec Price | G47: Stop Loss | H47: Call Closed At | I47: Target | J47: Remark | K47: Profit / Loss per Share/Lot | L47: Gain / Loss % | M47: Gain / Loss per Lot | N47: Lot | O47: Status | P47: Closed Date
A48: 1 | B48: 2019-02-26 | D48: INDUSINDBK MAR FUT | E48: Buy | F48: 1492.5 | G48: 1455 | H48: 1511 | I48: 1550-1560 | J48: Profit of Rs.18.5/- | K48: =H48-F48 -> 18.5 | M48: =N48*K48 -> 5550 | N48: 300 | O48: Successful | P48: 2019-03-01 | R48: N
A49: 2 | B49: 2019-03-01 | D49: TORNTPHARM MAR FUT | E49: Buy | F49: 1800-1805 | G49: 1780 | I49: 1840 | J49: Open
A51: CLBS = Closing Basis ***
A52: Dividend adjusted <> | F52: Reinitiated $
F53: Revised stoploss #
B54: Quick Pick Intraday
A55: Sr.no | B55: Date | D55: Company | E55: Rec | F55: Rec Price | G55: Stop Loss*** | H55: Call Closed At | I55: Target | J55: Remark | K55: Profit / Loss per Share | L55: Status | M55: Closed Date
A69: Techno -Funda (positional)
A70: Sr.no | B70: Date | D70: Company | E70: Rec | F70: Rec Price | G70: Stop Loss*** | H70: Call Closed At | I70: Target | J70: Remark | K70: Profit / Loss per Share | L70: Gain / Loss % | M70: Status | N70: Closed Date | O70: NSE Closed Price
A73: CLBS = Closing Basis *** | F73: Reinitiated $
A74: Dividend adjusted <> | F74: Revised stoploss #
B79: Investment Idea
A80: Sr.no | B80: Date | D80: Company | E80: Rec | F80: Rec Price | G80: Point of Review | H80: Close Rate | I80: Target | J80: Remark | K80: Profit / Loss per Share | L80: Gain / Loss % | M80: Status | N80: Closed Date
A81: 1 | B81: 2013-11-01 | D81: L&T Finance Holding | E81: Accu | F81: 82.00 | G81: - | H81: 100 | I81: 100.00 | J81: Target Achieved | K81: =H81-F81 -> 18.00 | L81: =K81/F81 -> 21.95% | M81: Successful | N81: 2016-10-14
A82: 2 | B82: 2014-06-04 | D82: Finolex Inds | E82: Buy | F82: 257.00 | G82: - | H82: 300 | I82: 300.00 | J82: Target Achieved | K82: =H82-F82 -> 43.00 | L82: 16.73% | M82: Successful | N82: 2014-07-02
A83: =1+A82 -> 3 | B83: 2014-07-08 | D83: JK Cement | E83: Buy | F83: 393.00 | G83: - | H83: 468 | I83: 468.00 | J83: Target Achieved | K83: =H83-F83 -> 75.00 | L83: 19.08% | M83: Successful | N83: 2014-08-12
A84: 4 | B84: 2014-08-06 | D84: Finolex Cables | E84: Buy | F84: 205.00 | G84: - | H84: 275 | I84: 250.00 | J84: Target Achieved | K84: 70.00 | L84: 34.15% | M84: Successful | N84: 2014-11-19
A85: 5 | B85: 2014-09-04 | D85: Exide Inds | E85: Buy | F85: 162.00 | G85: - | H85: 190 | I85: 190.00 | J85: Target Achieved | K85: 28.00 | L85: 17.28% | M85: Successful | N85: 2015-01-02
A86: 6 | B86: 2014-09-04 | D86: Deepak Nitrite | E86: Buy | F86: 75.00 | G86: - | H86: 91.5 | I86: 95-100 | J86: Profit of Rs.16.50/- | K86: 16.50 | L86: 22.00% | M86: Successful | N86: 2014-11-11
A87: 7 | B87: 2014-10-01 | D87: Mercks | E87: Buy | F87: 850.00 | G87: - | H87: 982.5 | I87: 1050.00 | J87: Profit of Rs.132.50/- | K87: 132.50 | L87: 15.59% | M87: Successful | N87: 2015-02-04
A88: 8 | B88: 2014-10-01 | D88: Grindwell Norton | E88: Buy | F88: 475.00 | G88: - | H88: 515 | I88: 600.00 | J88: Profit of Rs.40/- | K88: 40.00 | L88: 8.42% | M88: Successful | N88: 2014-10-27
A89: 9 | B89: 2014-10-01 | D89: Snowman Logistics | E89: Buy | F89: 86.00 | G89: - | H89: 99 | I89: 140.00 | J89: Profit of Rs.13.00/- | K89: 13.00 | L89: 15.12% | M89: Successful | N89: 2014-10-27
A90: 10 | B90: 2014-10-14 | D90: Birla Corp | E90: Buy | F90: 496.60 | G90: - | H90: 621 | I90: 580.00 | J90: Target Achieved | K90: 124.40 | L90: 25.05% | M90: Successful | N90: 2016-08-23
A91: 11 | B91: 2014-10-14 | D91: Ultratech Cem | E91: Buy | F91: 2481.90 | G91: - | H91: 2840 | I91: 2870.00 | J91: Profit of Rs.358.10/- | K91: 358.10 | L91: 14.43% | M91: Successful | N91: 2015-01-13
A92: =1+A89 -> 10 | B92: 2014-10-16 | D92: Sintex Inds | E92: Buy | F92: 84.50 | G92: - | H92: 93 | I92: 110.00 | J92: Profit of Rs.8.50/- | K92: 8.50 | L92: 10.06% | M92: Successful | N92: 2014-10-27
A93: =1+A92 -> 11 | B93: 2014-10-16 | D93: HSIL | E93: Buy | F93: 401.00 | G93: - | H93: 428 | I93: 450.00 | J93: Profit of Rs.27.00/- | K93: 27.00 | L93: 6.73% | M93: Successful | N93: 2015-01-16
A94: 12 | B94: 2014-10-16 | D94: Eveready Inds | E94: Buy | F94: 101.00 | G94: - | H94: 112 | I94: 120.00 | J94: Profit of Rs.11.00/- | K94: 11.00 | L94: 10.89% | M94: Successful | N94: 2014-10-27
A95: 13 | B95: 2014-11-11 | D95: Pennar Inds | E95: Buy | F95: 59.00 | G95: - | H95: 76 | I95: 76.00 | J95: Target Achieved | K95: 17.00 | L95: 28.81% | M95: Successful | N95: 2017-10-24
A96: 14 | B96: 2014-11-11 | D96: Snowman Logistics | E96: Buy | F96: 99.00 | G96: - | H96: 120 | I96: 120.00 | J96: Profit of Rs.21/- | K96: 21.00 | L96: 21.21% | M96: Successful | N96: 2014-11-17
A97: 15 | B97: 2014-11-13 | D97: Dharamsi Morarji Chem | E97: Buy | F97: 22.00 | G97: - | H97: 33.55 | I97: 32.00 | J97: Profit of Rs 11.55/- | K97: 11.55 | L97: 52.50% | M97: Successful | N97: 2015-07-03
A98: 16 | B98: 2014-12-03 | D98: Tatachem | E98: Buy | F98: 440.00 | G98: - | H98: 520 | I98: 520.00 | J98: Profit of Rs 80.00/- | K98: 80.00 | L98: 18.18% | M98: Successful | N98: 2015-07-23
A99: 17 | B99: 2014-12-03 | D99: Advanta | E99: Buy | F99: 360.00 | G99: - | H99: 427 | I99: 425.00 | J99: Profit of Rs.67.00/- | K99: 67.00 | L99: 18.61% | M99: Successful | N99: 2015-02-23
A100: 18 | B100: 2015-01-08 | D100: GDL | E100: Buy | F100: 360.00 | G100: - | H100: 455 | I100: 420.00 | J100: Profit of Rs.95.00/- | K100: 95.00 | L100: 26.39% | M100: Successful | N100: 2015-01-20
A101: 19 | B101: 2015-01-08 | D101: NRB Bearing | E101: Buy | F101: 130.00 | H101: 175.5 | I101: 165.00 | J101: Profit of Rs 45.50/- | K101: 45.50 | L101: 35.00% | M101: Successful | N101: 2017-12-19
A102: 20 | B102: 2015-02-05 | D102: GSFC | E102: Accu | F102: 98.00 | H102: 120 | I102: 120.00 | J102: Target Achieved | K102: 22.00 | L102: 22.45% | M102: Successful | N102: 2017-01-18
A103: 21 | B103: 2015-02-05 | D103: Sundrmfast | E103: Accu | F103: 196.00 | H103: 262 | I103: 255.00 | J103: Target Achieved | K103: 66.00 | L103: 33.67% | M103: Successful | N103: 2016-08-17
A104: 22 | B104: 2015-03-04 | D104: GPPL | E104: Accu | F104: 235 | H104: 77.00 | I104: 280-285 | J104: Loss of Rs.158/- | K104: =H104-F104 -> -158.00 | L104: -67.23% | M104: Unsuccessful | N104: 2019-02-26
A105: 23 | B105: 2015-03-04 | D105: ORIENTCEM | E105: Accu | F105: 185.00 | H105: 224 | I105: 220-225 | J105: Target Achieved | K105: 39.00 | L105: =K105/F105 -> 21.08% | M105: Successful | N105: 2016-10-04
A106: 24 | B106: 2015-03-27 | D106: PFS | E106: Accu | F106: 49-50 | I106: 67.00 | J106: Open
A107: 25 | B107: 2015-03-30 | D107: Walchandnagar Ind Ltd | E107: Accu | F107: 183.50 | H107: 219 | I107: 218.00 | J107: Profit of Rs.35.50/- | K107: 35.50 | L107: =K107/F107 -> 19.35% | M107: Successful | N107: 2015-04-09
A108: 26 | B108: 2015-04-20 | D108: Kalpataru Power Transmission Ltd | E108: Accu | F108: =(227+237)/2 -> 232.00 | H108: 298 | I108: 298.00 | J108: Target Achieved | K108: 66.00 | L108: 28.45% | M108: Successful | N108: 2017-03-29
A109: 27 | B109: 2015-05-04 | D109: Mastek Ltd | E109: Buy | F109: 385.00 | H109: =212.5+331 -> 543.5 | I109: 510.00 | J109: Profit of Rs 158.50/- | K109: 158.50 | L109: 41.17% | M109: Successful | N109: 2015-08-19
A110: 28 | B110: 2015-05-04 | D110: Suprajit Eng | E110: Buy | F110: 115.50 | H110: 146 | I110: 142.00 | J110: Profit of Rs 30.50/- | K110: 30.50 | L110: 26.41% | M110: Successful | N110: 2015-07-17
A111: 29 | B111: 2015-05-27 | D111: TCI | E111: Buy | F111: 237.50 | H111: 279.5 | I111: 278.00 | J111: Target Achieved | K111: 42.00 | L111: 17.68% | M111: Successful | N111: 2015-08-06
A112: 30 | B112: 2015-06-19 | D112: HSIL | E112: Accu | F112: 340.00 | H112: 448 | I112: 448.00 | J112: Target Achieved | K112: 108.00 | L112: 31.76% | M112: Successful | N112: 2017-10-10
A113: 31 | B113: 2015-07-06 | D113: Capital First | E113: Accu | F113: 390.00 | H113: 460 | I113: 460.00 | J113: Target Achieved | K113: 70.00 | L113: 17.95% | M113: Successful | N113: 2016-04-18
A114: 32 | B114: 2015-07-10 | D114: Dolphin OffShore | E114: Accu | F114: 122.5 | H114: 61.00 | I114: 172.00 | J114: Loss of Rs.61.50/- | K114: -61.50 | L114: -50.20% | M114: Unsuccessful | N114: 2018-08-21
A115: 33 | B115: 2015-08-03 | D115: Allcargo logistics | E115: Accu | F115: 297.50 | H115: 350 | I115: 360.00 | J115: Profit of Rs 52.50/- | K115: 52.50 | L115: =K115/F115 -> 17.65% | M115: Successful | N115: 2015-08-16
A116: 34 | B116: 2015-08-03 | D116: Camline Fine | E116: Accu | F116: 115.50 | H116: 149 | I116: 140.00 | J116: Profit of Rs 33.50/- | K116: 33.50 | L116: 29.00% | M116: Successful | N116: 2017-01-05
A117: 35 | B117: 2015-09-04 | D117: TCI | E117: Accu | F117: 226.00 | H117: 292 | I117: 292.00 | J117: Target Achieved | K117: 66.00 | L117: 29.20% | M117: Successful | N117: 2015-10-09
A118: 36 | B118: 2015-09-07 | D118: Kalpataru Power Transmission Ltd | E118: Accu | F118: 232.50 | H118: 312.5 | I118: 310.00 | J118: Target Achieved | K118: 80.00 | L118: 34.41% | M118: Successful | N118: 2017-03-29
A119: 37 | B119: 2015-09-21 | D119: LLOYD ELECTRIC & ENG LTD | E119: Accu | F119: 196.50 | H119: 238 | I119: 238.00 | J119: Target Achieved | K119: 41.50 | L119: 21.12% | M119: Successful | N119: 2015-10-14
A120: 38 | B120: 2015-09-24 | D120: L&T Finance Holding | E120: Accu | F120: 65.00 | H120: 82 | I120: 82.00 | J120: Target Achieved | K120: 17.00 | L120: 26.15% | M120: Successful | N120: 2016-07-27
A121: 39 | B121: 2015-10-14 | D121: KEC International ltd | E121: Accu | F121: 144.00 | H121: 182.5 | I121: 181.00 | J121: Target Achieved | K121: 38.50 | L121: 26.74% | M121: Successful | N121: 2017-03-23
A122: 40 | B122: 2015-10-14 | D122: Gruh Finance | E122: Accu | F122: 264.00 | H122: 311 | I122: 311.00 | J122: Target Achieved | K122: 47.00 | L122: 17.80% | M122: Successful | N122: 2016-08-22
A123: 41 | B123: 2015-11-10 | D123: Pidilitind | E123: Buy | F123: 549.50 | H123: 630 | I123: 630.00 | J123: Target Achieved | K123: 80.50 | L123: 14.65% | M123: Successful | N123: 2016-02-19
A124: 42 | B124: 2015-12-04 | D124: Zensar Technology | E124: Accu | F124: 1027.50 | H124: 1315 | I124: 1250.00 | J124: Target Achieved | K124: =H124-F124 -> 287.50 | L124: 27.98% | M124: Successful | N124: 2018-05-24
A125: 43 | B125: 2015-12-29 | D125: Vinati Organics Ltd | E125: Accu | F125: 465.00 | H125: 540 | I125: 540.00 | J125: Target Achieved | K125: 75.00 | L125: =K125/F125 -> 16.13% | M125: Successful | N125: 2016-06-09
A126: 44 | B126: 2016-01-11 | D126: GSFC | E126: Buy | F126: 81.00 | H126: 110 | I126: 110.00 | J126: Target Achieved | K126: 29.00 | L126: 35.80% | M126: Successful | N126: 2017-01-10
A127: 45 | B127: 2016-01-13 | D127: SSWL | E127: Buy | F127: 417.50 | H127: 547 | I127: 535.00 | J127: Target Achieved | K127: 129.50 | L127: 31.02% | M127: Successful | N127: 2016-07-27
A128: 46 | B128: 2016-02-08 | D128: Persistent System Ltd | E128: Accu | F128: 650.00 | H128: 800 | I128: 800.00 | J128: Target Achieved | K128: 150.00 | L128: 23.08% | M128: Successful | N128: 2018-02-23
A129: 47 | B129: 2016-03-04 | D129: UPL | E129: Accu | F129: 437.50 | H129: 504.5 | I129: 522.00 | J129: Profit of Rs.67/- | K129: 67.00 | L129: 15.31% | M129: Successful | N129: 2016-04-20
A130: 48 | B130: 2016-03-09 | D130: Ashoka Buildcon Ltd | E130: Accu | F130: 189.50 | H130: 218 | I130: 218.00 | J130: Target Achieved | K130: 28.50 | L130: 15.04% | M130: Successful | N130: 2017-10-26
A131: 49 | B131: 2016-04-11 | D131: PTC INDIA FIN SERV LTD | E131: Accu | F131: 36-37 | I131: 60.00 | J131: Open
A132: 50 | B132: 2016-04-12 | D132: CAMLINFINE $ | E132: Accu | F132: 93.00 | H132: 149 | I132: 140.00 | J132: Profit of Rs 56/- | K132: 56.00 | L132: =K132/F132 -> 60.22% | M132: Successful | N132: 2017-01-05
A133: 51 | B133: 2016-04-12 | D133: Greaves Cotton Ltd. | E133: Accu | F133: 130.00 | H133: 150 | I133: 150-155 | J133: Target Achieved | K133: 20.00 | L133: 15.38% | M133: Successful | N133: 2016-07-13
A134: 52 | B134: 2016-04-13 | D134: DHFL | E134: Accu | F134: 196.00 | H134: 299 | I134: 299.00 | J134: Target Achieved | K134: 103.00 | L134: 52.55% | M134: Successful | N134: 2016-09-07
A135: 53 | B135: 2016-04-13 | D135: Magma | E135: Accu | F135: 88.00 | H135: 103 | I135: 103.00 | J135: Target Achieved | K135: 15.00 | L135: 17.05% | M135: Successful | N135: 2016-06-09
A136: 54 | B136: 2016-05-02 | D136: KEC International ltd $ | E136: Accu | F136: 127.50 | H136: 148 | I136: 148-150 | J136: Target Achieved | K136: 20.50 | L136: 16.08% | M136: Successful | N136: 2016-07-13
A137: 55 | B137: 2016-05-03 | D137: Mindtree | E137: Accu | F137: 675.00 | H137: 815 | I137: 790-800 | J137: Target Achieved | K137: 140.00 | L137: 20.74% | M137: Successful | N137: 2018-02-23
A138: 56 | B138: 2016-06-01 | D138: Atulauto | E138: Accu | F138: 495-505 | I138: 565-570 | J138: Open
A139: 57 | B139: 2016-06-06 | D139: TRITURBINE | E139: Accu | F139: 110.00 | H139: 126.5 | I139: 125.00 | J139: Profit of Rs.16.50/- | K139: 16.50 | L139: =K139/F139 -> 15.00% | M139: Successful | N139: 2016-07-01
A140: 58 | B140: 2016-06-17 | D140: Pennar Industries Ltd | E140: Accu | F140: 44.00 | H140: 69.5 | I140: 69.50 | J140: Profit of Rs.25.50/- | K140: 25.50 | L140: =K140/F140 -> 57.95% | M140: Successful | N140: 2017-08-30
A141: 59 | B141: 2016-06-28 | D141: EVEREADY INDS. IND. LTD. | E141: Accu | F141: 262.50 | H141: 340 | I141: 333.00 | J141: Profit of Rs.77.50/- | K141: 77.50 | L141: =K141/F141 -> 29.52% | M141: Successful | N141: 2017-10-09
A142: 60 | B142: 2016-06-28 | D142: FIEM INDUSTRIES LIMITED | E142: Accu | F142: 840.00 | H142: 1230 | I142: 1230.00 | J142: Target Achieved | K142: 390.00 | L142: =K142/F142 -> 46.43% | M142: Successful | N142: 2016-10-06
A143: 61 | B143: 2016-07-05 | D143: Bajaj Corp Ltd | E143: Accu | F143: 395 | H143: 468.50 | I143: 510.00 | J143: Part profit of Rs.73.50/- | K143: 73.50 | L143: =K143/F143 -> 19% | M143: Successful | N143: 2017-08-30
A144: 62 | B144: 2016-08-02 | D144: GPPL $ | E144: Buy | F144: 169.5 | H144: 77.00 | I144: 198-200 | J144: Loss of Rs.92.5/- | K144: -92.50 | L144: =K144/F144 -> -54.57% | M144: Unsuccessful | N144: 2019-02-26
A145: 63 | B145: 2016-08-04 | D145: WONDERLA HOLIDAYS LTD | E145: Accu | F145: 395-405 | I145: 475.00 | J145: Open
A146: 64 | B146: 2016-08-11 | D146: CAMLINFINE | E146: Accu | F146: 86.50 | H146: 130 | I146: 130.00 | J146: Profit of Rs.43.50/- | K146: =H146-F146 -> 43.50 | L146: =K146/F146 -> 50.29% | M146: Successful | N146: 2017-12-22
A147: 65 | B147: 2016-08-18 | D147: GRANULES | E147: Accu | F147: 133.5 | H147: 126.50 | I147: 178.00 | J147: Exit | K147: -7.00 | L147: -5.24% | M147: Unsuccessful | N147: 2016-09-02
A148: 66 | B148: 2016-08-31 | D148: VA TECH WABAG | E148: Accu | F148: 560.00 | H148: 725 | I148: 725.00 | J148: Target Achieved | K148: 165.00 | L148: 29.46% | M148: Successful | N148: 2016-03-27
A149: 67 | B149: 2016-09-01 | D149: SKIPPER LIMITED | E149: Accu | F149: 160.50 | H149: 210 | I149: 210.00 | J149: Target Achieved | K149: 49.50 | L149: 30.84% | M149: Successful | N149: 2017-05-16
A150: 68 | B150: 2016-10-03 | D150: IFB Industries | E150: Accu | F150: 430.00 | H150: 596 | I150: 575.00 | J150: Profit of Rs.166/- | K150: 166.00 | L150: 38.60% | M150: Successful | N150: 2017-02-03
A151: 69 | B151: 2016-10-14 | D151: ASIANTILES | E151: Accu | F151: 280.00 | H151: 345 | I151: 345.00 | J151: Target Achieved | K151: 65.00 | L151: 23.21% | M151: Successful | N151: 2017-03-20
A152: 70 | B152: 2016-10-14 | D152: DEEPIND | E152: Accu | F152: 245.00 | H152: 325.5 | I152: 330.00 | J152: Profit of Rs.80.5/- | K152: 80.50 | L152: 32.86% | M152: Successful | N152: 2017-02-03
A153: 71 | B153: 2016-10-17 | D153: DCBBANK | E153: Accu | F153: 125.00 | H153: 160 | I153: 160.00 | J153: Target Achieved | K153: 35.00 | L153: 28.00% | M153: Successful | N153: 2017-03-09
A154: 72 | B154: 2016-10-17 | D154: ORIENTREF | E154: Accu | F154: 114.00 | H154: 145 | I154: 145.00 | J154: Target Achieved | K154: 31.00 | L154: =K154/F154 -> 27.19% | M154: Successful | N154: 2017-05-04
A155: 73 | B155: 2016-10-17 | D155: GANECOS | E155: Accu | F155: 212.00 | H155: 280 | I155: 276.00 | J155: Profit of Rs.68/- | K155: 68.00 | L155: =K155/F155 -> 32.08% | M155: Successful | N155: 2017-05-03
A156: 74 | B156: 2016-11-04 | D156: NBCC | E156: Accu | F156: 155.00 | H156: 210 | I156: 210.00 | J156: Profit of Rs.55/- | K156: 55.00 | L156: =K156/F156 -> 35.48% | M156: Successful | N156: 2017-07-28
A157: 75 | B157: 2016-12-06 | D157: PRECAM | E157: Accu | F157: 150.5 | H157: 72.50 | I157: 174.00 | J157: Loss of Rs.78/- | K157: -78.00 | L157: =K157/F157 -> -51.83% | M157: Unsuccessful | N157: 2018-08-21
A158: 76 | B158: 2016-12-08 | D158: INFRATEL | E158: Accu | F158: 380.00 | H158: 478 | I158: 468.00 | J158: Target Achieved | K158: 98.00 | L158: =K158/F158 -> 25.79% | M158: Successful | N158: 2017-10-17
A159: 77 | B159: 2016-12-30 | D159: GODREJPROP | E159: Accu | F159: 305.00 | H159: 375 | I159: 375.00 | J159: Target Achieved | K159: 70.00 | L159: 22.95% | M159: Successful | N159: 2017-02-02
A160: 78 | B160: 2017-01-04 | D160: DEEPAKNTR | E160: Accu | F160: 99.50 | H160: 158 | I160: 158.00 | J160: Target Achieved | K160: 58.50 | L160: 58.79% | M160: Successful | N160: 2017-06-12
A161: 79 | B161: 2017-02-20 | D161: SUBROS | E161: Accu | F161: 202.50 | H161: 234 | I161: 234.00 | J161: Target Achieved | K161: 31.50 | L161: 15.56% | M161: Successful | N161: 2017-04-11
A162: 80 | B162: 2017-02-20 | D162: RECLTD | E162: Accu | F162: 140.50 | H162: 220 | I162: 220.00 | J162: Target Achieved | K162: 79.50 | L162: 56.58% | M162: Successful | N162: 2017-05-09
A163: 81 | B163: 2017-03-24 | D163: VRLLOG | E163: Accu | F163: 300.50 | H163: 417.5 | I163: 420.00 | J163: Profit of Rs.117/- | K163: 117.00 | L163: 38.94% | M163: Successful | N163: 2017-12-01
A164: 82 | B164: 2017-03-24 | D164: FIEMIND | E164: Accu | F164: 850.00 | H164: 1042.5 | I164: 1023.00 | J164: Profit of Rs 192.50/- | K164: 192.50 | L164: 22.65% | M164: Successful | N164: 2017-04-05
A165: 83 | B165: 2017-04-05 | D165: RATNAMANI | E165: Accu | F165: 785.00 | H165: 930 | I165: 920.00 | J165: Profit of Rs.145/- | K165: 145.00 | L165: 18.47% | M165: Successful | N165: 2017-08-29
A166: 84 | B166: 2017-04-06 | D166: ZEEMEDIA | E166: Accu | F166: 40 | H166: 13.10 | I166: 60.00 | J166: Loss of Rs.26.9/- | K166: =H166-F166 -> -26.90 | L166: -67.25% | M166: Unsuccessful | N166: 2018-02-07
A167: 85 | B167: 2017-04-12 | D167: DABUR | E167: Accu | F167: 289.50 | H167: 354 | I167: 360.00 | J167: Profit of Rs.64.5/- | K167: 64.50 | L167: =K167/F167 -> 22.28% | M167: Successful | N167: 2017-11-01
A168: 86 | B168: 2017-04-20 | D168: KPRMILL | E168: Accu | F168: 700.00 | H168: 840 | I168: 840.00 | J168: Profit of Rs.140/- | K168: 140.00 | L168: =K168/F168 -> 20.00% | M168: Successful | N168: 2017-06-07
A169: 87 | B169: 2017-05-22 | D169: GREAVESCOT | E169: Accu | F169: 153-158 | I169: 190.00 | J169: Open
A170: 88 | B170: 2017-06-01 | D170: ESSELPACK | E170: Accu | F170: 130 | H170: 155.50 | I170: 170.00 | J170: Part profit of Rs.51/- | K170: =H170-F170 -> 25.50 | L170: =K170/F170 -> 20% | M170: Successful | N170: 2017-11-17
A171: 89 | B171: 2017-06-15 | D171: KEI | E171: Accu | F171: 214.50 | H171: 262 | I171: 262.00 | J171: Profit of Rs.47.5/- | K171: =H171-F171 -> 47.50 | L171: 22.14% | M171: Successful | N171: 2017-08-30
A172: 90 | B172: 2017-07-17 | D172: MAYURUNIQ | E172: Accu | F172: 370.00 | H172: 447.5 | I172: 450.00 | J172: Target Achieved | K172: 77.50 | L172: 20.95% | M172: Successful | N172: 2017-10-27
A173: 91 | B173: 2017-07-27 | D173: RAMCOCEM | E173: Accu | F173: 657.50 | H173: 825 | I173: 820.00 | J173: Target Achieved | K173: 167.50 | L173: 25.48% | M173: Successful | N173: 2017-12-21
A174: 92 | B174: 2017-08-17 | D174: FINPIPE | E174: Accu | F174: 605.00 | H174: 750 | I174: 750.00 | J174: Profit of Rs.145/- | K174: 145.00 | L174: 23.97% | M174: Successful | N174: 2017-10-19
A175: 93 | B175: 2017-09-01 | D175: SHK | E175: Accu | F175: 255 | H175: 307.50 | I175: 320.00 | J175: Part profit of Rs.52.5/- | K175: 52.50 | L175: 21% | M175: Successful | N175: 2017-12-29
A176: 94 | B176: 2017-09-19 | D176: SKIPPER | E176: Accu | F176: 215.00 | H176: 258 | I176: 258.00 | J176: Target Achieved | K176: 43.00 | L176: 20.00% | M176: Successful | N176: 2017-11-01
A177: 95 | B177: 2017-09-20 | D177: CAMLINFINE | E177: Accu | F177: 75.00 | H177: 90 | I177: 90.00 | J177: Profit of Rs.15.00/- | K177: 15.00 | L177: 20.00% | M177: Successful | N177: 2017-10-11
A178: 96 | B178: 2017-10-03 | D178: GNA | E178: Accu | F178: 315.00 | H178: 392 | I178: 384.00 | J178: Profit of Rs.77/- | K178: 77.00 | L178: 24.44% | M178: Successful | N178: 2017-10-09
A179: 97 | B179: 2017-10-05 | D179: NOCIL | E179: Accu | F179: 145.00 | H179: 179 | I179: 180.00 | J179: Profit of Rs.34/- | K179: 34.00 | L179: 23.45% | M179: Successful | N179: 2017-10-17
A180: 98 | B180: 2017-10-06 | D180: CENTURYPLY | E180: Accu | F180: 256.00 | H180: 323 | I180: 320.00 | J180: Target Achieved | K180: 67.00 | L180: 26.17% | M180: Successful | N180: 2017-11-28
A181: 99 | B181: 2017-10-09 | D181: RECLTD | E181: Accu | F181: 152.5 | H181: 183.50 | I181: 210.00 | J181: Part Profit of Rs.31/- | K181: 31.00 | L181: 20% | M181: Successful | N181: 2017-11-03
A182: 100 | B182: 2017-10-09 | D182: EIHOTEL | E182: Accu | F182: 137.50 | H182: 184 | I182: 183.00 | J182: Profit of Rs.46.5/- | K182: 46.50 | L182: 33.82% | M182: Successful | N182: 2018-01-08
A183: 101 | B183: 2017-10-10 | D183: BOROSIL | E183: Accu | F183: 895.00 | H183: 1122.5 | I183: 1078.00 | J183: Profit of Rs.227.5/- | K183: 227.50 | L183: 25.42% | M183: Successful | N183: 2018-01-17
A184: 102 | B184: 2017-10-10 | D184: NRBBEARING | E184: Accu | F184: 125.50 | H184: 158 | I184: 155.00 | J184: Profit of Rs.32.5/- | K184: 32.50 | L184: 25.90% | M184: Successful | N184: 2017-11-28
A185: 103 | B185: 2017-10-12 | D185: CYIENT | E185: Accu | F185: 525.00 | H185: 629 | I185: 629.00 | J185: Target Achieved | K185: 104.00 | L185: 19.81% | M185: Successful | N185: 2018-01-19
A186: 104 | B186: 2017-11-07 | D186: HATSUN | E186: Accu | F186: 740.00 | H186: 892.5 | I186: 900.00 | J186: Profit of Rs.152.5/- | K186: 152.50 | L186: 20.61% | M186: Successful | N186: 2017-11-13
A187: 105 | B187: 2017-12-04 | D187: SANGHIIND | E187: Accu | F187: 118.50 | H187: 143.5 | I187: 145.00 | J187: Profit of Rs.25/- | K187: 25.00 | L187: 21.10% | M187: Successful | N187: 2017-12-28
A188: 106 | B188: 2017-12-05 | D188: ALLCARGO | E188: Accu | F188: 177.5 | H188: 215.00 | I188: 230.00 | J188: Part Profit of Rs.37.5/- | K188: 37.50 | L188: 21% | M188: Successful | N188: 2017-12-27
A189: 107 | B189: 2017-12-21 | D189: KAJARIACER | E189: Accu | F189: 710-720 | I189: 872.00 | J189: Open
A190: 108 | B190: 2017-12-29 | D190: GNA | E190: Accu | F190: 435.00 | H190: 542.5 | I190: 539.00 | J190: Target Achieved | K190: =H190-F190 -> 107.50 | L190: =K190/F190 -> 24.71% | M190: Successful | N190: 2018-04-16
A191: 109 | B191: 2017-12-29 | D191: ZENSARTECH | E191: Accu | F191: 885.00 | H191: 1090 | I191: 1084.00 | J191: Target Achieved | K191: 205.00 | L191: =K191/F191 -> 23.16% | M191: Successful | N191: 2018-04-23
A192: 110 | B192: 2018-02-07 | D192: GREAVESCOT | E192: Accu | F192: 130-132 | I192: 190.00 | J192: Open
A193: 111 | B193: 2018-02-27 | D193: MOLDTKPAC | E193: Accu | F193: 320-330 | I193: 398.00 | J193: Open
A194: 112 | B194: 2018-03-05 | D194: LICHSGFIN | E194: Accu | F194: 505-515 | I194: 672.00 | J194: Open
A195: 113 | B195: 2018-04-02 | D195: EVERESTIND | E195: Accu | F195: 492.5 | H195: 589.00 | I195: 613.00 | J195: Part Profit of Rs.37.5/- | K195: =H195-F195 -> 96.50 | L195: =K195/F195 -> 20% | M195: Successful | N195: 2018-08-21
A196: 114 | B196: 2018-04-04 | D196: GPPL | E196: Accu | F196: 141.5 | H196: 77.00 | I196: 180.00 | J196: Loss of Rs.64.5/- | K196: -64.50 | L196: -45.58% | M196: Unsuccessful | N196: 2019-02-26
A197: 115 | B197: 2018-04-19 | D197: MANPASAND | E197: Accu | F197: 430 | H197: 220.00 | I197: 537.00 | J197: Loss of Rs.210/- | K197: =H197-F197 -> -210.00 | L197: =K197/F197 -> -48.84% | M197: Unsuccessful | N197: 2018-06-01
A198: 116 | B198: 2018-04-30 | D198: HEIDELBERG | E198: Accu | F198: 154-158 | I198: 196.00 | J198: Open
A199: 117 | B199: 2018-05-17 | D199: PHILIPCARB | E199: Accu | F199: 230-240 | I199: 348.00 | J199: Open
A200: 118 | B200: 2018-06-07 | D200: KEC | E200: Accu | F200: 340-345 | I200: 439.00 | J200: Open
A201: 119 | B201: 2018-07-04 | D201: ASHOKLEY | E201: Accu | F201: 125-130 | I201: 170.00 | J201: Open
A202: 120 | B202: 2018-07-13 | D202: FCONSUMER | E202: Accu | F202: 46-47 | I202: 59.00 | J202: Open
A203: 121 | B203: 2018-07-25 | D203: ZEEMEDIA | E203: Accu | F203: 27.5 | H203: 13.10 | I203: 60.00 | J203: Loss of Rs.14.40/- | K203: =H203-F203 -> -14.40 | L203: =K203/F203 -> -52.36% | M203: Unsuccessful | N203: 2018-02-07
A204: 122 | B204: 2018-08-06 | D204: GABRIEL | E204: Accu | F204: 148-152 | I204: 182.00 | J204: Open
A205: 123 | B205: 2018-08-23 | D205: INDIANHUME | E205: Accu | F205: 285.00 | H205: 355 | I205: 364.00 | J205: Profit of Rs.70/- | K205: =H205-F205 -> 70.00 | L205: =K205/F205 -> 24.56% | M205: Successful | N205: 2018-12-21
A206: 124 | B206: 2018-08-29 | D206: GRINDWELL | E206: Accu | F206: 520-530 | I206: 635.00 | J206: Open
A207: 125 | B207: 2018-10-22 | D207: FINPIPE | E207: Accu | F207: 475.00 | H207: 574 | I207: 570.00 | J207: Target Achieved | K207: =H207-F207 -> 99.00 | L207: =K207/F207 -> 20.84% | M207: Successful | N207: 2018-10-30
A208: 126 | B208: 2018-10-23 | D208: JKPAPER | E208: Accu | F208: 158-162 | I208: 191.00 | J208: Open
A209: 127 | B209: 2018-10-24 | D209: GULFOILLUB | E209: Accu | F209: 707.50 | H209: 872 | I209: 872.00 | J209: Target Achieved | K209: =H209-F209 -> 164.50 | L209: =K209/F209 -> 23.25% | M209: Successful | N209: 2019-01-17
A210: 128 | B210: 2018-10-25 | D210: GODREJCP | E210: Accu | F210: 707.5 | H210: 850.00 | I210: 890.00 | J210: Part Profit of Rs.142.5/- | K210: =H210-F210 -> 142.50 | L210: =K210/F210 -> 20% | M210: Successful | N210: 2018-12-19
A211: 129 | B211: 2018-10-25 | D211: DBCORP | E211: Accu | F211: 161-167 | I211: 209.00 | J211: Open
A212: 130 | B212: 2018-10-26 | D212: RITES | E212: Accu | F212: 240.00 | H212: 297 | I212: 297.00 | J212: Target Achieved | K212: =H212-F212 -> 57.00 | L212: =K212/F212 -> 23.75% | M212: Successful | N212: 2018-11-13
A213: 131 | B213: 2018-12-05 | D213: CCL | E213: Accu | F213: 260-270 | I213: 321.00 | J213: Open
A214: 132 | B214: 2018-12-05 | D214: VARROC | E214: Accu | F214: 710-720 | I214: 840.00 | J214: Open
A215: 133 | B215: 2018-12-05 | D215: BRIGADE | E215: Accu | F215: 202.5 | H215: 242.50 | I215: 252.00 | J215: Part Profit of Rs.40/- | K215: =H215-F215 -> 40.00 | L215: =K215/F215 -> 20% | M215: Successful | N215: 2018-12-26
A216: 134 | B216: 2018-12-31 | D216: JKCEMENT | E216: Accu | F216: 705-715 | I216: 866.00 | J216: Open
A217: 135 | B217: 2019-01-04 | D217: MGL | E217: Accu | F217: 890-900 | I217: 1185.00 | J217: Open
A218: 136 | B218: 2019-02-26 | D218: MARICO | E218: Accu | F218: 335-345 | I218: 411.00 | J218: Open
F222: Reinitiated $
A224: Disclaimer:
A225: This document has been prepared by the Retail Research Desk of Asit C Mehta
A226: Investment Intermediates Ltd. and is meant for use of the recipient only
A227: and is not for circulation. This document is not to be reported or
A228: copied or made available to others. It should not be considered to be
A229: taken as an offer to sell or a solicitation to buy any security. The
A230: information contained herein is from sources believed reliable. We do
A231: not represent that it is accurate or complete and it should not be
A232: relied upon as such. We may from time to time have positions in and buy
A233: and sell securities referred to herein
A345: 26 | B345: 2019-01-15 | D345: TORNTPHARM JAN FUT | E345: Buy | F345: 1890 | G345: 1867 | H345: 1908 | I345: 1940 | J345: Profit of Rs.18/- | K345: =H345-F345 -> 18 | M345: =N345*K345 -> 9000 | N345: 500 | O345: Successful | P345: 2019-01-15

Sheet Sheet2 (hidden)
A1: SYMBOL | B1: SERIES | C1: OPEN | D1: HIGH | E1: LOW | F1: CLOSE | G1: LAST | H1: PREVCLOSE | I1: TOTTRDQTY | J1: TOTTRDVAL | K1: TIMESTAMP | L1: TOTALTRADES | M1: ISIN | N1: ISIN
A2: 20MICRONS | B2: EQ | C2: 37.3 | D2: 38 | E2: 37.1 | F2: 37.8 | G2: 37.25 | H2: 36.55 | I2: 30685 | J2: 1154353.15 | K2: 2019-03-01 | L2: 347 | M2: INE144J01027
A3: 21STCENMGM | B3: EQ | C3: 17.95 | D3: 18.25 | E3: 17.65 | F3: 17.75 | G3: 17.65 | H3: 17.95 | I3: 3114 | J3: 55309.4 | K3: 2019-03-01 | L3: 34 | M3: INE253B01015
A4: 3IINFOTECH | B4: EQ | C4: 3.45 | D4: 3.65 | E4: 3.35 | F4: 3.6 | G4: 3.55 | H4: 3.35 | I4: 2287303 | J4: 8063648.85 | K4: 2019-03-01 | L4: 1003 | M4: INE748C01020
A5: 3MINDIA | B5: EQ | C5: 23098.65 | D5: 23587.95 | E5: 22927 | F5: 23011.5 | G5: 22927 | H5: 22896.25 | I5: 3951 | J5: 91879714.3 | K5: 2019-03-01 | L5: 1815 | M5: INE470A01017
A6: 3PLAND | B6: EQ | C6: 11.65 | D6: 11.65 | E6: 10.6 | F6: 10.75 | G6: 10.75 | H6: 11.15 | I6: 526 | J6: 6044.15 | K6: 2019-03-01 | L6: 11 | M6: INE105C01023
A7: 5PAISA | B7: EQ | C7: 216 | D7: 216.25 | E7: 210 | F7: 213.3 | G7: 213.05 | H7: 208.4 | I7: 3248 | J7: 694878.05 | K7: 2019-03-01 | L7: 229 | M7: INE618L01018
A8: 63MOONS | B8: EQ | C8: 80.05 | D8: 83.9 | E8: 80.05 | F8: 82 | G8: 81.7 | H8: 79.55 | I8: 275273 | J8: 22551468.7 | K8: 2019-03-01 | L8: 3947 | M8: INE111B01023
A9: 8KMILES | B9: EQ | C9: 105.1 | D9: 107.9 | E9: 104.2 | F9: 106.6 | G9: 106 | H9: 103.75 | I9: 230708 | J9: 24458185.05 | K9: 2019-03-01 | L9: 3504 | M9: INE650K01021
A10: A2ZINFRA | B10: BE | C10: 17.35 | D10: 17.6 | E10: 17.05 | F10: 17.6 | G10: 17.6 | H10: 16.8 | I10: 140739 | J10: 2468148.7 | K10: 2019-03-01 | L10: 258 | M10: INE619I01012
A11: AARTIDRUGS | B11: EQ | C11: 590 | D11: 603.3 | E11: 586.8 | F11: 593.9 | G11: 591 | H11: 589.4 | I11: 15244 | J11: 9096043.85 | K11: 2019-03-01 | L11: 935 | M11: INE767A01016
A12: AARTIIND | B12: EQ | C12: 1405.1 | D12: 1414.4 | E12: 1398.25 | F12: 1405.25 | G12: 1403 | H12: 1390.1 | I12: 51573 | J12: 72521177.75 | K12: 2019-03-01 | L12: 5620 | M12: INE769A01020
A13: AARVEEDEN | B13: EQ | C13: 21.7 | D13: 22.75 | E13: 21.55 | F13: 22.25 | G13: 22.25 | H13: 21.7 | I13: 9087 | J13: 199862.2 | K13: 2019-03-01 | L13: 131 | M13: INE273D01019
A14: AAVAS | B14: EQ | C14: 1005.5 | D14: 1085 | E14: 1002.2 | F14: 1069.6 | G14: 1070 | H14: 1004.15 | I14: 151797 | J14: 161175481.7 | K14: 2019-03-01 | L14: 7154 | M14: INE216P01012
A15: ABAN | B15: EQ | C15: 52.15 | D15: 59 | E15: 52.15 | F15: 57.6 | G15: 57.6 | H15: 52.6 | I15: 1400089 | J15: 79160388.5 | K15: 2019-03-01 | L15: 10047 | M15: INE421A01028
A16: ABB | B16: EQ | C16: 1245.9 | D16: 1262 | E16: 1235.2 | F16: 1244.5 | G16: 1240 | H16: 1227.05 | I16: 196910 | J16: 245907448.6 | K16: 2019-03-01 | L16: 8872 | M16: INE117A01022
A17: ABBOTINDIA | B17: EQ | C17: 7429.8 | D17: 7435 | E17: 7313 | F17: 7333.4 | G17: 7313 | H17: 7437.6 | I17: 7366 | J17: 54287088.1 | K17: 2019-03-01 | L17: 1617 | M17: INE358A01014
A18: ABCAPITAL | B18: EQ | C18: 92.5 | D18: 96.5 | E18: 92.35 | F18: 95.95 | G18: 96.05 | H18: 91.9 | I18: 3111358 | J18: 294852616.6 | K18: 2019-03-01 | L18: 32996 | M18: INE674K01013
A19: ABFRL | B19: EQ | C19: 226.35 | D19: 226.85 | E19: 221.3 | F19: 223.45 | G19: 223.3 | H19: 225.3 | I19: 492543 | J19: 110058927.5 | K19: 2019-03-01 | L19: 10834 | M19: INE647O01011
A20: ABSLNN50ET | B20: EQ | C20: 275 | D20: 275 | E20: 275 | F20: 275 | G20: 275 | H20: 270 | I20: 6 | J20: 1650 | K20: 2019-03-01 | L20: 1 | M20: INF209KB1B87
A21: ACC | B21: EQ | C21: 1422.3 | D21: 1500.1 | E21: 1420.3 | F21: 1481.7 | G21: 1492.5 | H21: 1422.3 | I21: 1200767 | J21: 1754641318 | K21: 2019-03-01 | L21: 34200 | M21: INE012A01025
A22: ACCELYA | B22: EQ | C22: 916.05 | D22: 929.4 | E22: 916.05 | F22: 921.4 | G22: 927.05 | H22: 925.9 | I22: 3028 | J22: 2789035.05 | K22: 2019-03-01 | L22: 345 | M22: INE793A01012
A23: ACE | B23: EQ | C23: 81.7 | D23: 84.65 | E23: 81.1 | F23: 83.8 | G23: 84.15 | H23: 80.45 | I23: 308129 | J23: 25727016.4 | K23: 2019-03-01 | L23: 2674 | M23: INE731H01025
A24: ADANIENT | B24: EQ | C24: 130.35 | D24: 135.2 | E24: 128.85 | F24: 133.85 | G24: 133 | H24: 128.85 | I24: 7738116 | J24: 1026822812 | K24: 2019-03-01 | L24: 37896 | M24: INE423A01024
A25: ADANIGAS | B25: EQ | C25: 102.1 | D25: 108.9 | E25: 102.1 | F25: 106 | G25: 106 | H25: 102 | I25: 1269475 | J25: 134494873.4 | K25: 2019-03-01 | L25: 9314 | M25: INE399L01023
A26: ADANIGREEN | B26: EQ | C26: 33.1 | D26: 35.3 | E26: 33.1 | F26: 34.2 | G26: 34.1 | H26: 33.05 | I26: 1019350 | J26: 35019797.9 | K26: 2019-03-01 | L26: 3851 | M26: INE364U01010
A27: ADANIPORTS | B27: EQ | C27: 328.8 | D27: 334.8 | E27: 327 | F27: 333.2 | G27: 332.35 | H27: 325.85 | I27: 4756894 | J27: 1582495041 | K27: 2019-03-01 | L27: 61252 | M27: INE742F01042
A28: ADANIPOWER | B28: EQ | C28: 48.35 | D28: 49 | E28: 47.75 | F28: 48.4 | G28: 48.25 | H28: 48.15 | I28: 16489834 | J28: 796973243 | K28: 2019-03-01 | L28: 24921 | M28: INE814H01011
A29: ADANITRANS | B29: EQ | C29: 207 | D29: 210.4 | E29: 202.95 | F29: 204.75 | G29: 204.55 | H29: 203.85 | I29: 111237 | J29: 23005686.25 | K29: 2019-03-01 | L29: 7170 | M29: INE931S01010
A30: ADFFOODS | B30: EQ | C30: 231.95 | D30: 253.8 | E30: 231.95 | F30: 249.75 | G30: 251 | H30: 232.3 | I30: 179408 | J30: 44367119.1 | K30: 2019-03-01 | L30: 4324 | M30: INE982B01019
A31: ADHUNIK | B31: EQ | C31: 1.6 | D31: 1.6 | E31: 1.5 | F31: 1.6 | G31: 1.6 | H31: 1.55 | I31: 91646 | J31: 142331.15 | K31: 2019-03-01 | L31: 72 | M31: INE400H01019
A32: ADHUNIKIND | B32: EQ | C32: 54.5 | D32: 55 | E32: 52.25 | F32: 53.25 | G32: 53.75 | H32: 54.25 | I32: 25492 | J32: 1378548.6 | K32: 2019-03-01 | L32: 341 | M32: INE452L01012
A33: ADLABS | B33: EQ | C33: 9.05 | D33: 9.05 | E33: 8.7 | F33: 8.9 | G33: 8.9 | H33: 8.85 | I33: 114249 | J33: 1016879.4 | K33: 2019-03-01 | L33: 281 | M33: INE172N01012
A34: ADORWELD | B34: EQ | C34: 319 | D34: 330 | E34: 312 | F34: 323.95 | G34: 325 | H34: 318.9 | I34: 9181 | J34: 2976599.6 | K34: 2019-03-01 | L34: 516 | M34: INE045A01017
A35: ADROITINFO | B35: EQ | C35: 15 | D35: 17.5 | E35: 15 | F35: 16.7 | G35: 17.5 | H35: 15 | I35: 5857 | J35: 95982.8 | K35: 2019-03-01 | L35: 50 | M35: INE737B01033
A36: ADSL | B36: EQ | C36: 12.7 | D36: 12.7 | E36: 12.05 | F36: 12.35 | G36: 12.35 | H36: 12.2 | I36: 6525 | J36: 79691.5 | K36: 2019-03-01 | L36: 31 | M36: INE102I01027
A37: ADVANIHOTR | B37: EQ | C37: 62.1 | D37: 63.95 | E37: 58.25 | F37: 62 | G37: 61.95 | H37: 62.85 | I37: 11680 | J37: 714416 | K37: 2019-03-01 | L37: 273 | M37: INE199C01026
A38: ADVENZYMES | B38: EQ | C38: 150 | D38: 152.2 | E38: 149 | F38: 150.1 | G38: 150.2 | H38: 149.3 | I38: 91324 | J38: 13731026.45 | K38: 2019-03-01 | L38: 1563 | M38: INE837H01020
A39: AEGISCHEM | B39: EQ | C39: 200.15 | D39: 216.4 | E39: 199.1 | F39: 207.1 | G39: 205 | H39: 198.9 | I39: 228779 | J39: 47996409.3 | K39: 2019-03-01 | L39: 4520 | M39: INE208C01025
A40: AGARIND | B40: EQ | C40: 170.95 | D40: 172.8 | E40: 167.15 | F40: 170.35 | G40: 171 | H40: 169.15 | I40: 31104 | J40: 5317567 | K40: 2019-03-01 | L40: 72 | M40: INE204E01012
A41: AGCNET | B41: EQ | C41: 103.3 | D41: 104.9 | E41: 103.3 | F41: 103.85 | G41: 103.85 | H41: 105 | I41: 1199 | J41: 125229.2 | K41: 2019-03-01 | L41: 12 | M41: INE676A01019
A42: AGLSL | B42: EQ | C42: 61.95 | D42: 62.55 | E42: 59 | F42: 59.95 | G42: 59.9 | H42: 61 | I42: 5543 | J42: 337405.35 | K42: 2019-03-01 | L42: 239 | M42: INE517U01013
A43: AGRITECH | B43: EQ | C43: 49.65 | D43: 51.2 | E43: 49.6 | F43: 50.85 | G43: 50.5 | H43: 49.55 | I43: 9964 | J43: 502539.3 | K43: 2019-03-01 | L43: 114 | M43: INE449G01018
A44: AHLEAST | B44: EQ | C44: 237.9 | D44: 250 | E44: 237.85 | F44: 239.5 | G44: 238 | H44: 234.25 | I44: 5375 | J44: 1298884.9 | K44: 2019-03-01 | L44: 222 | M44: INE926K01017
A45: AHLUCONT | B45: EQ | C45: 290.1 | D45: 295.95 | E45: 288.5 | F45: 295.1 | G45: 295.95 | H45: 292.3 | I45: 23433 | J45: 6865794.95 | K45: 2019-03-01 | L45: 162 | M45: INE758C01029
A46: AHLWEST | B46: EQ | C46: 335.05 | D46: 344.95 | E46: 335.05 | F46: 340 | G46: 340 | H46: 350.3 | I46: 233 | J46: 79350.9 | K46: 2019-03-01 | L46: 30 | M46: INE915K01010
A47: AIAENG | B47: EQ | C47: 1710 | D47: 1814.5 | E47: 1704.15 | F47: 1776.4 | G47: 1781 | H47: 1715.4 | I47: 46790 | J47: 80700746 | K47: 2019-03-01 | L47: 2714 | M47: INE212H01026
A48: AIFL | B48: BE | C48: 15.4 | D48: 15.4 | E48: 15.4 | F48: 15.4 | G48: 15.4 | H48: 14.7 | I48: 7324 | J48: 112789.6 | K48: 2019-03-01 | L48: 26 | M48: INE428O01016
A49: AIONJSW | B49: EQ | C49: 30.5 | D49: 31.8 | E49: 30.25 | F49: 30.65 | G49: 30.25 | H49: 31 | I49: 28015 | J49: 861070.25 | K49: 2019-03-01 | L49: 164 | M49: INE743C01021
A50: AJANTPHARM | B50: EQ | C50: 988 | D50: 996 | E50: 981.25 | F50: 987.05 | G50: 991.5 | H50: 978.9 | I50: 472765 | J50: 467458689.3 | K50: 2019-03-01 | L50: 14826 | M50: INE031B01049
A51: AJMERA | B51: EQ | C51: 163 | D51: 173.8 | E51: 163 | F51: 167.35 | G51: 167.1 | H51: 161.6 | I51: 276119 | J51: 46808904.35 | K51: 2019-03-01 | L51: 4821 | M51: INE298G01027
A52: AKSHARCHEM | B52: EQ | C52: 320.6 | D52: 326.3 | E52: 316.95 | F52: 324.7 | G52: 326.3 | H52: 320.6 | I52: 14756 | J52: 4750269.75 | K52: 2019-03-01 | L52: 263 | M52: INE542B01011
A53: AKSHOPTFBR | B53: EQ | C53: 18.9 | D53: 19.8 | E53: 18.9 | F53: 19.6 | G53: 19.55 | H53: 18.75 | I53: 722099 | J53: 13950488.8 | K53: 2019-03-01 | L53: 2238 | M53: INE523B01011
A54: AKZOINDIA | B54: EQ | C54: 1786.55 | D54: 1809.8 | E54: 1741.1 | F54: 1763.65 | G54: 1760.1 | H54: 1786.55 | I54: 6631 | J54: 11744169.95 | K54: 2019-03-01 | L54: 827 | M54: INE133A01011
A55: ALANKIT | B55: EQ | C55: 27.35 | D55: 27.45 | E55: 27 | F55: 27.2 | G55: 27.2 | H55: 27.05 | I55: 469707 | J55: 12839368.75 | K55: 2019-03-01 | L55: 1358 | M55: INE914E01040
A56: ALBERTDAVD | B56: EQ | C56: 392.9 | D56: 429.7 | E56: 387.05 | F56: 423.55 | G56: 420.5 | H56: 392.9 | I56: 27772 | J56: 11570019.15 | K56: 2019-03-01 | L56: 814 | M56: INE155C01010
A57: ALBK | B57: EQ | C57: 48.15 | D57: 50.95 | E57: 47.55 | F57: 50.3 | G57: 49.95 | H57: 48 | I57: 13711530 | J57: 678524694.5 | K57: 2019-03-01 | L57: 25230 | M57: INE428A01015
A58: ALCHEM | B58: BE | C58: 1.95 | D58: 1.95 | E58: 1.85 | F58: 1.85 | G58: 1.85 | H58: 1.9 | I58: 20371 | J58: 37751.35 | K58: 2019-03-01 | L58: 34 | M58: INE964B01033
A59: ALEMBICLTD | B59: EQ | C59: 41.5 | D59: 42.3 | E59: 41 | F59: 41.8 | G59: 41.5 | H59: 41 | I59: 198301 | J59: 8278407.5 | K59: 2019-03-01 | L59: 1190 | M59: INE426A01027
A60: ALICON | B60: EQ | C60: 575.05 | D60: 580.4 | E60: 545 | F60: 551.8 | G60: 549 | H60: 567.6 | I60: 1706 | J60: 960019.25 | K60: 2019-03-01 | L60: 161 | M60: INE062D01024
A61: ALKALI | B61: EQ | C61: 41 | D61: 44.25 | E61: 40 | F61: 43.65 | G61: 43.6 | H61: 39.5 | I61: 17686 | J61: 761245.4 | K61: 2019-03-01 | L61: 266 | M61: INE773I01017
A62: ALKEM | B62: EQ | C62: 1759.9 | D62: 1787.9 | E62: 1751.15 | F62: 1780.05 | G62: 1782 | H62: 1743.8 | I62: 16378 | J62: 28994066.45 | K62: 2019-03-01 | L62: 4514 | M62: INE540L01014
A63: ALKYLAMINE | B63: EQ | C63: 721.5 | D63: 729.9 | E63: 719.2 | F63: 723.8 | G63: 729.9 | H63: 710.75 | I63: 677 | J63: 489413.95 | K63: 2019-03-01 | L63: 66 | M63: INE150B01021
A64: ALLCARGO | B64: EQ | C64: 100 | D64: 104.65 | E64: 99.55 | F64: 101.1 | G64: 101.15 | H64: 99.55 | I64: 384172 | J64: 39034480.6 | K64: 2019-03-01 | L64: 4042 | M64: INE418H01029
A65: ALLSEC | B65: EQ | C65: 178.15 | D65: 181 | E65: 178.05 | F65: 181 | G65: 181 | H65: 180.65 | I65: 10474 | J65: 1894814.05 | K65: 2019-03-01 | L65: 199 | M65: INE835G01018
A66: ALMONDZ | B66: EQ | C66: 23 | D66: 24 | E66: 21.6 | F66: 22.4 | G66: 22 | H66: 23.5 | I66: 5285 | J66: 119938.5 | K66: 2019-03-01 | L66: 49 | M66: INE326B01027
A67: ALOKTEXT | B67: EQ | C67: 3.4 | D67: 3.65 | E67: 3.4 | F67: 3.55 | G67: 3.65 | H67: 3.4 | I67: 1786583 | J67: 6272099.2 | K67: 2019-03-01 | L67: 797 | M67: INE270A01011
A68: ALPA | B68: EQ | C68: 23.8 | D68: 24.4 | E68: 23.25 | F68: 24 | G68: 24.2 | H68: 23.25 | I68: 15423 | J68: 370465.9 | K68: 2019-03-01 | L68: 117 | M68: INE385I01010
A69: ALPHAGEO | B69: EQ | C69: 400.8 | D69: 410 | E69: 400 | F69: 407.95 | G69: 410 | H69: 400.8 | I69: 6121 | J69: 2486311.95 | K69: 2019-03-01 | L69: 605 | M69: INE137C01018
A70: AMARAJABAT | B70: EQ | C70: 718.45 | D70: 729 | E70: 718.45 | F70: 726.9 | G70: 728.15 | H70: 716.9 | I70: 277540 | J70: 201308718.8 | K70: 2019-03-01 | L70: 9256 | M70: INE885A01032
A71: AMBER | B71: EQ | C71: 672.5 | D71: 713.6 | E71: 672.5 | F71: 690.65 | G71: 685 | H71: 674.65 | I71: 6386 | J71: 4431573.05 | K71: 2019-03-01 | L71: 996 | M71: INE371P01015
A72: AMBIKCO | B72: EQ | C72: 1143.95 | D72: 1145 | E72: 1123.45 | F72: 1135.9 | G72: 1145 | H72: 1124.7 | I72: 1144 | J72: 1296219.7 | K72: 2019-03-01 | L72: 122 | M72: INE540G01014
A73: AMBUJACEM | B73: EQ | C73: 212.95 | D73: 219.3 | E73: 212.75 | F73: 217.45 | G73: 218.4 | H73: 212.05 | I73: 1389426 | J73: 299605434.7 | K73: 2019-03-01 | L73: 18483 | M73: INE079A01024
A74: AMDIND | B74: EQ | C74: 21.5 | D74: 23.7 | E74: 21.4 | F74: 23.3 | G74: 23.65 | H74: 21.8 | I74: 10958 | J74: 249463.1 | K74: 2019-03-01 | L74: 99 | M74: INE005I01014
A75: AMJLAND | B75: EQ | C75: 20 | D75: 20.3 | E75: 19.05 | F75: 20.1 | G75: 20.3 | H75: 19.7 | I75: 9360 | J75: 184535.5 | K75: 2019-03-01 | L75: 63 | M75: INE606A01024
A76: AMRUTANJAN | B76: EQ | C76: 297.6 | D76: 299 | E76: 294 | F76: 295.15 | G76: 295.4 | H76: 294.1 | I76: 13315 | J76: 3951043.55 | K76: 2019-03-01 | L76: 355 | M76: INE098F01031
A77: ANANTRAJ | B77: EQ | C77: 31.55 | D77: 32.9 | E77: 31.25 | F77: 32.7 | G77: 32.75 | H77: 31.4 | I77: 378838 | J77: 12272395.1 | K77: 2019-03-01 | L77: 1413 | M77: INE242C01024
A78: ANDHRABANK | B78: EQ | C78: 24.65 | D78: 25.6 | E78: 24.45 | F78: 25.45 | G78: 25.45 | H78: 24.55 | I78: 1215606 | J78: 30715033.8 | K78: 2019-03-01 | L78: 3264 | M78: INE434A01013
A79: ANDHRACEMT | B79: EQ | C79: 5 | D79: 5.5 | E79: 4.7 | F79: 5.35 | G79: 5.4 | H79: 4.65 | I79: 429362 | J79: 2211235.7 | K79: 2019-03-01 | L79: 648 | M79: INE666E01012
A80: ANDHRSUGAR | B80: EQ | C80: 350 | D80: 355 | E80: 344.3 | F80: 349 | G80: 346.05 | H80: 337.8 | I80: 117440 | J80: 41064022.85 | K80: 2019-03-01 | L80: 3009 | M80: INE715B01013
A81: ANGIND | B81: BE | C81: 1.15 | D81: 1.15 | E81: 1.15 | F81: 1.15 | G81: 1.15 | H81: 1.2 | I81: 1955 | J81: 2248.25 | K81: 2019-03-01 | L81: 5 | M81: INE017D01010
A82: ANIKINDS | B82: EQ | C82: 16.2 | D82: 17 | E82: 15.95 | F82: 16.55 | G82: 16.7 | H82: 16.75 | I82: 3537 | J82: 57643.55 | K82: 2019-03-01 | L82: 53 | M82: INE087B01017
A83: ANKITMETAL | B83: BE | C83: 0.5 | D83: 0.5 | E83: 0.45 | F83: 0.45 | G83: 0.5 | H83: 0.5 | I83: 64298 | J83: 29339.7 | K83: 2019-03-01 | L83: 38 | M83: INE106I01010
A84: ANSALAPI | B84: EQ | C84: 11.15 | D84: 11.3 | E84: 10.9 | F84: 11.15 | G84: 11.25 | H84: 11 | I84: 87532 | J84: 974453.95 | K84: 2019-03-01 | L84: 316 | M84: INE436A01026
A85: ANSALHSG | B85: BE | C85: 13.55 | D85: 13.85 | E85: 12.7 | F85: 13.3 | G85: 13.35 | H85: 13.35 | I85: 54536 | J85: 730879.3 | K85: 2019-03-01 | L85: 166 | M85: INE880B01015
A86: ANTGRAPHIC | B86: BE | C86: 0.45 | D86: 0.5 | E86: 0.45 | F86: 0.5 | G86: 0.5 | H86: 0.5 | I86: 24288 | J86: 11241 | K86: 2019-03-01 | L86: 28 | M86: INE414B01021
A87: ANUP | B87: BE | C87: 450 | D87: 472.5 | E87: 450 | F87: 472.5 | G87: 472.5 | H87: 311.05 | I87: 237784 | J87: 111894435 | K87: 2019-03-01 | L87: 1061 | M87: INE294Z01018
A88: APARINDS | B88: EQ | C88: 647 | D88: 660.15 | E88: 631.2 | F88: 646.65 | G88: 645 | H88: 631.6 | I88: 5136 | J88: 3339564.15 | K88: 2019-03-01 | L88: 586 | M88: INE372A01015
A89: APCL | B89: EQ | C89: 118.4 | D89: 126.65 | E89: 111.15 | F89: 119.9 | G89: 123 | H89: 114.35 | I89: 4220 | J89: 504390.55 | K89: 2019-03-01 | L89: 140 | M89: INE071F01012
A90: APCOTEXIND | B90: EQ | C90: 459 | D90: 459 | E90: 451 | F90: 453.6 | G90: 451 | H90: 453.95 | I90: 2833 | J90: 1290726.95 | K90: 2019-03-01 | L90: 168 | M90: INE116A01024
A91: APEX | B91: EQ | C91: 306.85 | D91: 329.9 | E91: 305.25 | F91: 319.55 | G91: 319.5 | H91: 304.85 | I91: 157666 | J91: 50055177.95 | K91: 2019-03-01 | L91: 4970 | M91: INE346W01013
A92: APLAPOLLO | B92: EQ | C92: 1215.25 | D92: 1374.75 | E92: 1215 | F92: 1320.9 | G92: 1293 | H92: 1198.95 | I92: 47919 | J92: 61103474.45 | K92: 2019-03-01 | L92: 2984 | M92: INE702C01019
A93: APLLTD | B93: EQ | C93: 559.7 | D93: 562.05 | E93: 542 | F93: 553.65 | G93: 542.25 | H93: 554.95 | I93: 39418 | J93: 21801854.1 | K93: 2019-03-01 | L93: 2676 | M93: INE901L01018
A94: APOLLO | B94: EQ | C94: 102.95 | D94: 102.95 | E94: 100.1 | F94: 101.35 | G94: 100.1 | H94: 101.45 | I94: 13629 | J94: 1385084.8 | K94: 2019-03-01 | L94: 357 | M94: INE713T01010
A95: APOLLOHOSP | B95: EQ | C95: 1140.1 | D95: 1165.85 | E95: 1140 | F95: 1151.85 | G95: 1151.25 | H95: 1140.9 | I95: 904319 | J95: 1044499965 | K95: 2019-03-01 | L95: 35639 | M95: INE437A01024
A96: APOLLOTYRE | B96: EQ | C96: 218.5 | D96: 220.35 | E96: 217.3 | F96: 219.9 | G96: 219.85 | H96: 217.45 | I96: 1763953 | J96: 386030365.5 | K96: 2019-03-01 | L96: 14810 | M96: INE438A01022
A97: APOLSINHOT | B97: BE | C97: 960 | D97: 960 | E97: 910 | F97: 922.7 | G97: 955 | H97: 950 | I97: 734 | J97: 679246.25 | K97: 2019-03-01 | L97: 35 | M97: INE451F01024
A98: APTECHT | B98: EQ | C98: 157.85 | D98: 177.85 | E98: 157.85 | F98: 172.55 | G98: 171.5 | H98: 156.95 | I98: 778356 | J98: 133166290.3 | K98: 2019-03-01 | L98: 12609 | M98: INE266F01018
A99: ARCHIDPLY | B99: EQ | C99: 37.3 | D99: 41.25 | E99: 37.3 | F99: 40.2 | G99: 40.05 | H99: 38.75 | I99: 20443 | J99: 818959.35 | K99: 2019-03-01 | L99: 321 | M99: INE877I01016
A100: ARCHIES | B100: EQ | C100: 22.15 | D100: 23.2 | E100: 21 | F100: 22.75 | G100: 22.75 | H100: 22.15 | I100: 22785 | J100: 512622.9 | K100: 2019-03-01 | L100: 307 | M100: INE731A01020
A101: ARCOTECH | B101: EQ | C101: 5.3 | D101: 5.3 | E101: 5.1 | F101: 5.25 | G101: 5.3 | H101: 5.2 | I101: 60233 | J101: 313131.4 | K101: 2019-03-01 | L101: 157 | M101: INE574I01035
A102: ARIES | B102: EQ | C102: 73.1 | D102: 76.45 | E102: 73 | F102: 75.85 | G102: 75.9 | H102: 73.35 | I102: 37334 | J102: 2809742.05 | K102: 2019-03-01 | L102: 653 | M102: INE298I01015
A103: ARIHANTSUP | B103: EQ | C103: 49.25 | D103: 51.4 | E103: 48.25 | F103: 49.8 | G103: 49.95 | H103: 49.3 | I103: 18853 | J103: 929913.6 | K103: 2019-03-01 | L103: 231 | M103: INE643K01018
A104: ARMANFIN | B104: EQ | C104: 374 | D104: 378.95 | E104: 370 | F104: 376.9 | G104: 375.2 | H104: 373.95 | I104: 2322 | J104: 870598.55 | K104: 2019-03-01 | L104: 79 | M104: INE109C01017
A105: AROGRANITE | B105: EQ | C105: 45.65 | D105: 46.9 | E105: 45.4 | F105: 46.65 | G105: 46.6 | H105: 45.65 | I105: 11688 | J105: 538450.15 | K105: 2019-03-01 | L105: 158 | M105: INE210C01013
A106: ARROWGREEN | B106: BE | C106: 73 | D106: 76.9 | E106: 73 | F106: 75.35 | G106: 76.9 | H106: 73.5 | I106: 7868 | J106: 591903.95 | K106: 2019-03-01 | L106: 123 | M106: INE570D01018
A107: ARROWTEX | B107: EQ | C107: 19.7 | D107: 20.4 | E107: 18.7 | F107: 19.15 | G107: 19.05 | H107: 19.1 | I107: 18190 | J107: 355462.3 | K107: 2019-03-01 | L107: 185 | M107: INE933J01015
A108: ARSHIYA | B108: EQ | C108: 28.55 | D108: 29.05 | E108: 28.35 | F108: 28.4 | G108: 28.35 | H108: 28.5 | I108: 81878 | J108: 2333719.1 | K108: 2019-03-01 | L108: 221 | M108: INE968D01022
A109: ARSSINFRA | B109: EQ | C109: 37 | D109: 37 | E109: 37 | F109: 37 | G109: 37 | H109: 35.25 | I109: 7920 | J109: 293040 | K109: 2019-03-01 | L109: 37 | M109: INE267I01010
A110: ARVIND | B110: EQ | C110: 76.55 | D110: 83.75 | E110: 76.35 | F110: 83.1 | G110: 83.2 | H110: 75.6 | I110: 10232121 | J110: 824965727.5 | K110: 2019-03-01 | L110: 40621 | M110: INE034A01011
A111: ARVSMART | B111: EQ | C111: 118.5 | D111: 122.7 | E111: 116.85 | F111: 119.55 | G111: 120.5 | H111: 116.8 | I111: 17728 | J111: 2127199.4 | K111: 2019-03-01 | L111: 529 | M111: INE034S01021
A112: ASAHIINDIA | B112: EQ | C112: 260.3 | D112: 264.95 | E112: 257.95 | F112: 263.5 | G112: 264.95 | H112: 256.5 | I112: 14069 | J112: 3670216.9 | K112: 2019-03-01 | L112: 600 | M112: INE439A01020
A113: ASAHISONG | B113: EQ | C113: 159.9 | D113: 160 | E113: 153.55 | F113: 158.7 | G113: 158 | H113: 153.15 | I113: 5633 | J113: 892348.15 | K113: 2019-03-01 | L113: 108 | M113: INE228I01012
A114: ASAL | B114: EQ | C114: 47.2 | D114: 51.6 | E114: 47.2 | F114: 51.6 | G114: 51.4 | H114: 46.95 | I114: 9934 | J114: 506803.65 | K114: 2019-03-01 | L114: 138 | M114: INE900C01027
A115: ASHAPURMIN | B115: EQ | C115: 21.1 | D115: 24.25 | E115: 21.1 | F115: 22.75 | G115: 22.7 | H115: 20.4 | I115: 337001 | J115: 7780372.7 | K115: 2019-03-01 | L115: 1819 | M115: INE348A01023
A116: ASHIANA | B116: EQ | C116: 109.5 | D116: 112.9 | E116: 108.8 | F116: 111.75 | G116: 112.1 | H116: 109.7 | I116: 26330 | J116: 2905661.25 | K116: 2019-03-01 | L116: 315 | M116: INE365D01021
A117: ASHIMASYN | B117: BE | C117: 12.65 | D117: 13.3 | E117: 12.65 | F117: 13.05 | G117: 13.25 | H117: 13.15 | I117: 27383 | J117: 356751.15 | K117: 2019-03-01 | L117: 52 | M117: INE440A01010
A118: ASHOKA | B118: EQ | C118: 120 | D118: 122.4 | E118: 118.6 | F118: 121.2 | G118: 121.3 | H118: 118.5 | I118: 1262787 | J118: 152229493.8 | K118: 2019-03-01 | L118: 2886 | M118: INE442H01029
A119: ASHOKLEY | B119: EQ | C119: 87.4 | D119: 87.9 | E119: 84.4 | F119: 86.6 | G119: 86.75 | H119: 86.5 | I119: 34521039 | J119: 2985208630 | K119: 2019-03-01 | L119: 99985 | M119: INE208A01029
A120: ASIANHOTNR | B120: EQ | C120: 141 | D120: 147 | E120: 138.05 | F120: 142.65 | G120: 144.7 | H120: 141.95 | I120: 2060 | J120: 298118.65 | K120: 2019-03-01 | L120: 85 | M120: INE363A01022
A121: ASIANPAINT | B121: EQ | C121: 1409 | D121: 1417.95 | E121: 1388.1 | F121: 1392.35 | G121: 1394 | H121: 1405.2 | I121: 783876 | J121: 1098138423 | K121: 2019-03-01 | L121: 43298 | M121: INE021A01026
A122: ASIANTILES | B122: EQ | C122: 176.5 | D122: 180 | E122: 175.05 | F122: 176.65 | G122: 176.9 | H122: 175.4 | I122: 42562 | J122: 7574439.85 | K122: 2019-03-01 | L122: 1039 | M122: INE022I01019
A123: ASPINWALL | B123: EQ | C123: 148 | D123: 155 | E123: 148 | F123: 152.95 | G123: 153 | H123: 147 | I123: 14173 | J123: 2140860.5 | K123: 2019-03-01 | L123: 91 | M123: INE991I01015
A124: ASSAMCO | B124: BE | C124: 2.3 | D124: 2.5 | E124: 2.3 | F124: 2.35 | G124: 2.5 | H124: 2.4 | I124: 990113 | J124: 2336106.3 | K124: 2019-03-01 | L124: 235 | M124: INE442A01024
A125: ASTEC | B125: EQ | C125: 501.75 | D125: 520.6 | E125: 443.95 | F125: 515 | G125: 520 | H125: 502.3 | I125: 81695 | J125: 40590923.6 | K125: 2019-03-01 | L125: 1876 | M125: INE563J01010
A126: ASTERDM | B126: EQ | C126: 156 | D126: 160 | E126: 152.6 | F126: 157.15 | G126: 156.35 | H126: 156.5 | I126: 36100 | J126: 5626756.4 | K126: 2019-03-01 | L126: 898 | M126: INE914M01019
A127: ASTRAL | B127: EQ | C127: 1080 | D127: 1098 | E127: 1080 | F127: 1084.5 | G127: 1087.8 | H127: 1080.6 | I127: 34036 | J127: 36999563.6 | K127: 2019-03-01 | L127: 5045 | M127: INE006I01046
A128: ASTRAMICRO | B128: EQ | C128: 79.15 | D128: 81.8 | E128: 79 | F128: 81.45 | G128: 81.2 | H128: 79.05 | I128: 108461 | J128: 8738855.65 | K128: 2019-03-01 | L128: 1011 | M128: INE386C01029
A129: ASTRAZEN | B129: EQ | C129: 2042 | D129: 2049 | E129: 1974 | F129: 1982.45 | G129: 1978 | H129: 2028.4 | I129: 21206 | J129: 42328657.95 | K129: 2019-03-01 | L129: 2822 | M129: INE203A01020
A130: ASTRON | B130: EQ | C130: 96.25 | D130: 99.9 | E130: 95.55 | F130: 98 | G130: 98.25 | H130: 94.85 | I130: 298298 | J130: 29340023.6 | K130: 2019-03-01 | L130: 2471 | M130: INE646X01014
A131: ATFL | B131: EQ | C131: 559.4 | D131: 582 | E131: 559.25 | F131: 573.8 | G131: 582 | H131: 555.35 | I131: 18667 | J131: 10632072.1 | K131: 2019-03-01 | L131: 862 | M131: INE209A01019
A132: ATLANTA | B132: EQ | C132: 16.9 | D132: 16.9 | E132: 16.3 | F132: 16.6 | G132: 16.8 | H132: 16.2 | I132: 19033 | J132: 315967.55 | K132: 2019-03-01 | L132: 166 | M132: INE285H01022
A133: ATLASCYCLE | B133: BE | C133: 68.5 | D133: 69.9 | E133: 67.5 | F133: 67.95 | G133: 67.65 | H133: 66.65 | I133: 1226 | J133: 84449.75 | K133: 2019-03-01 | L133: 24 | M133: INE446A01025
A134: ATUL | B134: EQ | C134: 3400 | D134: 3418.05 | E134: 3343 | F134: 3381.9 | G134: 3394 | H134: 3366.95 | I134: 11359 | J134: 38375595.8 | K134: 2019-03-01 | L134: 2110 | M134: INE100A01010
A135: ATULAUTO | B135: EQ | C135: 320.35 | D135: 345 | E135: 315.1 | F135: 337.25 | G135: 335.05 | H135: 310.95 | I135: 213925 | J135: 71223181.85 | K135: 2019-03-01 | L135: 7206 | M135: INE951D01028
A136: AUBANK | B136: EQ | C136: 576.65 | D136: 579.75 | E136: 562 | F136: 569.6 | G136: 570.1 | H136: 579.6 | I136: 502483 | J136: 287294958.5 | K136: 2019-03-01 | L136: 10594 | M136: INE949L01017
A137: AURIONPRO | B137: EQ | C137: 108.05 | D137: 114.4 | E137: 108 | F137: 112.35 | G137: 113.4 | H137: 108.75 | I137: 5154 | J137: 577722.65 | K137: 2019-03-01 | L137: 248 | M137: INE132H01018
A138: AUROPHARMA | B138: EQ | C138: 715 | D138: 727.7 | E138: 713.7 | F138: 724.95 | G138: 722.5 | H138: 712.05 | I138: 1775302 | J138: 1280488535 | K138: 2019-03-01 | L138: 46146 | M138: INE406A01037
A139: AUSOMENT | B139: EQ | C139: 33 | D139: 34.9 | E139: 32.15 | F139: 34.75 | G139: 34.9 | H139: 33.25 | I139: 1907 | J139: 64980.85 | K139: 2019-03-01 | L139: 34 | M139: INE218C01016
A140: AUTOAXLES | B140: EQ | C140: 1220.1 | D140: 1305.6 | E140: 1220.1 | F140: 1287.15 | G140: 1291 | H140: 1221.8 | I140: 60104 | J140: 77354313.65 | K140: 2019-03-01 | L140: 2337 | M140: INE449A01011
A141: AUTOIND | B141: EQ | C141: 53.6 | D141: 54 | E141: 52.65 | F141: 52.85 | G141: 53 | H141: 53.1 | I141: 20168 | J141: 1071916.05 | K141: 2019-03-01 | L141: 206 | M141: INE718H01014
A142: AUTOLITIND | B142: EQ | C142: 30.55 | D142: 31.2 | E142: 29.75 | F142: 30.95 | G142: 31 | H142: 29.7 | I142: 16570 | J142: 504183.65 | K142: 2019-03-01 | L142: 130 | M142: INE448A01013
A143: AVADHSUGAR | B143: EQ | C143: 500 | D143: 509 | E143: 486.1 | F143: 491.35 | G143: 491.75 | H143: 486.8 | I143: 179069 | J143: 89315576.25 | K143: 2019-03-01 | L143: 4837 | M143: INE349W01017
A144: AVANTIFEED | B144: EQ | C144: 335.1 | D144: 349.9 | E144: 335.1 | F144: 345.55 | G144: 345.7 | H144: 334.65 | I144: 447932 | J144: 154264287.8 | K144: 2019-03-01 | L144: 11759 | M144: INE871C01038
A145: AVTNPL | B145: EQ | C145: 25.15 | D145: 25.95 | E145: 24.9 | F145: 25.4 | G145: 25.1 | H145: 24.95 | I145: 26103 | J145: 661327.4 | K145: 2019-03-01 | L145: 215 | M145: INE488D01021
A146: AXISBANK | B146: EQ | C146: 713.5 | D146: 714.95 | E146: 699.55 | F146: 702.4 | G146: 702.45 | H146: 709.55 | I146: 7713824 | J146: 5440212646 | K146: 2019-03-01 | L146: 116741 | M146: INE238A01034
A147: AXISCADES | B147: EQ | C147: 61.95 | D147: 62.8 | E147: 60.7 | F147: 62.45 | G147: 62.7 | H147: 60.8 | I147: 21884 | J147: 1357404.4 | K147: 2019-03-01 | L147: 505 | M147: INE555B01013
A148: AXISGOLD | B148: EQ | C148: 2928 | D148: 2928 | E148: 2870.55 | F148: 2883.9 | G148: 2883.9 | H148: 2930 | I148: 498 | J148: 1437906.7 | K148: 2019-03-01 | L148: 82 | M148: INF846K01347
A149: AXISNIFTY | B149: EQ | C149: 1108 | D149: 1108 | E149: 1100.58 | F149: 1100.58 | G149: 1100.58 | H149: 1108.84 | I149: 60 | J149: 66157.54 | K149: 2019-03-01 | L149: 6 | M149: INF846K01ZL0
A150: AYMSYNTEX | B150: EQ | C150: 36.8 | D150: 38 | E150: 34.65 | F150: 37.65 | G150: 37 | H150: 35.15 | I150: 19312 | J150: 708898.15 | K150: 2019-03-01 | L150: 128 | M150: INE193B01039
A151: BAFNAPHARM | B151: EQ | C151: 10.2 | D151: 10.9 | E151: 10.2 | F151: 10.45 | G151: 10.6 | H151: 10 | I151: 7532 | J151: 79818.2 | K151: 2019-03-01 | L151: 125 | M151: INE878I01014
A152: BAGFILMS | B152: EQ | C152: 4.9 | D152: 5 | E152: 4.85 | F152: 5 | G152: 5 | H152: 4.9 | I152: 74905 | J152: 369245.8 | K152: 2019-03-01 | L152: 124 | M152: INE116D01028
A153: BAJAJ-AUTO | B153: EQ | C153: 2914 | D153: 2943 | E153: 2856.2 | F153: 2863.5 | G153: 2861.05 | H153: 2900.6 | I153: 1008494 | J153: 2918777304 | K153: 2019-03-01 | L153: 46288 | M153: INE917I01010
A154: BAJAJCON | B154: EQ | C154: 348.1 | D154: 350.5 | E154: 348.1 | F154: 349.4 | G154: 348.8 | H154: 349.9 | I154: 10233 | J154: 3578689 | K154: 2019-03-01 | L154: 421 | M154: INE933K01021
A155: BAJAJELEC | B155: EQ | C155: 456 | D155: 459 | E155: 449.15 | F155: 453.6 | G155: 453.65 | H155: 453 | I155: 211484 | J155: 95841024 | K155: 2019-03-01 | L155: 5123 | M155: INE193E01025
A156: BAJAJFINSV | B156: EQ | C156: 6480 | D156: 6540 | E156: 6428.05 | F156: 6440.6 | G156: 6435 | H156: 6462.45 | I156: 222076 | J156: 1438266920 | K156: 2019-03-01 | L156: 25908 | M156: INE918I01018
A157: BAJAJHIND | B157: EQ | C157: 8.45 | D157: 8.65 | E157: 8.45 | F157: 8.55 | G157: 8.55 | H157: 8.25 | I157: 2919731 | J157: 24919506.25 | K157: 2019-03-01 | L157: 2651 | M157: INE306A01021
A158: BAJAJHLDNG | B158: EQ | C158: 3165.1 | D158: 3205 | E158: 3152 | F158: 3170.3 | G158: 3157 | H158: 3165.05 | I158: 12820 | J158: 40843349.95 | K158: 2019-03-01 | L158: 2231 | M158: INE118A01012
A159: BAJFINANCE | B159: EQ | C159: 2663.3 | D159: 2674.3 | E159: 2640 | F159: 2660.75 | G159: 2659.3 | H159: 2649 | I159: 707094 | J159: 1879699728 | K159: 2019-03-01 | L159: 37164 | M159: INE296A01024
A160: BALAJITELE | B160: EQ | C160: 81.4 | D160: 83.25 | E160: 81 | F160: 81.2 | G160: 81.05 | H160: 80.7 | I160: 32136 | J160: 2629767.7 | K160: 2019-03-01 | L160: 556 | M160: INE794B01026
A161: BALAMINES | B161: EQ | C161: 402 | D161: 424 | E161: 402 | F161: 420.2 | G161: 416.1 | H161: 405.35 | I161: 9375 | J161: 3904881.4 | K161: 2019-03-01 | L161: 587 | M161: INE050E01027
A162: BALKRISHNA | B162: EQ | C162: 38.65 | D162: 38.7 | E162: 36.5 | F162: 37.95 | G162: 38.5 | H162: 36.35 | I162: 21105 | J162: 801101.25 | K162: 2019-03-01 | L162: 367 | M162: INE875R01011
A163: BALKRISIND | B163: EQ | C163: 886.7 | D163: 900.3 | E163: 886.2 | F163: 894.7 | G163: 891.05 | H163: 885.7 | I163: 538236 | J163: 481114827 | K163: 2019-03-01 | L163: 15232 | M163: INE787D01026
A164: BALLARPUR | B164: EQ | C164: 3.7 | D164: 3.85 | E164: 3.65 | F164: 3.8 | G164: 3.85 | H164: 3.65 | I164: 735734 | J164: 2744884.3 | K164: 2019-03-01 | L164: 548 | M164: INE294A01037
A165: BALMLAWRIE | B165: EQ | C165: 176.8 | D165: 181.15 | E165: 175 | F165: 180.4 | G165: 180 | H165: 176.75 | I165: 31654 | J165: 5676840.5 | K165: 2019-03-01 | L165: 910 | M165: INE164A01016
A166: BALPHARMA | B166: EQ | C166: 69.8 | D166: 71.2 | E166: 69.55 | F166: 70.6 | G166: 70.4 | H166: 69.8 | I166: 12543 | J166: 886781 | K166: 2019-03-01 | L166: 142 | M166: INE083D01012
A167: BALRAMCHIN | B167: EQ | C167: 134.25 | D167: 136.75 | E167: 133.55 | F167: 134.95 | G167: 134.75 | H167: 131 | I167: 4431652 | J167: 598203961.1 | K167: 2019-03-01 | L167: 31006 | M167: INE119A01028
A168: BANARBEADS | B168: EQ | C168: 41 | D168: 43.75 | E168: 37.65 | F168: 41.2 | G168: 41.2 | H168: 42.5 | I168: 2548 | J168: 101896.1 | K168: 2019-03-01 | L168: 71 | M168: INE655B01011
A169: BANARISUG | B169: EQ | C169: 1594 | D169: 1629.8 | E169: 1551.2 | F169: 1610.2 | G169: 1615 | H169: 1537.55 | I169: 3854 | J169: 6148726.3 | K169: 2019-03-01 | L169: 379 | M169: INE459A01010
A170: BANCOINDIA | B170: EQ | C170: 146 | D170: 151.05 | E170: 146 | F170: 150.3 | G170: 150.95 | H170: 146.1 | I170: 46655 | J170: 6958686.45 | K170: 2019-03-01 | L170: 767 | M170: INE213C01025
A171: BANDHANBNK | B171: EQ | C171: 484.5 | D171: 486 | E171: 478 | F171: 480.05 | G171: 478.5 | H171: 480.05 | I171: 242847 | J171: 116860546.3 | K171: 2019-03-01 | L171: 8323 | M171: INE545U01014
A172: BANG | B172: EQ | C172: 39.5 | D172: 39.5 | E172: 35.7 | F172: 36.8 | G172: 36.1 | H172: 39.45 | I172: 35119 | J172: 1312118.5 | K172: 2019-03-01 | L172: 328 | M172: INE863I01016
A173: BANKBARODA | B173: EQ | C173: 102 | D173: 108.8 | E173: 101.6 | F173: 108.1 | G173: 108.5 | H173: 101 | I173: 29505475 | J173: 3127350426 | K173: 2019-03-01 | L173: 80989 | M173: INE028A01039
A174: BANKBEES | B174: EQ | C174: 2742.33 | D174: 2754.54 | E174: 2742.03 | F174: 2750.68 | G174: 2745.33 | H174: 2735.66 | I174: 9326 | J174: 25625200.78 | K174: 2019-03-01 | L174: 151 | M174: INF732E01078
A175: BANKINDIA | B175: EQ | C175: 83.2 | D175: 88.25 | E175: 83.15 | F175: 87.5 | G175: 87.75 | H175: 83.1 | I175: 13952084 | J175: 1207947929 | K175: 2019-03-01 | L175: 40031 | M175: INE084A01016
A176: BANSWRAS | B176: EQ | C176: 64.4 | D176: 72.6 | E176: 63.4 | F176: 69.2 | G176: 69 | H176: 63.05 | I176: 13006 | J176: 890860.6 | K176: 2019-03-01 | L176: 248 | M176: INE629D01012
A177: BARTRONICS | B177: EQ | C177: 7 | D177: 7.1 | E177: 6.75 | F177: 6.8 | G177: 6.9 | H177: 6.75 | I177: 17138 | J177: 117843.85 | K177: 2019-03-01 | L177: 95 | M177: INE855F01034
A178: BASF | B178: EQ | C178: 1325 | D178: 1355 | E178: 1305.75 | F178: 1331.25 | G178: 1329 | H178: 1319.2 | I178: 17486 | J178: 23212451.85 | K178: 2019-03-01 | L178: 974 | M178: INE373A01013
A179: BASML | B179: EQ | C179: 191.95 | D179: 191.95 | E179: 180.15 | F179: 185.4 | G179: 185.05 | H179: 185 | I179: 801 | J179: 147357.15 | K179: 2019-03-01 | L179: 27 | M179: INE186H01014
A180: BATAINDIA | B180: EQ | C180: 1290.25 | D180: 1297.25 | E180: 1271.25 | F180: 1280.05 | G180: 1279.5 | H180: 1288.8 | I180: 761639 | J180: 976457538.4 | K180: 2019-03-01 | L180: 25975 | M180: INE176A01028
A181: BAYERCROP | B181: EQ | C181: 4312.35 | D181: 4339.05 | E181: 4280 | F181: 4292.7 | G181: 4280 | H181: 4345.9 | I181: 23202 | J181: 99355163.3 | K181: 2019-03-01 | L181: 1173 | M181: INE462A01022
A182: BBL | B182: EQ | C182: 1033.8 | D182: 1069.8 | E182: 1025.5 | F182: 1065.75 | G182: 1063 | H182: 1023.15 | I182: 8629 | J182: 9062219.25 | K182: 2019-03-01 | L182: 1020 | M182: INE464A01028
A183: BBTC | B183: EQ | C183: 1193 | D183: 1233 | E183: 1193 | F183: 1219.55 | G183: 1220 | H183: 1192.35 | I183: 85912 | J183: 104134554 | K183: 2019-03-01 | L183: 3546 | M183: INE050A01025
A184: BCG | B184: EQ | C184: 3.05 | D184: 3.1 | E184: 2.9 | F184: 3.05 | G184: 3 | H184: 3 | I184: 623050 | J184: 1869801.1 | K184: 2019-03-01 | L184: 337 | M184: INE425B01027
A185: BDL | B185: EQ | C185: 304 | D185: 307 | E185: 285.2 | F185: 286.85 | G185: 286.3 | H185: 304 | I185: 238191 | J185: 69542942 | K185: 2019-03-01 | L185: 8184 | M185: INE171Z01018
A186: BEARDSELL | B186: EQ | C186: 15.5 | D186: 15.5 | E186: 15 | F186: 15.05 | G186: 15.05 | H186: 15 | I186: 9362 | J186: 141304.75 | K186: 2019-03-01 | L186: 51 | M186: INE520H01022
A187: BEDMUTHA | B187: EQ | C187: 16.3 | D187: 16.95 | E187: 16.3 | F187: 16.75 | G187: 16.85 | H187: 16.65 | I187: 1663 | J187: 27658.8 | K187: 2019-03-01 | L187: 23 | M187: INE844K01012
A188: BEL | B188: EQ | C188: 83 | D188: 85.3 | E188: 83 | F188: 85 | G188: 85 | H188: 82.5 | I188: 11338932 | J188: 955346218 | K188: 2019-03-01 | L188: 36925 | M188: INE263A01024
A189: BEML | B189: EQ | C189: 843.9 | D189: 858.95 | E189: 838.65 | F189: 851 | G189: 853 | H189: 835.3 | I189: 1680749 | J189: 1429224919 | K189: 2019-03-01 | L189: 28462 | M189: INE258A01016
A190: BEPL | B190: EQ | C190: 64.65 | D190: 71.7 | E190: 64 | F190: 69.3 | G190: 69.35 | H190: 63.8 | I190: 1688230 | J190: 115029021.8 | K190: 2019-03-01 | L190: 10999 | M190: INE922A01025
A191: BERGEPAINT | B191: EQ | C191: 304.9 | D191: 307.4 | E191: 301.2 | F191: 302.2 | G191: 301.8 | H191: 304.95 | I191: 472234 | J191: 143443579 | K191: 2019-03-01 | L191: 8670 | M191: INE463A01038
A192: BFINVEST | B192: EQ | C192: 232.4 | D192: 243.95 | E192: 231 | F192: 240.4 | G192: 241.25 | H192: 230.45 | I192: 310853 | J192: 74186563.6 | K192: 2019-03-01 | L192: 4846 | M192: INE878K01010
A193: BFUTILITIE | B193: EQ | C193: 180.9 | D193: 185.4 | E193: 179.8 | F193: 181.65 | G193: 181.2 | H193: 179.75 | I193: 609352 | J193: 111182532 | K193: 2019-03-01 | L193: 9158 | M193: INE243D01012
A194: BGLOBAL | B194: BE | C194: 2.4 | D194: 2.4 | E194: 2.3 | F194: 2.4 | G194: 2.4 | H194: 2.3 | I194: 12207 | J194: 29296.6 | K194: 2019-03-01 | L194: 10 | M194: INE224M01013
A195: BGRENERGY | B195: EQ | C195: 49 | D195: 51.5 | E195: 49 | F195: 50.8 | G195: 50.65 | H195: 49 | I195: 84138 | J195: 4267744.75 | K195: 2019-03-01 | L195: 967 | M195: INE661I01014
A196: BHAGERIA | B196: EQ | C196: 233 | D196: 252 | E196: 230.1 | F196: 238.65 | G196: 238.1 | H196: 228.8 | I196: 6652 | J196: 1569747.4 | K196: 2019-03-01 | L196: 438 | M196: INE354C01027
A197: BHAGYANGR | B197: EQ | C197: 31.95 | D197: 31.95 | E197: 29.6 | F197: 30.5 | G197: 30.5 | H197: 30.35 | I197: 36129 | J197: 1111306.7 | K197: 2019-03-01 | L197: 56 | M197: INE458B01036
A198: BHAGYAPROP | B198: EQ | C198: 29.2 | D198: 29.2 | E198: 28.3 | F198: 28.8 | G198: 28.8 | H198: 29.2 | I198: 304 | J198: 8755.2 | K198: 2019-03-01 | L198: 4 | M198: INE363W01018
A199: BHANDARI | B199: EQ | C199: 2 | D199: 2.05 | E199: 1.95 | F199: 2 | G199: 2 | H199: 2 | I199: 174528 | J199: 346955.2 | K199: 2019-03-01 | L199: 72 | M199: INE474E01029
A200: BHARATFIN | B200: EQ | C200: 925 | D200: 954.9 | E200: 925 | F200: 949.9 | G200: 953.7 | H200: 923.9 | I200: 539921 | J200: 511002847.5 | K200: 2019-03-01 | L200: 16817 | M200: INE180K01011
... 1440 more rows

Sheet Sheet1 (hidden)

Sheet Sheet3 (hidden)
